{"text_format":"1","workbook":"xlsx","n_sheets":3,"sheets":["Trips","Pass Options","Solutions"],"not_rendered":{"charts":0,"images":0,"macros":1,"external_links":0,"defined_names":0,"comments":0,"pivot_tables":0},"unopened":[],"bounds":{"document_bytes":16777216,"sheet_cells":100000,"rows_first":2000,"rows_last":500,"rows_between":2000,"halvings":0,"cell_chars":16384,"cell_head_chars":4096},"cells_cut":0,"cells_raw":0,"read":"whole","date_system":"1900"}

{"sheet":"Trips","index":0,"n_rows":214,"n_cols":6,"rows_kept":214,"cut":false,"hidden":false,"merged":[]}
[null,null,null,null,"Pass Option"]
[null,null,null,null,"e-cash","Annual"]
["Date","Day","Comment","Trips",{"$f":"SUM(E4:E214)","v":650.9500000000005},1001.4]
["2017-10-02",{"$f":"TEXT(A4,\"dddd\")","v":"Monday"},null,0,{"$f":"D4*'Pass Options'!C$2","v":0}]
["2017-10-03",{"$f":"TEXT(A5,\"dddd\")","v":"Tuesday"},null,0,{"$f":"D5*'Pass Options'!C$2","v":0}]
["2017-10-04","Wednesday",null,0,{"$f":"D6*'Pass Options'!C$2","v":0}]
["2017-10-05","Thursday",null,0,{"$f":"D7*'Pass Options'!C$2","v":0}]
["2017-10-06","Friday",null,0,{"$f":"D8*'Pass Options'!C$2","v":0}]
["2017-10-07","Saturday",null,0,{"$f":"D9*'Pass Options'!C$2","v":0}]
["2017-10-08","Sunday",null,0,{"$f":"D10*'Pass Options'!C$2","v":0}]
["2017-10-09","Monday","Thanksgiving",0,{"$f":"D11*'Pass Options'!C$2","v":0}]
["2017-10-10","Tuesday",null,2,{"$f":"D12*'Pass Options'!C$2","v":4.7}]
["2017-10-11","Wednesday",null,2,{"$f":"D13*'Pass Options'!C$2","v":4.7}]
["2017-10-12","Thursday",null,2,{"$f":"D14*'Pass Options'!C$2","v":4.7}]
["2017-10-13","Friday",null,2,{"$f":"D15*'Pass Options'!C$2","v":4.7}]
["2017-10-14","Saturday",null,0,{"$f":"D16*'Pass Options'!C$2","v":0}]
["2017-10-15","Sunday",null,0,{"$f":"D17*'Pass Options'!C$2","v":0}]
["2017-10-16","Monday",null,2,{"$f":"D18*'Pass Options'!C$2","v":4.7}]
["2017-10-17","Tuesday",null,2,{"$f":"D19*'Pass Options'!C$2","v":4.7}]
["2017-10-18","Wednesday",null,2,{"$f":"D20*'Pass Options'!C$2","v":4.7}]
["2017-10-19","Thursday",null,2,{"$f":"D21*'Pass Options'!C$2","v":4.7}]
["2017-10-20","Friday",null,2,{"$f":"D22*'Pass Options'!C$2","v":4.7}]
["2017-10-21","Saturday",null,0,{"$f":"D23*'Pass Options'!C$2","v":0}]
["2017-10-22","Sunday",null,0,{"$f":"D24*'Pass Options'!C$2","v":0}]
["2017-10-23","Monday",null,2,{"$f":"D25*'Pass Options'!C$2","v":4.7}]
["2017-10-24","Tuesday",null,2,{"$f":"D26*'Pass Options'!C$2","v":4.7}]
["2017-10-25","Wednesday",null,2,{"$f":"D27*'Pass Options'!C$2","v":4.7}]
["2017-10-26","Thursday",null,2,{"$f":"D28*'Pass Options'!C$2","v":4.7}]
["2017-10-27","Friday",null,2,{"$f":"D29*'Pass Options'!C$2","v":4.7}]
["2017-10-28","Saturday",null,0,{"$f":"D30*'Pass Options'!C$2","v":0}]
["2017-10-29","Sunday",null,0,{"$f":"D31*'Pass Options'!C$2","v":0}]
["2017-10-30","Monday",null,2,{"$f":"D32*'Pass Options'!C$2","v":4.7}]
["2017-10-31","Tuesday",null,2,{"$f":"D33*'Pass Options'!C$2","v":4.7}]
["2017-11-01","Wednesday",null,2,{"$f":"D34*'Pass Options'!C$2","v":4.7}]
["2017-11-02","Thursday",null,2,{"$f":"D35*'Pass Options'!C$2","v":4.7}]
["2017-11-03","Friday",null,2,{"$f":"D36*'Pass Options'!C$2","v":4.7}]
["2017-11-04","Saturday",null,0,{"$f":"D37*'Pass Options'!C$2","v":0}]
["2017-11-05","Sunday",null,0,{"$f":"D38*'Pass Options'!C$2","v":0}]
["2017-11-06","Monday",null,2,{"$f":"D39*'Pass Options'!C$2","v":4.7}]
["2017-11-07","Tuesday",null,2,{"$f":"D40*'Pass Options'!C$2","v":4.7}]
["2017-11-08","Wednesday","Doctor's appointment",1,{"$f":"D41*'Pass Options'!C$2","v":2.35}]
["2017-11-09","Thursday",null,2,{"$f":"D42*'Pass Options'!C$2","v":4.7}]
["2017-11-10","Friday",null,2,{"$f":"D43*'Pass Options'!C$2","v":4.7}]
["2017-11-11","Saturday",null,0,{"$f":"D44*'Pass Options'!C$2","v":0}]
["2017-11-12","Sunday",null,0,{"$f":"D45*'Pass Options'!C$2","v":0}]
["2017-11-13","Monday","Remembrance Day",0,{"$f":"D46*'Pass Options'!C$2","v":0}]
["2017-11-14","Tuesday",null,2,{"$f":"D47*'Pass Options'!C$2","v":4.7}]
["2017-11-15","Wednesday",null,2,{"$f":"D48*'Pass Options'!C$2","v":4.7}]
["2017-11-16","Thursday",null,2,{"$f":"D49*'Pass Options'!C$2","v":4.7}]
["2017-11-17","Friday",null,2,{"$f":"D50*'Pass Options'!C$2","v":4.7}]
["2017-11-18","Saturday",null,0,{"$f":"D51*'Pass Options'!C$2","v":0}]
["2017-11-19","Sunday",null,0,{"$f":"D52*'Pass Options'!C$2","v":0}]
["2017-11-20","Monday",null,2,{"$f":"D53*'Pass Options'!C$2","v":4.7}]
["2017-11-21","Tuesday",null,2,{"$f":"D54*'Pass Options'!C$2","v":4.7}]
["2017-11-22","Wednesday",null,2,{"$f":"D55*'Pass Options'!C$2","v":4.7}]
["2017-11-23","Thursday",null,2,{"$f":"D56*'Pass Options'!C$2","v":4.7}]
["2017-11-24","Friday",null,2,{"$f":"D57*'Pass Options'!C$2","v":4.7}]
["2017-11-25","Saturday",null,0,{"$f":"D58*'Pass Options'!C$2","v":0}]
["2017-11-26","Sunday",null,0,{"$f":"D59*'Pass Options'!C$2","v":0}]
["2017-11-27","Monday",null,2,{"$f":"D60*'Pass Options'!C$2","v":4.7}]
["2017-11-28","Tuesday",null,2,{"$f":"D61*'Pass Options'!C$2","v":4.7}]
["2017-11-29","Wednesday",null,2,{"$f":"D62*'Pass Options'!C$2","v":4.7}]
["2017-11-30","Thursday",null,2,{"$f":"D63*'Pass Options'!C$2","v":4.7}]
["2017-12-01","Friday",null,2,{"$f":"D64*'Pass Options'!C$2","v":4.7}]
["2017-12-02","Saturday",null,0,{"$f":"D65*'Pass Options'!C$2","v":0}]
["2017-12-03","Sunday",null,0,{"$f":"D66*'Pass Options'!C$2","v":0}]
["2017-12-04","Monday",null,2,{"$f":"D67*'Pass Options'!C$2","v":4.7}]
["2017-12-05","Tuesday",null,2,{"$f":"D68*'Pass Options'!C$2","v":4.7}]
["2017-12-06",{"$f":"TEXT(A69,\"dddd\")","v":"Wednesday"},null,2,{"$f":"D69*'Pass Options'!C$2","v":4.7}]
["2017-12-07","Thursday",null,2,{"$f":"D70*'Pass Options'!C$2","v":4.7}]
["2017-12-08","Friday",null,2,{"$f":"D71*'Pass Options'!C$2","v":4.7}]
["2017-12-09","Saturday",null,0,{"$f":"D72*'Pass Options'!C$2","v":0}]
["2017-12-10","Sunday",null,0,{"$f":"D73*'Pass Options'!C$2","v":0}]
["2017-12-11","Monday",null,2,{"$f":"D74*'Pass Options'!C$2","v":4.7}]
["2017-12-12","Tuesday",null,2,{"$f":"D75*'Pass Options'!C$2","v":4.7}]
["2017-12-13","Wednesday",null,2,{"$f":"D76*'Pass Options'!C$2","v":4.7}]
["2017-12-14","Thursday",null,2,{"$f":"D77*'Pass Options'!C$2","v":4.7}]
["2017-12-15","Friday",null,2,{"$f":"D78*'Pass Options'!C$2","v":4.7}]
["2017-12-16","Saturday",null,0,{"$f":"D79*'Pass Options'!C$2","v":0}]
["2017-12-17","Sunday",null,0,{"$f":"D80*'Pass Options'!C$2","v":0}]
["2017-12-18","Monday",null,2,{"$f":"D81*'Pass Options'!C$2","v":4.7}]
["2017-12-19","Tuesday",null,2,{"$f":"D82*'Pass Options'!C$2","v":4.7}]
["2017-12-20","Wednesday",null,2,{"$f":"D83*'Pass Options'!C$2","v":4.7}]
["2017-12-21","Thursday",null,2,{"$f":"D84*'Pass Options'!C$2","v":4.7}]
["2017-12-22","Friday",null,2,{"$f":"D85*'Pass Options'!C$2","v":4.7}]
["2017-12-23","Saturday",null,0,{"$f":"D86*'Pass Options'!C$2","v":0}]
["2017-12-24","Sunday",null,0,{"$f":"D87*'Pass Options'!C$2","v":0}]
["2017-12-25","Monday","Christmas",0,{"$f":"D88*'Pass Options'!C$2","v":0}]
["2017-12-26","Tuesday","Boxing Day",0,{"$f":"D89*'Pass Options'!C$2","v":0}]
["2017-12-27","Wednesday",null,2,{"$f":"D90*'Pass Options'!C$2","v":4.7}]
["2017-12-28","Thursday",null,2,{"$f":"D91*'Pass Options'!C$2","v":4.7}]
["2017-12-29","Friday",null,2,{"$f":"D92*'Pass Options'!C$2","v":4.7}]
["2017-12-30","Saturday",null,0,{"$f":"D93*'Pass Options'!C$2","v":0}]
["2017-12-31","Sunday",null,0,{"$f":"D94*'Pass Options'!C$2","v":0}]
["2018-01-01","Monday","New Years Day",0,{"$f":"D95*'Pass Options'!C$2","v":0}]
["2018-01-02","Tuesday",null,2,{"$f":"D96*'Pass Options'!C$2","v":4.7}]
["2018-01-03","Wednesday",null,2,{"$f":"D97*'Pass Options'!C$2","v":4.7}]
["2018-01-04","Thursday",null,2,{"$f":"D98*'Pass Options'!C$2","v":4.7}]
["2018-01-05","Friday",null,2,{"$f":"D99*'Pass Options'!C$2","v":4.7}]
["2018-01-06","Saturday",null,0,{"$f":"D100*'Pass Options'!C$2","v":0}]
["2018-01-07","Sunday",null,0,{"$f":"D101*'Pass Options'!C$2","v":0}]
["2018-01-08","Monday",null,2,{"$f":"D102*'Pass Options'!C$2","v":4.7}]
["2018-01-09","Tuesday",null,2,{"$f":"D103*'Pass Options'!C$2","v":4.7}]
["2018-01-10","Wednesday",null,2,{"$f":"D104*'Pass Options'!C$2","v":4.7}]
["2018-01-11","Thursday",null,2,{"$f":"D105*'Pass Options'!C$2","v":4.7}]
["2018-01-12","Friday",null,2,{"$f":"D106*'Pass Options'!C$2","v":4.7}]
["2018-01-13","Saturday",null,0,{"$f":"D107*'Pass Options'!C$2","v":0}]
["2018-01-14","Sunday",null,0,{"$f":"D108*'Pass Options'!C$2","v":0}]
["2018-01-15","Monday",null,2,{"$f":"D109*'Pass Options'!C$2","v":4.7}]
["2018-01-16","Tuesday",null,2,{"$f":"D110*'Pass Options'!C$2","v":4.7}]
["2018-01-17","Wednesday",null,2,{"$f":"D111*'Pass Options'!C$2","v":4.7}]
["2018-01-18","Thursday",null,2,{"$f":"D112*'Pass Options'!C$2","v":4.7}]
["2018-01-19","Friday",null,2,{"$f":"D113*'Pass Options'!C$2","v":4.7}]
["2018-01-20","Saturday",null,0,{"$f":"D114*'Pass Options'!C$2","v":0}]
["2018-01-21","Sunday",null,0,{"$f":"D115*'Pass Options'!C$2","v":0}]
["2018-01-22","Monday",null,2,{"$f":"D116*'Pass Options'!C$2","v":4.7}]
["2018-01-23","Tuesday",null,2,{"$f":"D117*'Pass Options'!C$2","v":4.7}]
["2018-01-24","Wednesday",null,2,{"$f":"D118*'Pass Options'!C$2","v":4.7}]
["2018-01-25","Thursday",null,2,{"$f":"D119*'Pass Options'!C$2","v":4.7}]
["2018-01-26","Friday",null,2,{"$f":"D120*'Pass Options'!C$2","v":4.7}]
["2018-01-27","Saturday",null,0,{"$f":"D121*'Pass Options'!C$2","v":0}]
["2018-01-28","Sunday",null,0,{"$f":"D122*'Pass Options'!C$2","v":0}]
["2018-01-29","Monday",null,2,{"$f":"D123*'Pass Options'!C$2","v":4.7}]
["2018-01-30","Tuesday",null,2,{"$f":"D124*'Pass Options'!C$2","v":4.7}]
["2018-01-31","Wednesday",null,2,{"$f":"D125*'Pass Options'!C$2","v":4.7}]
["2018-02-01","Thursday",null,2,{"$f":"D126*'Pass Options'!C$2","v":4.7}]
["2018-02-02","Friday",null,2,{"$f":"D127*'Pass Options'!C$2","v":4.7}]
["2018-02-03","Saturday",null,0,{"$f":"D128*'Pass Options'!C$2","v":0}]
["2018-02-04","Sunday",null,0,{"$f":"D129*'Pass Options'!C$2","v":0}]
["2018-02-05","Monday",null,2,{"$f":"D130*'Pass Options'!C$2","v":4.7}]
["2018-02-06","Tuesday",null,2,{"$f":"D131*'Pass Options'!C$2","v":4.7}]
["2018-02-07","Wednesday",null,2,{"$f":"D132*'Pass Options'!C$2","v":4.7}]
["2018-02-08",{"$f":"TEXT(A133,\"dddd\")","v":"Thursday"},null,2,{"$f":"D133*'Pass Options'!C$2","v":4.7}]
["2018-02-09","Friday",null,2,{"$f":"D134*'Pass Options'!C$2","v":4.7}]
["2018-02-10","Saturday",null,0,{"$f":"D135*'Pass Options'!C$2","v":0}]
["2018-02-11","Sunday",null,0,{"$f":"D136*'Pass Options'!C$2","v":0}]
["2018-02-12","Monday",null,2,{"$f":"D137*'Pass Options'!C$2","v":4.7}]
["2018-02-13","Tuesday",null,2,{"$f":"D138*'Pass Options'!C$2","v":4.7}]
["2018-02-14","Wednesday",null,2,{"$f":"D139*'Pass Options'!C$2","v":4.7}]
["2018-02-15","Thursday",null,2,{"$f":"D140*'Pass Options'!C$2","v":4.7}]
["2018-02-16","Friday",null,2,{"$f":"D141*'Pass Options'!C$2","v":4.7}]
["2018-02-17","Saturday",null,0,{"$f":"D142*'Pass Options'!C$2","v":0}]
["2018-02-18","Sunday",null,0,{"$f":"D143*'Pass Options'!C$2","v":0}]
["2018-02-19","Monday","Louis Riel",0,{"$f":"D144*'Pass Options'!C$2","v":0}]
["2018-02-20","Tuesday",null,2,{"$f":"D145*'Pass Options'!C$2","v":4.7}]
["2018-02-21","Wednesday",null,2,{"$f":"D146*'Pass Options'!C$2","v":4.7}]
["2018-02-22","Thursday",null,2,{"$f":"D147*'Pass Options'!C$2","v":4.7}]
["2018-02-23","Friday",null,2,{"$f":"D148*'Pass Options'!C$2","v":4.7}]
["2018-02-24","Saturday",null,0,{"$f":"D149*'Pass Options'!C$2","v":0}]
["2018-02-25","Sunday",null,0,{"$f":"D150*'Pass Options'!C$2","v":0}]
["2018-02-26","Monday",null,2,{"$f":"D151*'Pass Options'!C$2","v":4.7}]
["2018-02-27","Tuesday",null,2,{"$f":"D152*'Pass Options'!C$2","v":4.7}]
["2018-02-28","Wednesday",null,2,{"$f":"D153*'Pass Options'!C$2","v":4.7}]
["2018-03-01","Thursday",null,2,{"$f":"D154*'Pass Options'!C$2","v":4.7}]
["2018-03-02","Friday",null,2,{"$f":"D155*'Pass Options'!C$2","v":4.7}]
["2018-03-03","Saturday",null,0,{"$f":"D156*'Pass Options'!C$2","v":0}]
["2018-03-04","Sunday",null,0,{"$f":"D157*'Pass Options'!C$2","v":0}]
["2018-03-05","Monday",null,2,{"$f":"D158*'Pass Options'!C$2","v":4.7}]
["2018-03-06","Tuesday",null,2,{"$f":"D159*'Pass Options'!C$2","v":4.7}]
["2018-03-07","Wednesday",null,2,{"$f":"D160*'Pass Options'!C$2","v":4.7}]
["2018-03-08","Thursday",null,2,{"$f":"D161*'Pass Options'!C$2","v":4.7}]
["2018-03-09","Friday",null,2,{"$f":"D162*'Pass Options'!C$2","v":4.7}]
["2018-03-10","Saturday",null,0,{"$f":"D163*'Pass Options'!C$2","v":0}]
["2018-03-11","Sunday",null,0,{"$f":"D164*'Pass Options'!C$2","v":0}]
["2018-03-12","Monday",null,2,{"$f":"D165*'Pass Options'!C$2","v":4.7}]
["2018-03-13","Tuesday",null,2,{"$f":"D166*'Pass Options'!C$2","v":4.7}]
["2018-03-14","Wednesday",null,2,{"$f":"D167*'Pass Options'!C$2","v":4.7}]
["2018-03-15","Thursday",null,2,{"$f":"D168*'Pass Options'!C$2","v":4.7}]
["2018-03-16","Friday",null,2,{"$f":"D169*'Pass Options'!C$2","v":4.7}]
["2018-03-17","Saturday",null,0,{"$f":"D170*'Pass Options'!C$2","v":0}]
["2018-03-18","Sunday",null,0,{"$f":"D171*'Pass Options'!C$2","v":0}]
["2018-03-19","Monday",null,2,{"$f":"D172*'Pass Options'!C$2","v":4.7}]
["2018-03-20","Tuesday",null,2,{"$f":"D173*'Pass Options'!C$2","v":4.7}]
["2018-03-21","Wednesday",null,2,{"$f":"D174*'Pass Options'!C$2","v":4.7}]
["2018-03-22","Thursday",null,2,{"$f":"D175*'Pass Options'!C$2","v":4.7}]
["2018-03-23","Friday",null,2,{"$f":"D176*'Pass Options'!C$2","v":4.7}]
["2018-03-24","Saturday",null,0,{"$f":"D177*'Pass Options'!C$2","v":0}]
["2018-03-25","Sunday",null,0,{"$f":"D178*'Pass Options'!C$2","v":0}]
["2018-03-26","Monday",null,2,{"$f":"D179*'Pass Options'!C$2","v":4.7}]
["2018-03-27","Tuesday",null,2,{"$f":"D180*'Pass Options'!C$2","v":4.7}]
["2018-03-28","Wednesday",null,2,{"$f":"D181*'Pass Options'!C$2","v":4.7}]
["2018-03-29","Thursday",null,2,{"$f":"D182*'Pass Options'!C$2","v":4.7}]
["2018-03-30","Friday","Good Friday",0,{"$f":"D183*'Pass Options'!C$2","v":0}]
["2018-03-31","Saturday",null,0,{"$f":"D184*'Pass Options'!C$2","v":0}]
["2018-04-01","Sunday",null,0,{"$f":"D185*'Pass Options'!C$2","v":0}]
["2018-04-02","Monday",null,2,{"$f":"D186*'Pass Options'!C$2","v":4.7}]
["2018-04-03","Tuesday",null,2,{"$f":"D187*'Pass Options'!C$2","v":4.7}]
["2018-04-04","Wednesday",null,2,{"$f":"D188*'Pass Options'!C$2","v":4.7}]
["2018-04-05","Thursday",null,2,{"$f":"D189*'Pass Options'!C$2","v":4.7}]
["2018-04-06","Friday",null,2,{"$f":"D190*'Pass Options'!C$2","v":4.7}]
["2018-04-07","Saturday",null,0,{"$f":"D191*'Pass Options'!C$2","v":0}]
["2018-04-08","Sunday",null,0,{"$f":"D192*'Pass Options'!C$2","v":0}]
["2018-04-09","Monday",null,2,{"$f":"D193*'Pass Options'!C$2","v":4.7}]
["2018-04-10","Tuesday",null,2,{"$f":"D194*'Pass Options'!C$2","v":4.7}]
["2018-04-11","Wednesday",null,2,{"$f":"D195*'Pass Options'!C$2","v":4.7}]
["2018-04-12","Thursday",null,2,{"$f":"D196*'Pass Options'!C$2","v":4.7}]
["2018-04-13",{"$f":"TEXT(A197,\"dddd\")","v":"Friday"},null,2,{"$f":"D197*'Pass Options'!C$2","v":4.7}]
["2018-04-14","Saturday",null,0,{"$f":"D198*'Pass Options'!C$2","v":0}]
["2018-04-15","Sunday",null,0,{"$f":"D199*'Pass Options'!C$2","v":0}]
["2018-04-16","Monday",null,2,{"$f":"D200*'Pass Options'!C$2","v":4.7}]
["2018-04-17","Tuesday",null,2,{"$f":"D201*'Pass Options'!C$2","v":4.7}]
["2018-04-18","Wednesday",null,2,{"$f":"D202*'Pass Options'!C$2","v":4.7}]
["2018-04-19","Thursday",null,2,{"$f":"D203*'Pass Options'!C$2","v":4.7}]
["2018-04-20","Friday",null,2,{"$f":"D204*'Pass Options'!C$2","v":4.7}]
["2018-04-21","Saturday",null,0,{"$f":"D205*'Pass Options'!C$2","v":0}]
["2018-04-22","Sunday",null,0,{"$f":"D206*'Pass Options'!C$2","v":0}]
["2018-04-23","Monday",null,2,{"$f":"D207*'Pass Options'!C$2","v":4.7}]
["2018-04-24","Tuesday",null,2,{"$f":"D208*'Pass Options'!C$2","v":4.7}]
["2018-04-25","Wednesday",null,2,{"$f":"D209*'Pass Options'!C$2","v":4.7}]
["2018-04-26","Thursday",null,2,{"$f":"D210*'Pass Options'!C$2","v":4.7}]
["2018-04-27","Friday",null,2,{"$f":"D211*'Pass Options'!C$2","v":4.7}]
["2018-04-28","Saturday",null,0,{"$f":"D212*'Pass Options'!C$2","v":0}]
["2018-04-29","Sunday",null,0,{"$f":"D213*'Pass Options'!C$2","v":0}]
["2018-04-30","Monday",null,2,{"$f":"D214*'Pass Options'!C$2","v":4.7}]

{"sheet":"Pass Options","index":1,"n_rows":11,"n_cols":5,"rows_kept":11,"cut":false,"hidden":false,"merged":[]}
["Pass","Pass Cost","Trip Cost","Length","Units"]
["ecash",0,2.35,1,"day"]
["24 hour e-pass",8.6999999999999993,0,1,"day"]
["3 day e-pass",17.649999999999999,0,3,"day"]
["5 day e-pass",21.15,0,5,"day"]
["7 day e-pass",23.5,0,7,"day"]
["14 day e-pass",43.5,0,14,"day"]
["21 day e-pass",64.650000000000006,0,21,"day"]
["28 day e-pass",83.45,0,28,"day"]
["Monthly e-pass",90.5,0,1,"month"]
["None",0,1000,1,"day"]

{"sheet":"Solutions","index":2,"n_rows":215,"n_cols":427,"rows_kept":215,"cut":false,"hidden":false,"merged":[]}
[]
[]
[null,null,null,null,null,"2017-10-02",null,"2017-10-03",null,"2017-10-04",null,"2017-10-05",null,"2017-10-06",null,"2017-10-07",null,"2017-10-08",null,"2017-10-09",null,"2017-10-10",null,"2017-10-11",null,"2017-10-12",null,"2017-10-13",null,"2017-10-14",null,"2017-10-15",null,"2017-10-16",null,"2017-10-17",null,"2017-10-18",null,"2017-10-19",null,"2017-10-20",null,"2017-10-21",null,"2017-10-22",null,"2017-10-23",null,"2017-10-24",null,"2017-10-25",null,"2017-10-26",null,"2017-10-27",null,"2017-10-28",null,"2017-10-29",null,"2017-10-30",null,"2017-10-31",null,"2017-11-01",null,"2017-11-02",null,"2017-11-03",null,"2017-11-04",null,"2017-11-05",null,"2017-11-06",null,"2017-11-07",null,"2017-11-08",null,"2017-11-09",null,"2017-11-10",null,"2017-11-11",null,"2017-11-12",null,"2017-11-13",null,"2017-11-14",null,"2017-11-15",null,"2017-11-16",null,"2017-11-17",null,"2017-11-18",null,"2017-11-19",null,"2017-11-20",null,"2017-11-21",null,"2017-11-22",null,"2017-11-23",null,"2017-11-24",null,"2017-11-25",null,"2017-11-26",null,"2017-11-27",null,"2017-11-28",null,"2017-11-29",null,"2017-11-30",null,"2017-12-01",null,"2017-12-02",null,"2017-12-03",null,"2017-12-04",null,"2017-12-05",null,"2017-12-06",null,"2017-12-07",null,"2017-12-08",null,"2017-12-09",null,"2017-12-10",null,"2017-12-11",null,"2017-12-12",null,"2017-12-13",null,"2017-12-14",null,"2017-12-15",null,"2017-12-16",null,"2017-12-17",null,"2017-12-18",null,"2017-12-19",null,"2017-12-20",null,"2017-12-21",null,"2017-12-22",null,"2017-12-23",null,"2017-12-24",null,"2017-12-25",null,"2017-12-26",null,"2017-12-27",null,"2017-12-28",null,"2017-12-29",null,"2017-12-30",null,"2017-12-31",null,"2018-01-01",null,"2018-01-02",null,"2018-01-03",null,"2018-01-04",null,"2018-01-05",null,"2018-01-06",null,"2018-01-07",null,"2018-01-08",null,"2018-01-09",null,"2018-01-10",null,"2018-01-11",null,"2018-01-12",null,"2018-01-13",null,"2018-01-14",null,"2018-01-15",null,"2018-01-16",null,"2018-01-17",null,"2018-01-18",null,"2018-01-19",null,"2018-01-20",null,"2018-01-21",null,"2018-01-22",null,"2018-01-23",null,"2018-01-24",null,"2018-01-25",null,"2018-01-26",null,"2018-01-27",null,"2018-01-28",null,"2018-01-29",null,"2018-01-30",null,"2018-01-31",null,"2018-02-01",null,"2018-02-02",null,"2018-02-03",null,"2018-02-04",null,"2018-02-05",null,"2018-02-06",null,"2018-02-07",null,"2018-02-08",null,"2018-02-09",null,"2018-02-10",null,"2018-02-11",null,"2018-02-12",null,"2018-02-13",null,"2018-02-14",null,"2018-02-15",null,"2018-02-16",null,"2018-02-17",null,"2018-02-18",null,"2018-02-19",null,"2018-02-20",null,"2018-02-21",null,"2018-02-22",null,"2018-02-23",null,"2018-02-24",null,"2018-02-25",null,"2018-02-26",null,"2018-02-27",null,"2018-02-28",null,"2018-03-01",null,"2018-03-02",null,"2018-03-03",null,"2018-03-04",null,"2018-03-05",null,"2018-03-06",null,"2018-03-07",null,"2018-03-08",null,"2018-03-09",null,"2018-03-10",null,"2018-03-11",null,"2018-03-12",null,"2018-03-13",null,"2018-03-14",null,"2018-03-15",null,"2018-03-16",null,"2018-03-17",null,"2018-03-18",null,"2018-03-19",null,"2018-03-20",null,"2018-03-21",null,"2018-03-22",null,"2018-03-23",null,"2018-03-24",null,"2018-03-25",null,"2018-03-26",null,"2018-03-27",null,"2018-03-28",null,"2018-03-29",null,"2018-03-30",null,"2018-03-31",null,"2018-04-01",null,"2018-04-02",null,"2018-04-03",null,"2018-04-04",null,"2018-04-05",null,"2018-04-06",null,"2018-04-07",null,"2018-04-08",null,"2018-04-09",null,"2018-04-10",null,"2018-04-11",null,"2018-04-12",null,"2018-04-13",null,"2018-04-14",null,"2018-04-15",null,"2018-04-16",null,"2018-04-17",null,"2018-04-18",null,"2018-04-19",null,"2018-04-20",null,"2018-04-21",null,"2018-04-22",null,"2018-04-23",null,"2018-04-24",null,"2018-04-25",null,"2018-04-26",null,"2018-04-27",null,"2018-04-28",null,"2018-04-29",null,"2018-04-30"]
["Date","Day","Comment","Trips",null,{"$f":"SUM( $F$5:$F$215)","v":0},null,{"$f":"SUM( $H$5:$H$215)","v":0},null,{"$f":"SUM( $J$5:$J$215)","v":0},null,{"$f":"SUM( $L$5:$L$215)","v":0},null,{"$f":"SUM( $N$5:$N$215)","v":0},null,{"$f":"SUM( $P$5:$P$215)","v":0},null,{"$f":"SUM( $R$5:$R$215)","v":0},null,{"$f":"SUM( $T$5:$T$215)","v":0},null,{"$f":"SUM( $V$5:$V$215)","v":4.7},null,{"$f":"SUM( $X$5:$X$215)","v":9.4},null,{"$f":"SUM( $Z$5:$Z$215)","v":14.100000000000001},null,{"$f":"SUM( $AB$5:$AB$215)","v":18.8},null,{"$f":"SUM( $AD$5:$AD$215)","v":18.8},null,{"$f":"SUM( $AF$5:$AF$215)","v":18.8},null,{"$f":"SUM( $AH$5:$AH$215)","v":23.5},null,{"$f":"SUM( $AJ$5:$AJ$215)","v":28.2},null,{"$f":"SUM( $AL$5:$AL$215)","v":32.9},null,{"$f":"SUM( $AN$5:$AN$215)","v":37.6},null,{"$f":"SUM( $AP$5:$AP$215)","v":39.950000000000003},null,{"$f":"SUM( $AR$5:$AR$215)","v":39.950000000000003},null,{"$f":"SUM( $AT$5:$AT$215)","v":39.950000000000003},null,{"$f":"SUM( $AV$5:$AV$215)","v":43.5},null,{"$f":"SUM( $AX$5:$AX$215)","v":48.2},null,{"$f":"SUM( $AZ$5:$AZ$215)","v":52.9},null,{"$f":"SUM( $BB$5:$BB$215)","v":57.6},null,{"$f":"SUM( $BD$5:$BD$215)","v":61.1},null,{"$f":"SUM( $BF$5:$BF$215)","v":61.1},null,{"$f":"SUM( $BH$5:$BH$215)","v":61.1},null,{"$f":"SUM( $BJ$5:$BJ$215)","v":64.650000000000006},null,{"$f":"SUM( $BL$5:$BL$215)","v":69.350000000000009},null,{"$f":"SUM( $BN$5:$BN$215)","v":74.050000000000011},null,{"$f":"SUM( $BP$5:$BP$215)","v":78.75},null,{"$f":"SUM( $BR$5:$BR$215)","v":82.25},null,{"$f":"SUM( $BT$5:$BT$215)","v":82.25},null,{"$f":"SUM( $BV$5:$BV$215)","v":82.25},null,{"$f":"SUM( $BX$5:$BX$215)","v":83.45},null,{"$f":"SUM( $BZ$5:$BZ$215)","v":88.15},null,{"$f":"SUM( $CB$5:$CB$215)","v":90.5},null,{"$f":"SUM( $CD$5:$CD$215)","v":95.2},null,{"$f":"SUM( $CF$5:$CF$215)","v":99.9},null,{"$f":"SUM( $CH$5:$CH$215)","v":99.9},null,{"$f":"SUM( $CJ$5:$CJ$215)","v":99.9},null,{"$f":"SUM( $CL$5:$CL$215)","v":99.9},null,{"$f":"SUM( $CN$5:$CN$215)","v":104.60000000000001},null,{"$f":"SUM( $CP$5:$CP$215)","v":109.30000000000001},null,{"$f":"SUM( $CR$5:$CR$215)","v":114.00000000000001},null,{"$f":"SUM( $CT$5:$CT$215)","v":118.70000000000002},null,{"$f":"SUM( $CV$5:$CV$215)","v":118.70000000000002},null,{"$f":"SUM( $CX$5:$CX$215)","v":118.70000000000002},null,{"$f":"SUM( $CZ$5:$CZ$215)","v":123.4},null,{"$f":"SUM( $DB$5:$DB$215)","v":128.1},null,{"$f":"SUM( $DD$5:$DD$215)","v":132.79999999999998},null,{"$f":"SUM( $DF$5:$DF$215)","v":137.49999999999997},null,{"$f":"SUM( $DH$5:$DH$215)","v":139.85000000000002},null,{"$f":"SUM( $DJ$5:$DJ$215)","v":139.85000000000002},null,{"$f":"SUM( $DL$5:$DL$215)","v":139.85000000000002},null,{"$f":"SUM( $DN$5:$DN$215)","v":143.4},null,{"$f":"SUM( $DP$5:$DP$215)","v":148.1},null,{"$f":"SUM( $DR$5:$DR$215)","v":152.79999999999998},null,{"$f":"SUM( $DT$5:$DT$215)","v":157.49999999999997},null,{"$f":"SUM( $DV$5:$DV$215)","v":161.00000000000003},null,{"$f":"SUM( $DX$5:$DX$215)","v":161.00000000000003},null,{"$f":"SUM( $DZ$5:$DZ$215)","v":161.00000000000003},null,{"$f":"SUM( $EB$5:$EB$215)","v":164.55},null,{"$f":"SUM( $ED$5:$ED$215)","v":169.25},null,{"$f":"SUM( $EF$5:$EF$215)","v":173.95},null,{"$f":"SUM( $EH$5:$EH$215)","v":178.64999999999998},null,{"$f":"SUM( $EJ$5:$EJ$215)","v":182.15000000000003},null,{"$f":"SUM( $EL$5:$EL$215)","v":182.15000000000003},null,{"$f":"SUM( $EN$5:$EN$215)","v":182.15000000000003},null,{"$f":"SUM( $EP$5:$EP$215)","v":183.35000000000002},null,{"$f":"SUM( $ER$5:$ER$215)","v":188.05},null,{"$f":"SUM( $ET$5:$ET$215)","v":192.75},null,{"$f":"SUM( $EV$5:$EV$215)","v":197.45},null,{"$f":"SUM( $EX$5:$EX$215)","v":202.14999999999998},null,{"$f":"SUM( $EZ$5:$EZ$215)","v":202.14999999999998},null,{"$f":"SUM( $FB$5:$FB$215)","v":202.14999999999998},null,{"$f":"SUM( $FD$5:$FD$215)","v":206.84999999999997},null,{"$f":"SUM( $FF$5:$FF$215)","v":211.54999999999995},null,{"$f":"SUM( $FH$5:$FH$215)","v":216.24999999999994},null,{"$f":"SUM( $FJ$5:$FJ$215)","v":220.94999999999993},null,{"$f":"SUM( $FL$5:$FL$215)","v":223.29999999999998},null,{"$f":"SUM( $FN$5:$FN$215)","v":223.29999999999998},null,{"$f":"SUM( $FP$5:$FP$215)","v":223.29999999999998},null,{"$f":"SUM( $FR$5:$FR$215)","v":223.29999999999998},null,{"$f":"SUM( $FT$5:$FT$215)","v":223.29999999999998},null,{"$f":"SUM( $FV$5:$FV$215)","v":227.99999999999997},null,{"$f":"SUM( $FX$5:$FX$215)","v":232.69999999999996},null,{"$f":"SUM( $FZ$5:$FZ$215)","v":237.39999999999995},null,{"$f":"SUM( $GB$5:$GB$215)","v":237.39999999999995},null,{"$f":"SUM( $GD$5:$GD$215)","v":237.39999999999995},null,{"$f":"SUM( $GF$5:$GF$215)","v":237.39999999999995},null,{"$f":"SUM( $GH$5:$GH$215)","v":242.09999999999994},null,{"$f":"SUM( $GJ$5:$GJ$215)","v":246.79999999999993},null,{"$f":"SUM( $GL$5:$GL$215)","v":251.49999999999991},null,{"$f":"SUM( $GN$5:$GN$215)","v":256.19999999999993},null,{"$f":"SUM( $GP$5:$GP$215)","v":256.19999999999993},null,{"$f":"SUM( $GR$5:$GR$215)","v":256.19999999999993},null,{"$f":"SUM( $GT$5:$GT$215)","v":260.89999999999992},null,{"$f":"SUM( $GV$5:$GV$215)","v":265.59999999999991},null,{"$f":"SUM( $GX$5:$GX$215)","v":270.2999999999999},null,{"$f":"SUM( $GZ$5:$GZ$215)","v":274.99999999999989},null,{"$f":"SUM( $HB$5:$HB$215)","v":277.34999999999991},null,{"$f":"SUM( $HD$5:$HD$215)","v":277.34999999999991},null,{"$f":"SUM( $HF$5:$HF$215)","v":277.34999999999991},null,{"$f":"SUM( $HH$5:$HH$215)","v":280.89999999999998},null,{"$f":"SUM( $HJ$5:$HJ$215)","v":285.59999999999991},null,{"$f":"SUM( $HL$5:$HL$215)","v":290.2999999999999},null,{"$f":"SUM( $HN$5:$HN$215)","v":294.99999999999989},null,{"$f":"SUM( $HP$5:$HP$215)","v":298.49999999999989},null,{"$f":"SUM( $HR$5:$HR$215)","v":298.49999999999989},null,{"$f":"SUM( $HT$5:$HT$215)","v":298.49999999999989},null,{"$f":"SUM( $HV$5:$HV$215)","v":302.04999999999995},null,{"$f":"SUM( $HX$5:$HX$215)","v":306.74999999999994},null,{"$f":"SUM( $HZ$5:$HZ$215)","v":311.44999999999993},null,{"$f":"SUM( $IB$5:$IB$215)","v":316.14999999999992},null,{"$f":"SUM( $ID$5:$ID$215)","v":319.64999999999986},null,{"$f":"SUM( $IF$5:$IF$215)","v":319.64999999999986},null,{"$f":"SUM( $IH$5:$IH$215)","v":319.64999999999986},null,{"$f":"SUM( $IJ$5:$IJ$215)","v":320.84999999999997},null,{"$f":"SUM( $IL$5:$IL$215)","v":325.54999999999995},null,{"$f":"SUM( $IN$5:$IN$215)","v":327.9},null,{"$f":"SUM( $IP$5:$IP$215)","v":332.59999999999997},null,{"$f":"SUM( $IR$5:$IR$215)","v":337.29999999999995},null,{"$f":"SUM( $IT$5:$IT$215)","v":337.29999999999995},null,{"$f":"SUM( $IV$5:$IV$215)","v":337.29999999999995},null,{"$f":"SUM( $IX$5:$IX$215)","v":341.99999999999994},null,{"$f":"SUM( $IZ$5:$IZ$215)","v":346.69999999999993},null,{"$f":"SUM( $JB$5:$JB$215)","v":351.39999999999992},null,{"$f":"SUM( $JD$5:$JD$215)","v":356.09999999999991},null,{"$f":"SUM( $JF$5:$JF$215)","v":358.44999999999993},null,{"$f":"SUM( $JH$5:$JH$215)","v":358.44999999999993},null,{"$f":"SUM( $JJ$5:$JJ$215)","v":358.44999999999993},null,{"$f":"SUM( $JL$5:$JL$215)","v":363.14999999999992},null,{"$f":"SUM( $JN$5:$JN$215)","v":367.84999999999991},null,{"$f":"SUM( $JP$5:$JP$215)","v":371.4},null,{"$f":"SUM( $JR$5:$JR$215)","v":376.09999999999997},null,{"$f":"SUM( $JT$5:$JT$215)","v":379.59999999999991},null,{"$f":"SUM( $JV$5:$JV$215)","v":379.59999999999991},null,{"$f":"SUM( $JX$5:$JX$215)","v":379.59999999999991},null,{"$f":"SUM( $JZ$5:$JZ$215)","v":379.59999999999991},null,{"$f":"SUM( $KB$5:$KB$215)","v":384.2999999999999},null,{"$f":"SUM( $KD$5:$KD$215)","v":388.99999999999989},null,{"$f":"SUM( $KF$5:$KF$215)","v":393.69999999999987},null,{"$f":"SUM( $KH$5:$KH$215)","v":398.39999999999986},null,{"$f":"SUM( $KJ$5:$KJ$215)","v":398.39999999999986},null,{"$f":"SUM( $KL$5:$KL$215)","v":398.39999999999986},null,{"$f":"SUM( $KN$5:$KN$215)","v":403.09999999999985},null,{"$f":"SUM( $KP$5:$KP$215)","v":407.79999999999984},null,{"$f":"SUM( $KR$5:$KR$215)","v":411.34999999999997},null,{"$f":"SUM( $KT$5:$KT$215)","v":416.04999999999995},null,{"$f":"SUM( $KV$5:$KV$215)","v":419.54999999999984},null,{"$f":"SUM( $KX$5:$KX$215)","v":419.54999999999984},null,{"$f":"SUM( $KZ$5:$KZ$215)","v":419.54999999999984},null,{"$f":"SUM( $LB$5:$LB$215)","v":423.09999999999991},null,{"$f":"SUM( $LD$5:$LD$215)","v":427.7999999999999},null,{"$f":"SUM( $LF$5:$LF$215)","v":432.49999999999989},null,{"$f":"SUM( $LH$5:$LH$215)","v":437.19999999999987},null,{"$f":"SUM( $LJ$5:$LJ$215)","v":440.69999999999982},null,{"$f":"SUM( $LL$5:$LL$215)","v":440.69999999999982},null,{"$f":"SUM( $LN$5:$LN$215)","v":440.69999999999982},null,{"$f":"SUM( $LP$5:$LP$215)","v":444.24999999999989},null,{"$f":"SUM( $LR$5:$LR$215)","v":448.94999999999987},null,{"$f":"SUM( $LT$5:$LT$215)","v":453.64999999999986},null,{"$f":"SUM( $LV$5:$LV$215)","v":458.34999999999985},null,{"$f":"SUM( $LX$5:$LX$215)","v":461.8499999999998},null,{"$f":"SUM( $LZ$5:$LZ$215)","v":461.8499999999998},null,{"$f":"SUM( $MB$5:$MB$215)","v":461.8499999999998},null,{"$f":"SUM( $MD$5:$MD$215)","v":463.0499999999999},null,{"$f":"SUM( $MF$5:$MF$215)","v":467.74999999999989},null,{"$f":"SUM( $MH$5:$MH$215)","v":472.44999999999987},null,{"$f":"SUM( $MJ$5:$MJ$215)","v":477.14999999999986},null,{"$f":"SUM( $ML$5:$ML$215)","v":481.84999999999985},null,{"$f":"SUM( $MN$5:$MN$215)","v":481.84999999999985},null,{"$f":"SUM( $MP$5:$MP$215)","v":481.84999999999985},null,{"$f":"SUM( $MR$5:$MR$215)","v":486.54999999999984},null,{"$f":"SUM( $MT$5:$MT$215)","v":491.24999999999983},null,{"$f":"SUM( $MV$5:$MV$215)","v":494.79999999999995},null,{"$f":"SUM( $MX$5:$MX$215)","v":499.49999999999994},null,{"$f":"SUM( $MZ$5:$MZ$215)","v":499.49999999999994},null,{"$f":"SUM( $NB$5:$NB$215)","v":499.49999999999994},null,{"$f":"SUM( $ND$5:$ND$215)","v":499.49999999999994},null,{"$f":"SUM( $NF$5:$NF$215)","v":504.19999999999993},null,{"$f":"SUM( $NH$5:$NH$215)","v":508.89999999999992},null,{"$f":"SUM( $NJ$5:$NJ$215)","v":513.59999999999991},null,{"$f":"SUM( $NL$5:$NL$215)","v":518.29999999999995},null,{"$f":"SUM( $NN$5:$NN$215)","v":520.65},null,{"$f":"SUM( $NP$5:$NP$215)","v":520.65},null,{"$f":"SUM( $NR$5:$NR$215)","v":520.65},null,{"$f":"SUM( $NT$5:$NT$215)","v":525.35},null,{"$f":"SUM( $NV$5:$NV$215)","v":530.05000000000007},null,{"$f":"SUM( $NX$5:$NX$215)","v":534.75000000000011},null,{"$f":"SUM( $NZ$5:$NZ$215)","v":539.45000000000016},null,{"$f":"SUM( $OB$5:$OB$215)","v":541.79999999999995},null,{"$f":"SUM( $OD$5:$OD$215)","v":541.79999999999995},null,{"$f":"SUM( $OF$5:$OF$215)","v":541.79999999999995},null,{"$f":"SUM( $OH$5:$OH$215)","v":546.49999999999989},null,{"$f":"SUM( $OJ$5:$OJ$215)","v":551.19999999999993},null,{"$f":"SUM( $OL$5:$OL$215)","v":555.89999999999986},null,{"$f":"SUM( $ON$5:$ON$215)","v":560.59999999999991},null,{"$f":"SUM( $OP$5:$OP$215)","v":562.94999999999993},null,{"$f":"SUM( $OR$5:$OR$215)","v":562.94999999999993},null,{"$f":"SUM( $OT$5:$OT$215)","v":562.94999999999993},null,{"$f":"SUM( $OV$5:$OV$215)","v":567.65},null,{"$f":"SUM( $OX$5:$OX$215)","v":572.35},null,{"$f":"SUM( $OZ$5:$OZ$215)","v":577.05000000000007},null,{"$f":"SUM( $PB$5:$PB$215)","v":581.75000000000011},null,{"$f":"SUM( $PD$5:$PD$215)","v":582.94999999999993},null,{"$f":"SUM( $PF$5:$PF$215)","v":582.94999999999993},null,{"$f":"SUM( $PH$5:$PH$215)","v":582.94999999999993},null,{"$f":"SUM( $PJ$5:$PJ$215)","v":587.65}]
["2017-10-02",{"$f":"TEXT(A5,\"dddd\")","v":"Monday"},null,0,null,0,"ecash",0,"ecash",0,"ecash",0,"ecash",0,"ecash",0,"ecash",0,"ecash",0,"ecash",0,"ecash",0,"ecash",0,"ecash",0,"ecash",0,"ecash",0,"ecash",0,"ecash",0,"ecash",0,"ecash",0,"ecash",0,"ecash",0,"ecash",0,"ecash",0,"ecash",0,"ecash",0,"ecash",0,"ecash",0,"ecash",0,"ecash",0,"ecash",0,"ecash",0,"ecash",0,"ecash",0,"ecash",0,"ecash",0,"ecash",0,"ecash",0,"ecash",0,"ecash",0,"ecash",0,"ecash",0,"ecash",0,"ecash",0,"ecash",0,"ecash",0,"ecash",0,"ecash",0,"ecash",0,"ecash",0,"ecash",0,"ecash",0,"ecash",0,"ecash",0,"ecash",0,"ecash",0,"ecash",0,"ecash",0,"ecash",0,"ecash",0,"ecash",0,"ecash",0,"ecash",0,"ecash",0,"ecash",0,"ecash",0,"ecash",0,"ecash",0,"ecash",0,"ecash",0,"ecash",0,"ecash",0,"ecash",0,"ecash",0,"ecash",0,"ecash",0,"ecash",0,"ecash",0,"ecash",0,"ecash",0,"ecash",0,"ecash",0,"ecash",0,"ecash",0,"ecash",0,"ecash",0,"ecash",0,"ecash",0,"ecash",0,"ecash",0,"ecash",0,"ecash",0,"ecash",0,"ecash",0,"ecash",0,"ecash",0,"ecash",0,"ecash",0,"ecash",0,"ecash",0,"ecash",0,"ecash",0,"ecash",0,"ecash",0,"ecash",0,"ecash",0,"ecash",0,"ecash",0,"ecash",0,"ecash",0,"ecash",0,"ecash",0,"ecash",0,"ecash",0,"ecash",0,"ecash",0,"ecash",0,"ecash",0,"ecash",0,"ecash",0,"ecash",0,"ecash",0,"ecash",0,"ecash",0,"ecash",0,"ecash",0,"ecash",0,"ecash",0,"ecash",0,"ecash",0,"ecash",0,"ecash",0,"ecash",0,"ecash",0,"ecash",0,"ecash",0,"ecash",0,"ecash",0,"ecash",0,"ecash",0,"ecash",0,"ecash",0,"ecash",0,"ecash",0,"ecash",0,"ecash",0,"ecash",0,"ecash",0,"ecash",0,"ecash",0,"ecash",0,"ecash",0,"ecash",0,"ecash",0,"ecash",0,"ecash",0,"ecash",0,"ecash",0,"ecash",0,"ecash",0,"ecash",0,"ecash",0,"ecash",0,"ecash",0,"ecash",0,"ecash",0,"ecash",0,"ecash",0,"ecash",0,"ecash",0,"ecash",0,"ecash",0,"ecash",0,"ecash",0,"ecash",0,"ecash",0,"ecash",0,"ecash",0,"ecash",0,"ecash",0,"ecash",0,"ecash",0,"ecash",0,"ecash",0,"ecash",0,"ecash",0,"ecash",0,"ecash",0,"ecash",0,"ecash",0,"ecash",0,"ecash",0,"ecash",0,"ecash",0,"ecash",0,"ecash",0,"ecash",0,"ecash",0,"ecash",0,"ecash",0,"ecash",0,"ecash",0,"ecash",0,"ecash",0,"ecash",0,"ecash",0,"ecash",0,"ecash",0,"ecash",0,"ecash",0,"ecash",0,"ecash",0,"ecash",0,"ecash"]
["2017-10-03",{"$f":"TEXT(A6,\"dddd\")","v":"Tuesday"},null,0,null,null,null,0,"ecash",0,"ecash",0,"ecash",0,"ecash",0,"ecash",0,"ecash",0,"ecash",0,"ecash",0,"ecash",0,"ecash",0,"ecash",0,"ecash",0,"ecash",0,"ecash",0,"ecash",0,"ecash",0,"ecash",0,"ecash",0,"ecash",0,"ecash",0,"ecash",0,"ecash",0,"ecash",0,"ecash",0,"ecash",0,"ecash",0,"ecash",0,"ecash",0,"ecash",0,"ecash",0,"ecash",0,"ecash",0,"ecash",0,"ecash",0,"ecash",0,"ecash",0,"ecash",0,"ecash",0,"ecash",0,"ecash",0,"ecash",0,"ecash",0,"ecash",0,"ecash",0,"ecash",0,"ecash",0,"ecash",0,"ecash",0,"ecash",0,"ecash",0,"ecash",0,"ecash",0,"ecash",0,"ecash",0,"ecash",0,"ecash",0,"ecash",0,"ecash",0,"ecash",0,"ecash",0,"ecash",0,"ecash",0,"ecash",0,"ecash",0,"ecash",0,"ecash",0,"ecash",0,"ecash",0,"ecash",0,"ecash",0,"ecash",0,"ecash",0,"ecash",0,"ecash",0,"ecash",0,"ecash",0,"ecash",0,"ecash",0,"ecash",0,"ecash",0,"ecash",0,"ecash",0,"ecash",0,"ecash",0,"ecash",0,"ecash",0,"ecash",0,"ecash",0,"ecash",0,"ecash",0,"ecash",0,"ecash",0,"ecash",0,"ecash",0,"ecash",0,"ecash",0,"ecash",0,"ecash",0,"ecash",0,"ecash",0,"ecash",0,"ecash",0,"ecash",0,"ecash",0,"ecash",0,"ecash",0,"ecash",0,"ecash",0,"ecash",0,"ecash",0,"ecash",0,"ecash",0,"ecash",0,"ecash",0,"ecash",0,"ecash",0,"ecash",0,"ecash",0,"ecash",0,"ecash",0,"ecash",0,"ecash",0,"ecash",0,"ecash",0,"ecash",0,"ecash",0,"ecash",0,"ecash",0,"ecash",0,"ecash",0,"ecash",0,"ecash",0,"ecash",0,"ecash",0,"ecash",0,"ecash",0,"ecash",0,"ecash",0,"ecash",0,"ecash",0,"ecash",0,"ecash",0,"ecash",0,"ecash",0,"ecash",0,"ecash",0,"ecash",0,"ecash",0,"ecash",0,"ecash",0,"ecash",0,"ecash",0,"ecash",0,"ecash",0,"ecash",0,"ecash",0,"ecash",0,"ecash",0,"ecash",0,"ecash",0,"ecash",0,"ecash",0,"ecash",0,"ecash",0,"ecash",0,"ecash",0,"ecash",0,"ecash",0,"ecash",0,"ecash",0,"ecash",0,"ecash",0,"ecash",0,"ecash",0,"ecash",0,"ecash",0,"ecash",0,"ecash",0,"ecash",0,"ecash",0,"ecash",0,"ecash",0,"ecash",0,"ecash",0,"ecash",0,"ecash",0,"ecash",0,"ecash",0,"ecash",0,"ecash",0,"ecash",0,"ecash",0,"ecash",0,"ecash",0,"ecash",0,"ecash",0,"ecash",0,"ecash",0,"ecash",0,"ecash",0,"ecash",0,"ecash",0,"ecash",0,"ecash",0,"ecash",0,"ecash",0,"ecash",0,"ecash",0,"ecash",0,"ecash"]
["2017-10-04","Wednesday",null,0,null,null,null,null,null,0,"ecash",0,"ecash",0,"ecash",0,"ecash",0,"ecash",0,"ecash",0,"ecash",0,"ecash",0,"ecash",0,"ecash",0,"ecash",0,"ecash",0,"ecash",0,"ecash",0,"ecash",0,"ecash",0,"ecash",0,"ecash",0,"ecash",0,"ecash",0,"ecash",0,"ecash",0,"ecash",0,"ecash",0,"ecash",0,"ecash",0,"ecash",0,"ecash",0,"ecash",0,"ecash",0,"ecash",0,"ecash",0,"ecash",0,"ecash",0,"ecash",0,"ecash",0,"ecash",0,"ecash",0,"ecash",0,"ecash",0,"ecash",0,"ecash",0,"ecash",0,"ecash",0,"ecash",0,"ecash",0,"ecash",0,"ecash",0,"ecash",0,"ecash",0,"ecash",0,"ecash",0,"ecash",0,"ecash",0,"ecash",0,"ecash",0,"ecash",0,"ecash",0,"ecash",0,"ecash",0,"ecash",0,"ecash",0,"ecash",0,"ecash",0,"ecash",0,"ecash",0,"ecash",0,"ecash",0,"ecash",0,"ecash",0,"ecash",0,"ecash",0,"ecash",0,"ecash",0,"ecash",0,"ecash",0,"ecash",0,"ecash",0,"ecash",0,"ecash",0,"ecash",0,"ecash",0,"ecash",0,"ecash",0,"ecash",0,"ecash",0,"ecash",0,"ecash",0,"ecash",0,"ecash",0,"ecash",0,"ecash",0,"ecash",0,"ecash",0,"ecash",0,"ecash",0,"ecash",0,"ecash",0,"ecash",0,"ecash",0,"ecash",0,"ecash",0,"ecash",0,"ecash",0,"ecash",0,"ecash",0,"ecash",0,"ecash",0,"ecash",0,"ecash",0,"ecash",0,"ecash",0,"ecash",0,"ecash",0,"ecash",0,"ecash",0,"ecash",0,"ecash",0,"ecash",0,"ecash",0,"ecash",0,"ecash",0,"ecash",0,"ecash",0,"ecash",0,"ecash",0,"ecash",0,"ecash",0,"ecash",0,"ecash",0,"ecash",0,"ecash",0,"ecash",0,"ecash",0,"ecash",0,"ecash",0,"ecash",0,"ecash",0,"ecash",0,"ecash",0,"ecash",0,"ecash",0,"ecash",0,"ecash",0,"ecash",0,"ecash",0,"ecash",0,"ecash",0,"ecash",0,"ecash",0,"ecash",0,"ecash",0,"ecash",0,"ecash",0,"ecash",0,"ecash",0,"ecash",0,"ecash",0,"ecash",0,"ecash",0,"ecash",0,"ecash",0,"ecash",0,"ecash",0,"ecash",0,"ecash",0,"ecash",0,"ecash",0,"ecash",0,"ecash",0,"ecash",0,"ecash",0,"ecash",0,"ecash",0,"ecash",0,"ecash",0,"ecash",0,"ecash",0,"ecash",0,"ecash",0,"ecash",0,"ecash",0,"ecash",0,"ecash",0,"ecash",0,"ecash",0,"ecash",0,"ecash",0,"ecash",0,"ecash",0,"ecash",0,"ecash",0,"ecash",0,"ecash",0,"ecash",0,"ecash",0,"ecash",0,"ecash",0,"ecash",0,"ecash",0,"ecash",0,"ecash",0,"ecash",0,"ecash",0,"ecash",0,"ecash",0,"ecash",0,"ecash",0,"ecash"]
["2017-10-05","Thursday",null,0,null,null,null,null,null,null,null,0,"ecash",0,"ecash",0,"ecash",0,"ecash",0,"ecash",0,"ecash",0,"ecash",0,"ecash",0,"ecash",0,"ecash",0,"ecash",0,"ecash",0,"ecash",0,"ecash",0,"ecash",0,"ecash",0,"ecash",0,"ecash",0,"ecash",0,"ecash",0,"ecash",0,"ecash",0,"ecash",0,"ecash",0,"ecash",0,"ecash",0,"ecash",0,"ecash",0,"ecash",0,"ecash",0,"ecash",0,"ecash",0,"ecash",0,"ecash",0,"ecash",0,"ecash",0,"ecash",0,"ecash",0,"ecash",0,"ecash",0,"ecash",0,"ecash",0,"ecash",0,"ecash",0,"ecash",0,"ecash",0,"ecash",0,"ecash",0,"ecash",0,"ecash",0,"ecash",0,"ecash",0,"ecash",0,"ecash",0,"ecash",0,"ecash",0,"ecash",0,"ecash",0,"ecash",0,"ecash",0,"ecash",0,"ecash",0,"ecash",0,"ecash",0,"ecash",0,"ecash",0,"ecash",0,"ecash",0,"ecash",0,"ecash",0,"ecash",0,"ecash",0,"ecash",0,"ecash",0,"ecash",0,"ecash",0,"ecash",0,"ecash",0,"ecash",0,"ecash",0,"ecash",0,"ecash",0,"ecash",0,"ecash",0,"ecash",0,"ecash",0,"ecash",0,"ecash",0,"ecash",0,"ecash",0,"ecash",0,"ecash",0,"ecash",0,"ecash",0,"ecash",0,"ecash",0,"ecash",0,"ecash",0,"ecash",0,"ecash",0,"ecash",0,"ecash",0,"ecash",0,"ecash",0,"ecash",0,"ecash",0,"ecash",0,"ecash",0,"ecash",0,"ecash",0,"ecash",0,"ecash",0,"ecash",0,"ecash",0,"ecash",0,"ecash",0,"ecash",0,"ecash",0,"ecash",0,"ecash",0,"ecash",0,"ecash",0,"ecash",0,"ecash",0,"ecash",0,"ecash",0,"ecash",0,"ecash",0,"ecash",0,"ecash",0,"ecash",0,"ecash",0,"ecash",0,"ecash",0,"ecash",0,"ecash",0,"ecash",0,"ecash",0,"ecash",0,"ecash",0,"ecash",0,"ecash",0,"ecash",0,"ecash",0,"ecash",0,"ecash",0,"ecash",0,"ecash",0,"ecash",0,"ecash",0,"ecash",0,"ecash",0,"ecash",0,"ecash",0,"ecash",0,"ecash",0,"ecash",0,"ecash",0,"ecash",0,"ecash",0,"ecash",0,"ecash",0,"ecash",0,"ecash",0,"ecash",0,"ecash",0,"ecash",0,"ecash",0,"ecash",0,"ecash",0,"ecash",0,"ecash",0,"ecash",0,"ecash",0,"ecash",0,"ecash",0,"ecash",0,"ecash",0,"ecash",0,"ecash",0,"ecash",0,"ecash",0,"ecash",0,"ecash",0,"ecash",0,"ecash",0,"ecash",0,"ecash",0,"ecash",0,"ecash",0,"ecash",0,"ecash",0,"ecash",0,"ecash",0,"ecash",0,"ecash",0,"ecash",0,"ecash",0,"ecash",0,"ecash",0,"ecash",0,"ecash",0,"ecash",0,"ecash",0,"ecash",0,"ecash",0,"ecash",0,"ecash"]
["2017-10-06","Friday",null,0,null,null,null,null,null,null,null,null,null,0,"ecash",0,"ecash",0,"ecash",0,"ecash",0,"ecash",0,"ecash",0,"ecash",0,"ecash",0,"ecash",0,"ecash",0,"ecash",0,"ecash",0,"ecash",0,"ecash",0,"ecash",0,"ecash",0,"ecash",0,"ecash",0,"ecash",0,"ecash",0,"ecash",0,"ecash",0,"ecash",0,"ecash",0,"ecash",0,"ecash",0,"ecash",0,"ecash",0,"ecash",0,"ecash",0,"ecash",0,"ecash",0,"ecash",0,"ecash",0,"ecash",0,"ecash",0,"ecash",0,"ecash",0,"ecash",0,"ecash",0,"ecash",0,"ecash",0,"ecash",0,"ecash",0,"ecash",0,"ecash",0,"ecash",0,"ecash",0,"ecash",0,"ecash",0,"ecash",0,"ecash",0,"ecash",0,"ecash",0,"ecash",0,"ecash",0,"ecash",0,"ecash",0,"ecash",0,"ecash",0,"ecash",0,"ecash",0,"ecash",0,"ecash",0,"ecash",0,"ecash",0,"ecash",0,"ecash",0,"ecash",0,"ecash",0,"ecash",0,"ecash",0,"ecash",0,"ecash",0,"ecash",0,"ecash",0,"ecash",0,"ecash",0,"ecash",0,"ecash",0,"ecash",0,"ecash",0,"ecash",0,"ecash",0,"ecash",0,"ecash",0,"ecash",0,"ecash",0,"ecash",0,"ecash",0,"ecash",0,"ecash",0,"ecash",0,"ecash",0,"ecash",0,"ecash",0,"ecash",0,"ecash",0,"ecash",0,"ecash",0,"ecash",0,"ecash",0,"ecash",0,"ecash",0,"ecash",0,"ecash",0,"ecash",0,"ecash",0,"ecash",0,"ecash",0,"ecash",0,"ecash",0,"ecash",0,"ecash",0,"ecash",0,"ecash",0,"ecash",0,"ecash",0,"ecash",0,"ecash",0,"ecash",0,"ecash",0,"ecash",0,"ecash",0,"ecash",0,"ecash",0,"ecash",0,"ecash",0,"ecash",0,"ecash",0,"ecash",0,"ecash",0,"ecash",0,"ecash",0,"ecash",0,"ecash",0,"ecash",0,"ecash",0,"ecash",0,"ecash",0,"ecash",0,"ecash",0,"ecash",0,"ecash",0,"ecash",0,"ecash",0,"ecash",0,"ecash",0,"ecash",0,"ecash",0,"ecash",0,"ecash",0,"ecash",0,"ecash",0,"ecash",0,"ecash",0,"ecash",0,"ecash",0,"ecash",0,"ecash",0,"ecash",0,"ecash",0,"ecash",0,"ecash",0,"ecash",0,"ecash",0,"ecash",0,"ecash",0,"ecash",0,"ecash",0,"ecash",0,"ecash",0,"ecash",0,"ecash",0,"ecash",0,"ecash",0,"ecash",0,"ecash",0,"ecash",0,"ecash",0,"ecash",0,"ecash",0,"ecash",0,"ecash",0,"ecash",0,"ecash",0,"ecash",0,"ecash",0,"ecash",0,"ecash",0,"ecash",0,"ecash",0,"ecash",0,"ecash",0,"ecash",0,"ecash",0,"ecash",0,"ecash",0,"ecash",0,"ecash",0,"ecash",0,"ecash",0,"ecash",0,"ecash",0,"ecash",0,"ecash",0,"ecash"]
["2017-10-07","Saturday",null,0,null,null,null,null,null,null,null,null,null,null,null,0,"ecash",0,"ecash",0,"ecash",0,"ecash",0,"ecash",0,"ecash",0,"ecash",0,"ecash",0,"ecash",0,"ecash",0,"ecash",0,"ecash",0,"ecash",0,"ecash",0,"ecash",0,"ecash",0,"ecash",0,"ecash",0,"ecash",0,"ecash",0,"ecash",0,"ecash",0,"ecash",0,"ecash",0,"ecash",0,"ecash",0,"ecash",0,"ecash",0,"ecash",0,"ecash",0,"ecash",0,"ecash",0,"ecash",0,"ecash",0,"ecash",0,"ecash",0,"ecash",0,"ecash",0,"ecash",0,"ecash",0,"ecash",0,"ecash",0,"ecash",0,"ecash",0,"ecash",0,"ecash",0,"ecash",0,"ecash",0,"ecash",0,"ecash",0,"ecash",0,"ecash",0,"ecash",0,"ecash",0,"ecash",0,"ecash",0,"ecash",0,"ecash",0,"ecash",0,"ecash",0,"ecash",0,"ecash",0,"ecash",0,"ecash",0,"ecash",0,"ecash",0,"ecash",0,"ecash",0,"ecash",0,"ecash",0,"ecash",0,"ecash",0,"ecash",0,"ecash",0,"ecash",0,"ecash",0,"ecash",0,"ecash",0,"ecash",0,"ecash",0,"ecash",0,"ecash",0,"ecash",0,"ecash",0,"ecash",0,"ecash",0,"ecash",0,"ecash",0,"ecash",0,"ecash",0,"ecash",0,"ecash",0,"ecash",0,"ecash",0,"ecash",0,"ecash",0,"ecash",0,"ecash",0,"ecash",0,"ecash",0,"ecash",0,"ecash",0,"ecash",0,"ecash",0,"ecash",0,"ecash",0,"ecash",0,"ecash",0,"ecash",0,"ecash",0,"ecash",0,"ecash",0,"ecash",0,"ecash",0,"ecash",0,"ecash",0,"ecash",0,"ecash",0,"ecash",0,"ecash",0,"ecash",0,"ecash",0,"ecash",0,"ecash",0,"ecash",0,"ecash",0,"ecash",0,"ecash",0,"ecash",0,"ecash",0,"ecash",0,"ecash",0,"ecash",0,"ecash",0,"ecash",0,"ecash",0,"ecash",0,"ecash",0,"ecash",0,"ecash",0,"ecash",0,"ecash",0,"ecash",0,"ecash",0,"ecash",0,"ecash",0,"ecash",0,"ecash",0,"ecash",0,"ecash",0,"ecash",0,"ecash",0,"ecash",0,"ecash",0,"ecash",0,"ecash",0,"ecash",0,"ecash",0,"ecash",0,"ecash",0,"ecash",0,"ecash",0,"ecash",0,"ecash",0,"ecash",0,"ecash",0,"ecash",0,"ecash",0,"ecash",0,"ecash",0,"ecash",0,"ecash",0,"ecash",0,"ecash",0,"ecash",0,"ecash",0,"ecash",0,"ecash",0,"ecash",0,"ecash",0,"ecash",0,"ecash",0,"ecash",0,"ecash",0,"ecash",0,"ecash",0,"ecash",0,"ecash",0,"ecash",0,"ecash",0,"ecash",0,"ecash",0,"ecash",0,"ecash",0,"ecash",0,"ecash",0,"ecash",0,"ecash",0,"ecash",0,"ecash",0,"ecash",0,"ecash",0,"ecash",0,"ecash",0,"ecash",0,"ecash"]
["2017-10-08","Sunday",null,0,null,null,null,null,null,null,null,null,null,null,null,null,null,0,"ecash",0,"ecash",0,"ecash",0,"ecash",0,"ecash",0,"ecash",0,"ecash",0,"ecash",0,"ecash",0,"ecash",0,"ecash",0,"ecash",0,"ecash",0,"ecash",0,"ecash",0,"ecash",0,"ecash",0,"ecash",0,"ecash",0,"ecash",0,"ecash",0,"ecash",0,"ecash",0,"ecash",0,"ecash",0,"ecash",0,"ecash",0,"ecash",0,"ecash",0,"ecash",0,"ecash",0,"ecash",0,"ecash",0,"ecash",0,"ecash",0,"ecash",0,"ecash",0,"ecash",0,"ecash",0,"ecash",0,"ecash",0,"ecash",0,"ecash",0,"ecash",0,"ecash",0,"ecash",0,"ecash",0,"ecash",0,"ecash",0,"ecash",0,"ecash",0,"ecash",0,"ecash",0,"ecash",0,"ecash",0,"ecash",0,"ecash",0,"ecash",0,"ecash",0,"ecash",0,"ecash",0,"ecash",0,"ecash",0,"ecash",0,"ecash",0,"ecash",0,"ecash",0,"ecash",0,"ecash",0,"ecash",0,"ecash",0,"ecash",0,"ecash",0,"ecash",0,"ecash",0,"ecash",0,"ecash",0,"ecash",0,"ecash",0,"ecash",0,"ecash",0,"ecash",0,"ecash",0,"ecash",0,"ecash",0,"ecash",0,"ecash",0,"ecash",0,"ecash",0,"ecash",0,"ecash",0,"ecash",0,"ecash",0,"ecash",0,"ecash",0,"ecash",0,"ecash",0,"ecash",0,"ecash",0,"ecash",0,"ecash",0,"ecash",0,"ecash",0,"ecash",0,"ecash",0,"ecash",0,"ecash",0,"ecash",0,"ecash",0,"ecash",0,"ecash",0,"ecash",0,"ecash",0,"ecash",0,"ecash",0,"ecash",0,"ecash",0,"ecash",0,"ecash",0,"ecash",0,"ecash",0,"ecash",0,"ecash",0,"ecash",0,"ecash",0,"ecash",0,"ecash",0,"ecash",0,"ecash",0,"ecash",0,"ecash",0,"ecash",0,"ecash",0,"ecash",0,"ecash",0,"ecash",0,"ecash",0,"ecash",0,"ecash",0,"ecash",0,"ecash",0,"ecash",0,"ecash",0,"ecash",0,"ecash",0,"ecash",0,"ecash",0,"ecash",0,"ecash",0,"ecash",0,"ecash",0,"ecash",0,"ecash",0,"ecash",0,"ecash",0,"ecash",0,"ecash",0,"ecash",0,"ecash",0,"ecash",0,"ecash",0,"ecash",0,"ecash",0,"ecash",0,"ecash",0,"ecash",0,"ecash",0,"ecash",0,"ecash",0,"ecash",0,"ecash",0,"ecash",0,"ecash",0,"ecash",0,"ecash",0,"ecash",0,"ecash",0,"ecash",0,"ecash",0,"ecash",0,"ecash",0,"ecash",0,"ecash",0,"ecash",0,"ecash",0,"ecash",0,"ecash",0,"ecash",0,"ecash",0,"ecash",0,"ecash",0,"ecash",0,"ecash",0,"ecash",0,"ecash",0,"ecash",0,"ecash",0,"ecash",0,"ecash",0,"ecash",0,"ecash",0,"ecash",0,"ecash",0,"ecash",0,"ecash"]
["2017-10-09","Monday","Thanksgiving",0,null,null,null,null,null,null,null,null,null,null,null,null,null,null,null,0,"ecash",0,"ecash",0,"ecash",0,"ecash",0,"ecash",0,"ecash",0,"ecash",0,"ecash",0,"ecash",0,"ecash",0,"ecash",0,"ecash",0,"ecash",0,"ecash",0,"ecash",0,"ecash",0,"ecash",0,"ecash",0,"ecash",0,"ecash",0,"ecash",0,"ecash",0,"ecash",0,"ecash",0,"ecash",0,"ecash",0,"ecash",0,"ecash",0,"ecash",0,"ecash",0,"ecash",0,"ecash",0,"ecash",0,"ecash",0,"ecash",0,"ecash",0,"ecash",0,"ecash",0,"ecash",0,"ecash",0,"ecash",0,"ecash",0,"ecash",0,"ecash",0,"ecash",0,"ecash",0,"ecash",0,"ecash",0,"ecash",0,"ecash",0,"ecash",0,"ecash",0,"ecash",0,"ecash",0,"ecash",0,"ecash",0,"ecash",0,"ecash",0,"ecash",0,"ecash",0,"ecash",0,"ecash",0,"ecash",0,"ecash",0,"ecash",0,"ecash",0,"ecash",0,"ecash",0,"ecash",0,"ecash",0,"ecash",0,"ecash",0,"ecash",0,"ecash",0,"ecash",0,"ecash",0,"ecash",0,"ecash",0,"ecash",0,"ecash",0,"ecash",0,"ecash",0,"ecash",0,"ecash",0,"ecash",0,"ecash",0,"ecash",0,"ecash",0,"ecash",0,"ecash",0,"ecash",0,"ecash",0,"ecash",0,"ecash",0,"ecash",0,"ecash",0,"ecash",0,"ecash",0,"ecash",0,"ecash",0,"ecash",0,"ecash",0,"ecash",0,"ecash",0,"ecash",0,"ecash",0,"ecash",0,"ecash",0,"ecash",0,"ecash",0,"ecash",0,"ecash",0,"ecash",0,"ecash",0,"ecash",0,"ecash",0,"ecash",0,"ecash",0,"ecash",0,"ecash",0,"ecash",0,"ecash",0,"ecash",0,"ecash",0,"ecash",0,"ecash",0,"ecash",0,"ecash",0,"ecash",0,"ecash",0,"ecash",0,"ecash",0,"ecash",0,"ecash",0,"ecash",0,"ecash",0,"ecash",0,"ecash",0,"ecash",0,"ecash",0,"ecash",0,"ecash",0,"ecash",0,"ecash",0,"ecash",0,"ecash",0,"ecash",0,"ecash",0,"ecash",0,"ecash",0,"ecash",0,"ecash",0,"ecash",0,"ecash",0,"ecash",0,"ecash",0,"ecash",0,"ecash",0,"ecash",0,"ecash",0,"ecash",0,"ecash",0,"ecash",0,"ecash",0,"ecash",0,"ecash",0,"ecash",0,"ecash",0,"ecash",0,"ecash",0,"ecash",0,"ecash",0,"ecash",0,"ecash",0,"ecash",0,"ecash",0,"ecash",0,"ecash",0,"ecash",0,"ecash",0,"ecash",0,"ecash",0,"ecash",0,"ecash",0,"ecash",0,"ecash",0,"ecash",0,"ecash",0,"ecash",0,"ecash",0,"ecash",0,"ecash",0,"ecash",0,"ecash",0,"ecash",0,"ecash",0,"ecash",0,"ecash",0,"ecash",0,"ecash",0,"ecash",0,"ecash",0,"ecash",0,"ecash"]
["2017-10-10","Tuesday",null,2,null,null,null,null,null,null,null,null,null,null,null,null,null,null,null,null,null,4.7,"ecash",4.7,"ecash",4.7,"ecash",4.7,"ecash",4.7,"ecash",4.7,"ecash",4.7,"ecash",4.7,"ecash",4.7,"ecash",4.7,"ecash",4.7,"ecash",4.7,"ecash",4.7,"ecash",43.5,"14 day e-pass",43.5,"14 day e-pass",4.7,"ecash",4.7,"ecash",4.7,"ecash",4.7,"ecash",4.7,"ecash",64.650000000000006,"21 day e-pass",64.650000000000006,"21 day e-pass",64.650000000000006,"21 day e-pass",4.7,"ecash",4.7,"ecash",4.7,"ecash",4.7,"ecash",83.45,"28 day e-pass",83.45,"28 day e-pass",83.45,"28 day e-pass",83.45,"28 day e-pass",83.45,"28 day e-pass",83.45,"28 day e-pass",83.45,"28 day e-pass",83.45,"28 day e-pass",83.45,"28 day e-pass",83.45,"28 day e-pass",83.45,"28 day e-pass",83.45,"28 day e-pass",83.45,"28 day e-pass",83.45,"28 day e-pass",83.45,"28 day e-pass",83.45,"28 day e-pass",83.45,"28 day e-pass",83.45,"28 day e-pass",83.45,"28 day e-pass",83.45,"28 day e-pass",83.45,"28 day e-pass",83.45,"28 day e-pass",83.45,"28 day e-pass",83.45,"28 day e-pass",83.45,"28 day e-pass",83.45,"28 day e-pass",83.45,"28 day e-pass",83.45,"28 day e-pass",83.45,"28 day e-pass",83.45,"28 day e-pass",83.45,"28 day e-pass",83.45,"28 day e-pass",83.45,"28 day e-pass",83.45,"28 day e-pass",83.45,"28 day e-pass",83.45,"28 day e-pass",83.45,"28 day e-pass",83.45,"28 day e-pass",83.45,"28 day e-pass",83.45,"28 day e-pass",83.45,"28 day e-pass",83.45,"28 day e-pass",83.45,"28 day e-pass",83.45,"28 day e-pass",83.45,"28 day e-pass",83.45,"28 day e-pass",83.45,"28 day e-pass",83.45,"28 day e-pass",83.45,"28 day e-pass",83.45,"28 day e-pass",83.45,"28 day e-pass",83.45,"28 day e-pass",83.45,"28 day e-pass",83.45,"28 day e-pass",83.45,"28 day e-pass",83.45,"28 day e-pass",83.45,"28 day e-pass",83.45,"28 day e-pass",83.45,"28 day e-pass",83.45,"28 day e-pass",83.45,"28 day e-pass",83.45,"28 day e-pass",83.45,"28 day e-pass",83.45,"28 day e-pass",83.45,"28 day e-pass",83.45,"28 day e-pass",83.45,"28 day e-pass",83.45,"28 day e-pass",83.45,"28 day e-pass",83.45,"28 day e-pass",83.45,"28 day e-pass",83.45,"28 day e-pass",83.45,"28 day e-pass",83.45,"28 day e-pass",83.45,"28 day e-pass",83.45,"28 day e-pass",83.45,"28 day e-pass",83.45,"28 day e-pass",83.45,"28 day e-pass",83.45,"28 day e-pass",83.45,"28 day e-pass",83.45,"28 day e-pass",83.45,"28 day e-pass",83.45,"28 day e-pass",83.45,"28 day e-pass",83.45,"28 day e-pass",83.45,"28 day e-pass",83.45,"28 day e-pass",83.45,"28 day e-pass",83.45,"28 day e-pass",83.45,"28 day e-pass",83.45,"28 day e-pass",83.45,"28 day e-pass",83.45,"28 day e-pass",83.45,"28 day e-pass",83.45,"28 day e-pass",83.45,"28 day e-pass",83.45,"28 day e-pass",83.45,"28 day e-pass",83.45,"28 day e-pass",83.45,"28 day e-pass",83.45,"28 day e-pass",83.45,"28 day e-pass",83.45,"28 day e-pass",83.45,"28 day e-pass",83.45,"28 day e-pass",83.45,"28 day e-pass",83.45,"28 day e-pass",83.45,"28 day e-pass",83.45,"28 day e-pass",83.45,"28 day e-pass",83.45,"28 day e-pass",83.45,"28 day e-pass",83.45,"28 day e-pass",83.45,"28 day e-pass",83.45,"28 day e-pass",83.45,"28 day e-pass",83.45,"28 day e-pass",83.45,"28 day e-pass",83.45,"28 day e-pass",83.45,"28 day e-pass",83.45,"28 day e-pass",83.45,"28 day e-pass",83.45,"28 day e-pass",83.45,"28 day e-pass",83.45,"28 day e-pass",83.45,"28 day e-pass",83.45,"28 day e-pass",83.45,"28 day e-pass",83.45,"28 day e-pass",83.45,"28 day e-pass",83.45,"28 day e-pass",83.45,"28 day e-pass",83.45,"28 day e-pass",83.45,"28 day e-pass",83.45,"28 day e-pass",83.45,"28 day e-pass",83.45,"28 day e-pass",83.45,"28 day e-pass",83.45,"28 day e-pass",83.45,"28 day e-pass",83.45,"28 day e-pass",83.45,"28 day e-pass",83.45,"28 day e-pass",83.45,"28 day e-pass",83.45,"28 day e-pass",83.45,"28 day e-pass",83.45,"28 day e-pass",83.45,"28 day e-pass",83.45,"28 day e-pass",83.45,"28 day e-pass",83.45,"28 day e-pass",83.45,"28 day e-pass",83.45,"28 day e-pass",83.45,"28 day e-pass",83.45,"28 day e-pass",83.45,"28 day e-pass",83.45,"28 day e-pass",83.45,"28 day e-pass",83.45,"28 day e-pass",83.45,"28 day e-pass",83.45,"28 day e-pass",83.45,"28 day e-pass",83.45,"28 day e-pass",83.45,"28 day e-pass",83.45,"28 day e-pass",83.45,"28 day e-pass",83.45,"28 day e-pass",83.45,"28 day e-pass",83.45,"28 day e-pass",83.45,"28 day e-pass",83.45,"28 day e-pass",83.45,"28 day e-pass",83.45,"28 day e-pass",83.45,"28 day e-pass",83.45,"28 day e-pass"]
["2017-10-11","Wednesday",null,2,null,null,null,null,null,null,null,null,null,null,null,null,null,null,null,null,null,null,null,4.7,"ecash",4.7,"ecash",4.7,"ecash",4.7,"ecash",4.7,"ecash",4.7,"ecash",4.7,"ecash",4.7,"ecash",4.7,"ecash",4.7,"ecash",4.7,"ecash",4.7,"ecash",null,null,null,null,4.7,"ecash",4.7,"ecash",4.7,"ecash",4.7,"ecash",4.7,"ecash",null,null,null,null,null,null,4.7,"ecash",4.7,"ecash",4.7,"ecash",4.7,"ecash"]
["2017-10-12","Thursday",null,2,null,null,null,null,null,null,null,null,null,null,null,null,null,null,null,null,null,null,null,null,null,4.7,"ecash",4.7,"ecash",4.7,"ecash",4.7,"ecash",4.7,"ecash",4.7,"ecash",4.7,"ecash",4.7,"ecash",4.7,"ecash",4.7,"ecash",4.7,"ecash",null,null,null,null,43.5,"14 day e-pass",43.5,"14 day e-pass",4.7,"ecash",4.7,"ecash",4.7,"ecash",null,null,null,null,null,null,4.7,"ecash",4.7,"ecash",4.7,"ecash",4.7,"ecash"]
["2017-10-13","Friday",null,2,null,null,null,null,null,null,null,null,null,null,null,null,null,null,null,null,null,null,null,null,null,null,null,4.7,"ecash",4.7,"ecash",4.7,"ecash",4.7,"ecash",4.7,"ecash",4.7,"ecash",4.7,"ecash",4.7,"ecash",4.7,"ecash",4.7,"ecash",null,null,null,null,null,null,null,null,4.7,"ecash",4.7,"ecash",4.7,"ecash",null,null,null,null,null,null,64.650000000000006,"21 day e-pass",4.7,"ecash",4.7,"ecash",4.7,"ecash"]
["2017-10-14","Saturday",null,0,null,null,null,null,null,null,null,null,null,null,null,null,null,null,null,null,null,null,null,null,null,null,null,null,null,0,"ecash",0,"ecash",0,"ecash",0,"ecash",0,"ecash",0,"ecash",0,"ecash",0,"ecash",0,"ecash",null,null,null,null,null,null,null,null,0,"ecash",0,"ecash",0,"ecash",null,null,null,null,null,null,null,null,0,"ecash",0,"ecash",0,"ecash"]
["2017-10-15","Sunday",null,0,null,null,null,null,null,null,null,null,null,null,null,null,null,null,null,null,null,null,null,null,null,null,null,null,null,null,null,0,"ecash",0,"ecash",0,"ecash",0,"ecash",0,"ecash",0,"ecash",0,"ecash",0,"ecash",null,null,null,null,null,null,null,null,0,"ecash",0,"ecash",0,"ecash",null,null,null,null,null,null,null,null,0,"ecash",0,"ecash",0,"ecash"]
["2017-10-16","Monday",null,2,null,null,null,null,null,null,null,null,null,null,null,null,null,null,null,null,null,null,null,null,null,null,null,null,null,null,null,null,null,4.7,"ecash",4.7,"ecash",4.7,"ecash",4.7,"ecash",21.15,"5 day e-pass",21.15,"5 day e-pass",21.15,"5 day e-pass",null,null,null,null,null,null,null,null,21.15,"5 day e-pass",21.15,"5 day e-pass",21.15,"5 day e-pass",null,null,null,null,null,null,null,null,21.15,"5 day e-pass",21.15,"5 day e-pass",21.15,"5 day e-pass"]
["2017-10-17","Tuesday",null,2,null,null,null,null,null,null,null,null,null,null,null,null,null,null,null,null,null,null,null,null,null,null,null,null,null,null,null,null,null,null,null,4.7,"ecash",4.7,"ecash",4.7,"ecash"]
["2017-10-18","Wednesday",null,2,null,null,null,null,null,null,null,null,null,null,null,null,null,null,null,null,null,null,null,null,null,null,null,null,null,null,null,null,null,null,null,null,null,4.7,"ecash",4.7,"ecash"]
["2017-10-19","Thursday",null,2,null,null,null,null,null,null,null,null,null,null,null,null,null,null,null,null,null,null,null,null,null,null,null,null,null,null,null,null,null,null,null,null,null,null,null,4.7,"ecash"]
["2017-10-20","Friday",null,2]
["2017-10-21","Saturday",null,0,null,null,null,null,null,null,null,null,null,null,null,null,null,null,null,null,null,null,null,null,null,null,null,null,null,null,null,null,null,null,null,null,null,null,null,null,null,null,null,0,"ecash",0,"ecash",null,null,null,null,null,null,null,null,0,"ecash",0,"ecash",0,"ecash",null,null,null,null,null,null,null,null,0,"ecash",0,"ecash",0,"ecash"]
["2017-10-22","Sunday",null,0,null,null,null,null,null,null,null,null,null,null,null,null,null,null,null,null,null,null,null,null,null,null,null,null,null,null,null,null,null,null,null,null,null,null,null,null,null,null,null,null,null,0,"ecash",null,null,null,null,null,null,null,null,0,"ecash",0,"ecash",0,"ecash",null,null,null,null,null,null,null,null,0,"ecash",0,"ecash",0,"ecash"]
["2017-10-23","Monday",null,2,null,null,null,null,null,null,null,null,null,null,null,null,null,null,null,null,null,null,null,null,null,null,null,null,null,null,null,null,null,null,null,null,null,null,null,null,null,null,null,null,null,null,null,null,null,null,null,null,null,null,null,21.15,"5 day e-pass",21.15,"5 day e-pass",21.15,"5 day e-pass",null,null,null,null,null,null,null,null,21.15,"5 day e-pass",21.15,"5 day e-pass",21.15,"5 day e-pass"]
["2017-10-24","Tuesday",null,2,null,null,null,null,null,null,null,null,null,null,null,null,null,null,null,null,null,null,null,null,null,null,null,null,null,null,null,null,null,null,null,null,null,null,null,null,null,null,null,null,null,null,null,null,null,4.7,"ecash"]
["2017-10-25","Wednesday",null,2]
["2017-10-26","Thursday",null,2,null,null,null,null,null,null,null,null,null,null,null,null,null,null,null,null,null,null,null,null,null,null,null,null,null,null,null,null,null,null,null,null,null,null,null,null,null,null,null,null,null,null,null,null,null,null,null,null,null,4.7,"ecash"]
["2017-10-27","Friday",null,2]
["2017-10-28","Saturday",null,0,null,null,null,null,null,null,null,null,null,null,null,null,null,null,null,null,null,null,null,null,null,null,null,null,null,null,null,null,null,null,null,null,null,null,null,null,null,null,null,null,null,null,null,null,null,null,null,null,null,null,null,null,null,0,"ecash",0,"ecash",null,null,null,null,null,null,null,null,0,"ecash",0,"ecash",0,"ecash"]
["2017-10-29","Sunday",null,0,null,null,null,null,null,null,null,null,null,null,null,null,null,null,null,null,null,null,null,null,null,null,null,null,null,null,null,null,null,null,null,null,null,null,null,null,null,null,null,null,null,null,null,null,null,null,null,null,null,null,null,null,null,null,null,0,"ecash",null,null,null,null,null,null,null,null,0,"ecash",0,"ecash",0,"ecash"]
["2017-10-30","Monday",null,2,null,null,null,null,null,null,null,null,null,null,null,null,null,null,null,null,null,null,null,null,null,null,null,null,null,null,null,null,null,null,null,null,null,null,null,null,null,null,null,null,null,null,null,null,null,null,null,null,null,null,null,null,null,null,null,null,null,null,null,null,null,null,null,null,null,21.15,"5 day e-pass",21.15,"5 day e-pass",21.15,"5 day e-pass"]
["2017-10-31","Tuesday",null,2,null,null,null,null,null,null,null,null,null,null,null,null,null,null,null,null,null,null,null,null,null,null,null,null,null,null,null,null,null,null,null,null,null,null,null,null,null,null,null,null,null,null,null,null,null,null,null,null,null,null,null,null,null,null,null,null,null,null,null,4.7,"ecash",4.7,"ecash"]
["2017-11-01","Wednesday",null,2,null,null,null,null,null,null,null,null,null,null,null,null,null,null,null,null,null,null,null,null,null,null,null,null,null,null,null,null,null,null,null,null,null,null,null,null,null,null,null,null,null,null,null,null,null,null,null,null,null,null,null,null,null,null,null,null,null,null,null,null,null,4.7,"ecash"]
["2017-11-02","Thursday",null,2]
["2017-11-03","Friday",null,2]
["2017-11-04","Saturday",null,0,null,null,null,null,null,null,null,null,null,null,null,null,null,null,null,null,null,null,null,null,null,null,null,null,null,null,null,null,null,null,null,null,null,null,null,null,null,null,null,null,null,null,null,null,null,null,null,null,null,null,null,null,null,null,null,null,null,null,null,null,null,null,null,null,null,null,null,0,"ecash",0,"ecash"]
["2017-11-05","Sunday",null,0,null,null,null,null,null,null,null,null,null,null,null,null,null,null,null,null,null,null,null,null,null,null,null,null,null,null,null,null,null,null,null,null,null,null,null,null,null,null,null,null,null,null,null,null,null,null,null,null,null,null,null,null,null,null,null,null,null,null,null,null,null,null,null,null,null,null,null,null,null,0,"ecash"]
["2017-11-06","Monday",null,2]
["2017-11-07","Tuesday",null,2,null,null,null,null,null,null,null,null,null,null,null,null,null,null,null,null,null,null,null,null,null,null,null,null,null,null,null,null,null,null,null,null,null,null,null,null,null,null,null,null,null,null,null,null,null,null,null,null,null,null,null,null,null,null,null,null,null,null,null,null,null,null,null,null,null,null,null,null,null,null,null,null,null,4.7,"ecash",4.7,"ecash",4.7,"ecash",4.7,"ecash",4.7,"ecash",4.7,"ecash",4.7,"ecash",4.7,"ecash",4.7,"ecash",4.7,"ecash",4.7,"ecash",4.7,"ecash",4.7,"ecash",4.7,"ecash",4.7,"ecash",4.7,"ecash",4.7,"ecash",4.7,"ecash",4.7,"ecash",4.7,"ecash",4.7,"ecash",4.7,"ecash",4.7,"ecash",4.7,"ecash",4.7,"ecash",4.7,"ecash",4.7,"ecash",4.7,"ecash",4.7,"ecash",4.7,"ecash",4.7,"ecash",4.7,"ecash",4.7,"ecash",4.7,"ecash",4.7,"ecash",4.7,"ecash",4.7,"ecash",4.7,"ecash",4.7,"ecash",4.7,"ecash",4.7,"ecash",4.7,"ecash",4.7,"ecash",4.7,"ecash",4.7,"ecash",4.7,"ecash",4.7,"ecash",4.7,"ecash",4.7,"ecash",4.7,"ecash",4.7,"ecash",4.7,"ecash",4.7,"ecash",4.7,"ecash",4.7,"ecash",4.7,"ecash",4.7,"ecash",4.7,"ecash",4.7,"ecash",4.7,"ecash",4.7,"ecash",4.7,"ecash",4.7,"ecash",4.7,"ecash",4.7,"ecash",4.7,"ecash",4.7,"ecash",4.7,"ecash",4.7,"ecash",4.7,"ecash",4.7,"ecash",4.7,"ecash",4.7,"ecash",4.7,"ecash",4.7,"ecash",4.7,"ecash",4.7,"ecash",4.7,"ecash",4.7,"ecash",4.7,"ecash",4.7,"ecash",4.7,"ecash",4.7,"ecash",4.7,"ecash",4.7,"ecash",4.7,"ecash",4.7,"ecash",4.7,"ecash",4.7,"ecash",4.7,"ecash",4.7,"ecash",4.7,"ecash",4.7,"ecash",4.7,"ecash",4.7,"ecash",4.7,"ecash",4.7,"ecash",4.7,"ecash",4.7,"ecash",4.7,"ecash",4.7,"ecash",4.7,"ecash",4.7,"ecash",4.7,"ecash",4.7,"ecash",4.7,"ecash",4.7,"ecash",4.7,"ecash",4.7,"ecash",4.7,"ecash",4.7,"ecash",4.7,"ecash",4.7,"ecash",4.7,"ecash",4.7,"ecash",4.7,"ecash",4.7,"ecash",4.7,"ecash",4.7,"ecash",4.7,"ecash",4.7,"ecash",4.7,"ecash",4.7,"ecash",4.7,"ecash",4.7,"ecash",4.7,"ecash",4.7,"ecash",4.7,"ecash",4.7,"ecash",4.7,"ecash",4.7,"ecash",4.7,"ecash",4.7,"ecash",4.7,"ecash",4.7,"ecash",4.7,"ecash",4.7,"ecash",4.7,"ecash",4.7,"ecash",4.7,"ecash",4.7,"ecash",4.7,"ecash",4.7,"ecash",4.7,"ecash",4.7,"ecash",4.7,"ecash",4.7,"ecash",4.7,"ecash",4.7,"ecash",4.7,"ecash",4.7,"ecash",4.7,"ecash",4.7,"ecash",4.7,"ecash",4.7,"ecash",4.7,"ecash",4.7,"ecash",4.7,"ecash",4.7,"ecash",4.7,"ecash",4.7,"ecash",4.7,"ecash",4.7,"ecash",4.7,"ecash",4.7,"ecash",4.7,"ecash",4.7,"ecash",4.7,"ecash",4.7,"ecash",4.7,"ecash",4.7,"ecash",4.7,"ecash",4.7,"ecash",4.7,"ecash",4.7,"ecash"]
["2017-11-08","Wednesday","Doctor's appointment",1,null,null,null,null,null,null,null,null,null,null,null,null,null,null,null,null,null,null,null,null,null,null,null,null,null,null,null,null,null,null,null,null,null,null,null,null,null,null,null,null,null,null,null,null,null,null,null,null,null,null,null,null,null,null,null,null,null,null,null,null,null,null,null,null,null,null,null,null,null,null,null,null,null,null,null,2.35,"ecash",2.35,"ecash",2.35,"ecash",2.35,"ecash",2.35,"ecash",2.35,"ecash",2.35,"ecash",2.35,"ecash",2.35,"ecash",2.35,"ecash",2.35,"ecash",2.35,"ecash",2.35,"ecash",2.35,"ecash",2.35,"ecash",2.35,"ecash",2.35,"ecash",2.35,"ecash",2.35,"ecash",2.35,"ecash",2.35,"ecash",2.35,"ecash",2.35,"ecash",2.35,"ecash",2.35,"ecash",2.35,"ecash",2.35,"ecash",2.35,"ecash",2.35,"ecash",2.35,"ecash",2.35,"ecash",2.35,"ecash",2.35,"ecash",2.35,"ecash",2.35,"ecash",2.35,"ecash",2.35,"ecash",2.35,"ecash",2.35,"ecash",2.35,"ecash",2.35,"ecash",2.35,"ecash",2.35,"ecash",2.35,"ecash",2.35,"ecash",2.35,"ecash",2.35,"ecash",2.35,"ecash",2.35,"ecash",2.35,"ecash",2.35,"ecash",2.35,"ecash",2.35,"ecash",2.35,"ecash",2.35,"ecash",2.35,"ecash",2.35,"ecash",2.35,"ecash",2.35,"ecash",2.35,"ecash",2.35,"ecash",2.35,"ecash",2.35,"ecash",2.35,"ecash",2.35,"ecash",2.35,"ecash",2.35,"ecash",2.35,"ecash",2.35,"ecash",2.35,"ecash",2.35,"ecash",2.35,"ecash",2.35,"ecash",2.35,"ecash",2.35,"ecash",2.35,"ecash",2.35,"ecash",2.35,"ecash",2.35,"ecash",2.35,"ecash",2.35,"ecash",2.35,"ecash",2.35,"ecash",2.35,"ecash",2.35,"ecash",2.35,"ecash",2.35,"ecash",2.35,"ecash",2.35,"ecash",2.35,"ecash",2.35,"ecash",2.35,"ecash",2.35,"ecash",2.35,"ecash",2.35,"ecash",2.35,"ecash",2.35,"ecash",2.35,"ecash",2.35,"ecash",2.35,"ecash",2.35,"ecash",2.35,"ecash",2.35,"ecash",2.35,"ecash",2.35,"ecash",2.35,"ecash",2.35,"ecash",2.35,"ecash",2.35,"ecash",2.35,"ecash",2.35,"ecash",2.35,"ecash",2.35,"ecash",2.35,"ecash",2.35,"ecash",2.35,"ecash",2.35,"ecash",2.35,"ecash",2.35,"ecash",2.35,"ecash",2.35,"ecash",2.35,"ecash",2.35,"ecash",2.35,"ecash",2.35,"ecash",2.35,"ecash",2.35,"ecash",2.35,"ecash",2.35,"ecash",2.35,"ecash",2.35,"ecash",2.35,"ecash",2.35,"ecash",2.35,"ecash",2.35,"ecash",2.35,"ecash",2.35,"ecash",2.35,"ecash",2.35,"ecash",2.35,"ecash",2.35,"ecash",2.35,"ecash",2.35,"ecash",2.35,"ecash",2.35,"ecash",2.35,"ecash",2.35,"ecash",2.35,"ecash",2.35,"ecash",2.35,"ecash",2.35,"ecash",2.35,"ecash",2.35,"ecash",2.35,"ecash",2.35,"ecash",2.35,"ecash",2.35,"ecash",2.35,"ecash",2.35,"ecash",2.35,"ecash",2.35,"ecash",2.35,"ecash",2.35,"ecash",2.35,"ecash",2.35,"ecash",2.35,"ecash",2.35,"ecash",2.35,"ecash",2.35,"ecash",2.35,"ecash",2.35,"ecash",2.35,"ecash",2.35,"ecash",2.35,"ecash"]
["2017-11-09","Thursday",null,2,null,null,null,null,null,null,null,null,null,null,null,null,null,null,null,null,null,null,null,null,null,null,null,null,null,null,null,null,null,null,null,null,null,null,null,null,null,null,null,null,null,null,null,null,null,null,null,null,null,null,null,null,null,null,null,null,null,null,null,null,null,null,null,null,null,null,null,null,null,null,null,null,null,null,null,null,null,4.7,"ecash",4.7,"ecash",4.7,"ecash",4.7,"ecash",4.7,"ecash",4.7,"ecash",4.7,"ecash",4.7,"ecash",4.7,"ecash",4.7,"ecash",4.7,"ecash",4.7,"ecash",4.7,"ecash",4.7,"ecash",4.7,"ecash",4.7,"ecash",4.7,"ecash",4.7,"ecash",4.7,"ecash",4.7,"ecash",4.7,"ecash",4.7,"ecash",4.7,"ecash",4.7,"ecash",4.7,"ecash",4.7,"ecash",4.7,"ecash",4.7,"ecash",4.7,"ecash",4.7,"ecash",4.7,"ecash",4.7,"ecash",4.7,"ecash",4.7,"ecash",4.7,"ecash",4.7,"ecash",4.7,"ecash",4.7,"ecash",4.7,"ecash",4.7,"ecash",4.7,"ecash",4.7,"ecash",4.7,"ecash",4.7,"ecash",4.7,"ecash",4.7,"ecash",4.7,"ecash",4.7,"ecash",4.7,"ecash",4.7,"ecash",4.7,"ecash",4.7,"ecash",4.7,"ecash",4.7,"ecash",4.7,"ecash",4.7,"ecash",4.7,"ecash",4.7,"ecash",4.7,"ecash",4.7,"ecash",4.7,"ecash",4.7,"ecash",4.7,"ecash",4.7,"ecash",4.7,"ecash",4.7,"ecash",4.7,"ecash",4.7,"ecash",4.7,"ecash",4.7,"ecash",4.7,"ecash",4.7,"ecash",4.7,"ecash",4.7,"ecash",4.7,"ecash",4.7,"ecash",4.7,"ecash",4.7,"ecash",4.7,"ecash",4.7,"ecash",4.7,"ecash",4.7,"ecash",4.7,"ecash",4.7,"ecash",4.7,"ecash",4.7,"ecash",4.7,"ecash",4.7,"ecash",4.7,"ecash",4.7,"ecash",4.7,"ecash",4.7,"ecash",4.7,"ecash",4.7,"ecash",4.7,"ecash",4.7,"ecash",4.7,"ecash",4.7,"ecash",4.7,"ecash",4.7,"ecash",4.7,"ecash",4.7,"ecash",4.7,"ecash",4.7,"ecash",4.7,"ecash",4.7,"ecash",4.7,"ecash",4.7,"ecash",4.7,"ecash",4.7,"ecash",4.7,"ecash",4.7,"ecash",4.7,"ecash",4.7,"ecash",4.7,"ecash",4.7,"ecash",4.7,"ecash",4.7,"ecash",4.7,"ecash",4.7,"ecash",4.7,"ecash",4.7,"ecash",4.7,"ecash",4.7,"ecash",4.7,"ecash",4.7,"ecash",4.7,"ecash",4.7,"ecash",4.7,"ecash",4.7,"ecash",4.7,"ecash",4.7,"ecash",4.7,"ecash",4.7,"ecash",4.7,"ecash",4.7,"ecash",4.7,"ecash",4.7,"ecash",4.7,"ecash",4.7,"ecash",4.7,"ecash",4.7,"ecash",4.7,"ecash",4.7,"ecash",4.7,"ecash",4.7,"ecash",4.7,"ecash",4.7,"ecash",4.7,"ecash",4.7,"ecash",4.7,"ecash",4.7,"ecash",4.7,"ecash",4.7,"ecash",4.7,"ecash",4.7,"ecash",4.7,"ecash",4.7,"ecash",4.7,"ecash",4.7,"ecash",4.7,"ecash",4.7,"ecash",4.7,"ecash",4.7,"ecash",4.7,"ecash",4.7,"ecash",4.7,"ecash",4.7,"ecash",4.7,"ecash",4.7,"ecash",4.7,"ecash",4.7,"ecash",4.7,"ecash"]
["2017-11-10","Friday",null,2,null,null,null,null,null,null,null,null,null,null,null,null,null,null,null,null,null,null,null,null,null,null,null,null,null,null,null,null,null,null,null,null,null,null,null,null,null,null,null,null,null,null,null,null,null,null,null,null,null,null,null,null,null,null,null,null,null,null,null,null,null,null,null,null,null,null,null,null,null,null,null,null,null,null,null,null,null,null,null,4.7,"ecash",4.7,"ecash",4.7,"ecash",4.7,"ecash",4.7,"ecash",4.7,"ecash",4.7,"ecash",4.7,"ecash",4.7,"ecash",4.7,"ecash",4.7,"ecash",4.7,"ecash",4.7,"ecash",4.7,"ecash",4.7,"ecash",4.7,"ecash",4.7,"ecash",4.7,"ecash",4.7,"ecash",4.7,"ecash",4.7,"ecash",4.7,"ecash",4.7,"ecash",4.7,"ecash",4.7,"ecash",4.7,"ecash",4.7,"ecash",4.7,"ecash",4.7,"ecash",4.7,"ecash",4.7,"ecash",4.7,"ecash",4.7,"ecash",4.7,"ecash",4.7,"ecash",4.7,"ecash",4.7,"ecash",4.7,"ecash",4.7,"ecash",4.7,"ecash",4.7,"ecash",4.7,"ecash",4.7,"ecash",4.7,"ecash",4.7,"ecash",4.7,"ecash",4.7,"ecash",4.7,"ecash",4.7,"ecash",4.7,"ecash",4.7,"ecash",4.7,"ecash",4.7,"ecash",4.7,"ecash",4.7,"ecash",4.7,"ecash",4.7,"ecash",4.7,"ecash",4.7,"ecash",4.7,"ecash",4.7,"ecash",4.7,"ecash",4.7,"ecash",4.7,"ecash",4.7,"ecash",4.7,"ecash",4.7,"ecash",4.7,"ecash",4.7,"ecash",4.7,"ecash",4.7,"ecash",4.7,"ecash",4.7,"ecash",4.7,"ecash",4.7,"ecash",4.7,"ecash",4.7,"ecash",4.7,"ecash",4.7,"ecash",4.7,"ecash",4.7,"ecash",4.7,"ecash",4.7,"ecash",4.7,"ecash",4.7,"ecash",4.7,"ecash",4.7,"ecash",4.7,"ecash",4.7,"ecash",4.7,"ecash",4.7,"ecash",4.7,"ecash",4.7,"ecash",4.7,"ecash",4.7,"ecash",4.7,"ecash",4.7,"ecash",4.7,"ecash",4.7,"ecash",4.7,"ecash",4.7,"ecash",4.7,"ecash",4.7,"ecash",4.7,"ecash",4.7,"ecash",4.7,"ecash",4.7,"ecash",4.7,"ecash",4.7,"ecash",4.7,"ecash",4.7,"ecash",4.7,"ecash",4.7,"ecash",4.7,"ecash",4.7,"ecash",4.7,"ecash",4.7,"ecash",4.7,"ecash",4.7,"ecash",4.7,"ecash",4.7,"ecash",4.7,"ecash",4.7,"ecash",4.7,"ecash",4.7,"ecash",4.7,"ecash",4.7,"ecash",4.7,"ecash",4.7,"ecash",4.7,"ecash",4.7,"ecash",4.7,"ecash",4.7,"ecash",4.7,"ecash",4.7,"ecash",4.7,"ecash",4.7,"ecash",4.7,"ecash",4.7,"ecash",4.7,"ecash",4.7,"ecash",4.7,"ecash",4.7,"ecash",4.7,"ecash",4.7,"ecash",4.7,"ecash",4.7,"ecash",4.7,"ecash",4.7,"ecash",4.7,"ecash",4.7,"ecash",4.7,"ecash",4.7,"ecash",4.7,"ecash",4.7,"ecash",4.7,"ecash",4.7,"ecash",4.7,"ecash",4.7,"ecash",4.7,"ecash",4.7,"ecash",4.7,"ecash",4.7,"ecash",4.7,"ecash",4.7,"ecash",4.7,"ecash",4.7,"ecash",4.7,"ecash",4.7,"ecash",4.7,"ecash",4.7,"ecash",4.7,"ecash"]
["2017-11-11","Saturday",null,0,null,null,null,null,null,null,null,null,null,null,null,null,null,null,null,null,null,null,null,null,null,null,null,null,null,null,null,null,null,null,null,null,null,null,null,null,null,null,null,null,null,null,null,null,null,null,null,null,null,null,null,null,null,null,null,null,null,null,null,null,null,null,null,null,null,null,null,null,null,null,null,null,null,null,null,null,null,null,null,null,null,0,"ecash",0,"ecash",0,"ecash",0,"ecash",0,"ecash",0,"ecash",0,"ecash",0,"ecash",0,"ecash",0,"ecash",0,"ecash",0,"ecash",0,"ecash",0,"ecash",0,"ecash",0,"ecash",0,"ecash",0,"ecash",0,"ecash",0,"ecash",0,"ecash",0,"ecash",0,"ecash",0,"ecash",0,"ecash",0,"ecash",0,"ecash",0,"ecash",0,"ecash",0,"ecash",0,"ecash",0,"ecash",0,"ecash",0,"ecash",0,"ecash",0,"ecash",0,"ecash",0,"ecash",0,"ecash",0,"ecash",0,"ecash",0,"ecash",0,"ecash",0,"ecash",0,"ecash",0,"ecash",0,"ecash",0,"ecash",0,"ecash",0,"ecash",0,"ecash",0,"ecash",0,"ecash",0,"ecash",0,"ecash",0,"ecash",0,"ecash",0,"ecash",0,"ecash",0,"ecash",0,"ecash",0,"ecash",0,"ecash",0,"ecash",0,"ecash",0,"ecash",0,"ecash",0,"ecash",0,"ecash",0,"ecash",0,"ecash",0,"ecash",0,"ecash",0,"ecash",0,"ecash",0,"ecash",0,"ecash",0,"ecash",0,"ecash",0,"ecash",0,"ecash",0,"ecash",0,"ecash",0,"ecash",0,"ecash",0,"ecash",0,"ecash",0,"ecash",0,"ecash",0,"ecash",0,"ecash",0,"ecash",0,"ecash",0,"ecash",0,"ecash",0,"ecash",0,"ecash",0,"ecash",0,"ecash",0,"ecash",0,"ecash",0,"ecash",0,"ecash",0,"ecash",0,"ecash",0,"ecash",0,"ecash",0,"ecash",0,"ecash",0,"ecash",0,"ecash",0,"ecash",0,"ecash",0,"ecash",0,"ecash",0,"ecash",0,"ecash",0,"ecash",0,"ecash",0,"ecash",0,"ecash",0,"ecash",0,"ecash",0,"ecash",0,"ecash",0,"ecash",0,"ecash",0,"ecash",0,"ecash",0,"ecash",0,"ecash",0,"ecash",0,"ecash",0,"ecash",0,"ecash",0,"ecash",0,"ecash",0,"ecash",0,"ecash",0,"ecash",0,"ecash",0,"ecash",0,"ecash",0,"ecash",0,"ecash",0,"ecash",0,"ecash",0,"ecash",0,"ecash",0,"ecash",0,"ecash",0,"ecash",0,"ecash",0,"ecash",0,"ecash",0,"ecash",0,"ecash",0,"ecash",0,"ecash",0,"ecash",0,"ecash",0,"ecash",0,"ecash",0,"ecash",0,"ecash",0,"ecash",0,"ecash",0,"ecash",0,"ecash",0,"ecash",0,"ecash"]
["2017-11-12","Sunday",null,0,null,null,null,null,null,null,null,null,null,null,null,null,null,null,null,null,null,null,null,null,null,null,null,null,null,null,null,null,null,null,null,null,null,null,null,null,null,null,null,null,null,null,null,null,null,null,null,null,null,null,null,null,null,null,null,null,null,null,null,null,null,null,null,null,null,null,null,null,null,null,null,null,null,null,null,null,null,null,null,null,null,null,null,0,"ecash",0,"ecash",0,"ecash",0,"ecash",0,"ecash",0,"ecash",0,"ecash",0,"ecash",0,"ecash",0,"ecash",0,"ecash",0,"ecash",0,"ecash",0,"ecash",0,"ecash",0,"ecash",0,"ecash",0,"ecash",0,"ecash",0,"ecash",0,"ecash",0,"ecash",0,"ecash",0,"ecash",0,"ecash",0,"ecash",0,"ecash",0,"ecash",0,"ecash",0,"ecash",0,"ecash",0,"ecash",0,"ecash",0,"ecash",0,"ecash",0,"ecash",0,"ecash",0,"ecash",0,"ecash",0,"ecash",0,"ecash",0,"ecash",0,"ecash",0,"ecash",0,"ecash",0,"ecash",0,"ecash",0,"ecash",0,"ecash",0,"ecash",0,"ecash",0,"ecash",0,"ecash",0,"ecash",0,"ecash",0,"ecash",0,"ecash",0,"ecash",0,"ecash",0,"ecash",0,"ecash",0,"ecash",0,"ecash",0,"ecash",0,"ecash",0,"ecash",0,"ecash",0,"ecash",0,"ecash",0,"ecash",0,"ecash",0,"ecash",0,"ecash",0,"ecash",0,"ecash",0,"ecash",0,"ecash",0,"ecash",0,"ecash",0,"ecash",0,"ecash",0,"ecash",0,"ecash",0,"ecash",0,"ecash",0,"ecash",0,"ecash",0,"ecash",0,"ecash",0,"ecash",0,"ecash",0,"ecash",0,"ecash",0,"ecash",0,"ecash",0,"ecash",0,"ecash",0,"ecash",0,"ecash",0,"ecash",0,"ecash",0,"ecash",0,"ecash",0,"ecash",0,"ecash",0,"ecash",0,"ecash",0,"ecash",0,"ecash",0,"ecash",0,"ecash",0,"ecash",0,"ecash",0,"ecash",0,"ecash",0,"ecash",0,"ecash",0,"ecash",0,"ecash",0,"ecash",0,"ecash",0,"ecash",0,"ecash",0,"ecash",0,"ecash",0,"ecash",0,"ecash",0,"ecash",0,"ecash",0,"ecash",0,"ecash",0,"ecash",0,"ecash",0,"ecash",0,"ecash",0,"ecash",0,"ecash",0,"ecash",0,"ecash",0,"ecash",0,"ecash",0,"ecash",0,"ecash",0,"ecash",0,"ecash",0,"ecash",0,"ecash",0,"ecash",0,"ecash",0,"ecash",0,"ecash",0,"ecash",0,"ecash",0,"ecash",0,"ecash",0,"ecash",0,"ecash",0,"ecash",0,"ecash",0,"ecash",0,"ecash",0,"ecash",0,"ecash",0,"ecash",0,"ecash",0,"ecash",0,"ecash",0,"ecash",0,"ecash",0,"ecash"]
["2017-11-13","Monday","Remembrance Day",0,null,null,null,null,null,null,null,null,null,null,null,null,null,null,null,null,null,null,null,null,null,null,null,null,null,null,null,null,null,null,null,null,null,null,null,null,null,null,null,null,null,null,null,null,null,null,null,null,null,null,null,null,null,null,null,null,null,null,null,null,null,null,null,null,null,null,null,null,null,null,null,null,null,null,null,null,null,null,null,null,null,null,null,null,null,0,"ecash",0,"ecash",0,"ecash",0,"ecash",0,"ecash",0,"ecash",0,"ecash",0,"ecash",0,"ecash",0,"ecash",0,"ecash",0,"ecash",0,"ecash",0,"ecash",0,"ecash",0,"ecash",0,"ecash",0,"ecash",0,"ecash",0,"ecash",0,"ecash",0,"ecash",0,"ecash",0,"ecash",0,"ecash",0,"ecash",0,"ecash",0,"ecash",0,"ecash",0,"ecash",0,"ecash",0,"ecash",0,"ecash",0,"ecash",0,"ecash",0,"ecash",0,"ecash",0,"ecash",0,"ecash",0,"ecash",0,"ecash",0,"ecash",0,"ecash",0,"ecash",0,"ecash",0,"ecash",0,"ecash",0,"ecash",0,"ecash",0,"ecash",0,"ecash",0,"ecash",0,"ecash",0,"ecash",0,"ecash",0,"ecash",0,"ecash",0,"ecash",0,"ecash",0,"ecash",0,"ecash",0,"ecash",0,"ecash",0,"ecash",0,"ecash",0,"ecash",0,"ecash",0,"ecash",0,"ecash",0,"ecash",0,"ecash",0,"ecash",0,"ecash",0,"ecash",0,"ecash",0,"ecash",0,"ecash",0,"ecash",0,"ecash",0,"ecash",0,"ecash",0,"ecash",0,"ecash",0,"ecash",0,"ecash",0,"ecash",0,"ecash",0,"ecash",0,"ecash",0,"ecash",0,"ecash",0,"ecash",0,"ecash",0,"ecash",0,"ecash",0,"ecash",0,"ecash",0,"ecash",0,"ecash",0,"ecash",0,"ecash",0,"ecash",0,"ecash",0,"ecash",0,"ecash",0,"ecash",0,"ecash",0,"ecash",0,"ecash",0,"ecash",0,"ecash",0,"ecash",0,"ecash",0,"ecash",0,"ecash",0,"ecash",0,"ecash",0,"ecash",0,"ecash",0,"ecash",0,"ecash",0,"ecash",0,"ecash",0,"ecash",0,"ecash",0,"ecash",0,"ecash",0,"ecash",0,"ecash",0,"ecash",0,"ecash",0,"ecash",0,"ecash",0,"ecash",0,"ecash",0,"ecash",0,"ecash",0,"ecash",0,"ecash",0,"ecash",0,"ecash",0,"ecash",0,"ecash",0,"ecash",0,"ecash",0,"ecash",0,"ecash",0,"ecash",0,"ecash",0,"ecash",0,"ecash",0,"ecash",0,"ecash",0,"ecash",0,"ecash",0,"ecash",0,"ecash",0,"ecash",0,"ecash",0,"ecash",0,"ecash",0,"ecash",0,"ecash",0,"ecash",0,"ecash",0,"ecash",0,"ecash",0,"ecash",0,"ecash"]
["2017-11-14","Tuesday",null,2,null,null,null,null,null,null,null,null,null,null,null,null,null,null,null,null,null,null,null,null,null,null,null,null,null,null,null,null,null,null,null,null,null,null,null,null,null,null,null,null,null,null,null,null,null,null,null,null,null,null,null,null,null,null,null,null,null,null,null,null,null,null,null,null,null,null,null,null,null,null,null,null,null,null,null,null,null,null,null,null,null,null,null,null,null,null,null,4.7,"ecash",4.7,"ecash",4.7,"ecash",4.7,"ecash",4.7,"ecash",4.7,"ecash",23.5,"7 day e-pass",23.5,"7 day e-pass",23.5,"7 day e-pass",23.5,"7 day e-pass",4.7,"ecash",4.7,"ecash",4.7,"ecash",43.5,"14 day e-pass",43.5,"14 day e-pass",43.5,"14 day e-pass",43.5,"14 day e-pass",4.7,"ecash",4.7,"ecash",4.7,"ecash",64.650000000000006,"21 day e-pass",64.650000000000006,"21 day e-pass",64.650000000000006,"21 day e-pass",64.650000000000006,"21 day e-pass",4.7,"ecash",4.7,"ecash",4.7,"ecash",83.45,"28 day e-pass",83.45,"28 day e-pass",83.45,"28 day e-pass",83.45,"28 day e-pass",83.45,"28 day e-pass",83.45,"28 day e-pass",83.45,"28 day e-pass",83.45,"28 day e-pass",83.45,"28 day e-pass",83.45,"28 day e-pass",83.45,"28 day e-pass",83.45,"28 day e-pass",83.45,"28 day e-pass",83.45,"28 day e-pass",83.45,"28 day e-pass",83.45,"28 day e-pass",83.45,"28 day e-pass",83.45,"28 day e-pass",83.45,"28 day e-pass",83.45,"28 day e-pass",83.45,"28 day e-pass",83.45,"28 day e-pass",83.45,"28 day e-pass",83.45,"28 day e-pass",83.45,"28 day e-pass",83.45,"28 day e-pass",83.45,"28 day e-pass",83.45,"28 day e-pass",83.45,"28 day e-pass",83.45,"28 day e-pass",83.45,"28 day e-pass",83.45,"28 day e-pass",83.45,"28 day e-pass",83.45,"28 day e-pass",83.45,"28 day e-pass",83.45,"28 day e-pass",83.45,"28 day e-pass",83.45,"28 day e-pass",83.45,"28 day e-pass",83.45,"28 day e-pass",83.45,"28 day e-pass",83.45,"28 day e-pass",83.45,"28 day e-pass",83.45,"28 day e-pass",83.45,"28 day e-pass",83.45,"28 day e-pass",83.45,"28 day e-pass",83.45,"28 day e-pass",83.45,"28 day e-pass",83.45,"28 day e-pass",83.45,"28 day e-pass",83.45,"28 day e-pass",83.45,"28 day e-pass",83.45,"28 day e-pass",83.45,"28 day e-pass",83.45,"28 day e-pass",83.45,"28 day e-pass",83.45,"28 day e-pass",83.45,"28 day e-pass",83.45,"28 day e-pass",83.45,"28 day e-pass",83.45,"28 day e-pass",83.45,"28 day e-pass",83.45,"28 day e-pass",83.45,"28 day e-pass",83.45,"28 day e-pass",83.45,"28 day e-pass",83.45,"28 day e-pass",83.45,"28 day e-pass",83.45,"28 day e-pass",83.45,"28 day e-pass",83.45,"28 day e-pass",83.45,"28 day e-pass",83.45,"28 day e-pass",83.45,"28 day e-pass",83.45,"28 day e-pass",83.45,"28 day e-pass",83.45,"28 day e-pass",83.45,"28 day e-pass",83.45,"28 day e-pass",83.45,"28 day e-pass",83.45,"28 day e-pass",83.45,"28 day e-pass",83.45,"28 day e-pass",83.45,"28 day e-pass",83.45,"28 day e-pass",83.45,"28 day e-pass",83.45,"28 day e-pass",83.45,"28 day e-pass",83.45,"28 day e-pass",83.45,"28 day e-pass",83.45,"28 day e-pass",83.45,"28 day e-pass",83.45,"28 day e-pass",83.45,"28 day e-pass",83.45,"28 day e-pass",83.45,"28 day e-pass",83.45,"28 day e-pass",83.45,"28 day e-pass",83.45,"28 day e-pass",83.45,"28 day e-pass",83.45,"28 day e-pass",83.45,"28 day e-pass",83.45,"28 day e-pass",83.45,"28 day e-pass",83.45,"28 day e-pass",83.45,"28 day e-pass",83.45,"28 day e-pass",83.45,"28 day e-pass",83.45,"28 day e-pass",83.45,"28 day e-pass",83.45,"28 day e-pass",83.45,"28 day e-pass",83.45,"28 day e-pass",83.45,"28 day e-pass",83.45,"28 day e-pass",83.45,"28 day e-pass",83.45,"28 day e-pass",83.45,"28 day e-pass",83.45,"28 day e-pass",83.45,"28 day e-pass",83.45,"28 day e-pass",83.45,"28 day e-pass",83.45,"28 day e-pass",83.45,"28 day e-pass",83.45,"28 day e-pass",83.45,"28 day e-pass",83.45,"28 day e-pass",83.45,"28 day e-pass",83.45,"28 day e-pass",83.45,"28 day e-pass",83.45,"28 day e-pass",83.45,"28 day e-pass",83.45,"28 day e-pass",83.45,"28 day e-pass",83.45,"28 day e-pass",83.45,"28 day e-pass",83.45,"28 day e-pass",83.45,"28 day e-pass",83.45,"28 day e-pass",83.45,"28 day e-pass"]
["2017-11-15","Wednesday",null,2,null,null,null,null,null,null,null,null,null,null,null,null,null,null,null,null,null,null,null,null,null,null,null,null,null,null,null,null,null,null,null,null,null,null,null,null,null,null,null,null,null,null,null,null,null,null,null,null,null,null,null,null,null,null,null,null,null,null,null,null,null,null,null,null,null,null,null,null,null,null,null,null,null,null,null,null,null,null,null,null,null,null,null,null,null,null,null,null,null,4.7,"ecash",4.7,"ecash",4.7,"ecash",4.7,"ecash",4.7,"ecash",null,null,null,null,null,null,null,null,4.7,"ecash",4.7,"ecash",4.7,"ecash",null,null,null,null,null,null,null,null,4.7,"ecash",4.7,"ecash",4.7,"ecash",null,null,null,null,null,null,null,null,4.7,"ecash",4.7,"ecash",4.7,"ecash"]
["2017-11-16","Thursday",null,2,null,null,null,null,null,null,null,null,null,null,null,null,null,null,null,null,null,null,null,null,null,null,null,null,null,null,null,null,null,null,null,null,null,null,null,null,null,null,null,null,null,null,null,null,null,null,null,null,null,null,null,null,null,null,null,null,null,null,null,null,null,null,null,null,null,null,null,null,null,null,null,null,null,null,null,null,null,null,null,null,null,null,null,null,null,null,null,null,null,null,null,4.7,"ecash",4.7,"ecash",4.7,"ecash",4.7,"ecash",null,null,null,null,null,null,null,null,4.7,"ecash",4.7,"ecash",4.7,"ecash",null,null,null,null,null,null,null,null,4.7,"ecash",4.7,"ecash",4.7,"ecash",null,null,null,null,null,null,null,null,4.7,"ecash",4.7,"ecash",4.7,"ecash"]
["2017-11-17","Friday",null,2,null,null,null,null,null,null,null,null,null,null,null,null,null,null,null,null,null,null,null,null,null,null,null,null,null,null,null,null,null,null,null,null,null,null,null,null,null,null,null,null,null,null,null,null,null,null,null,null,null,null,null,null,null,null,null,null,null,null,null,null,null,null,null,null,null,null,null,null,null,null,null,null,null,null,null,null,null,null,null,null,null,null,null,null,null,null,null,null,null,null,null,null,null,4.7,"ecash",4.7,"ecash",4.7,"ecash",null,null,null,null,null,null,null,null,4.7,"ecash",4.7,"ecash",4.7,"ecash",null,null,null,null,null,null,null,null,4.7,"ecash",4.7,"ecash",4.7,"ecash",null,null,null,null,null,null,null,null,4.7,"ecash",4.7,"ecash",4.7,"ecash"]
["2017-11-18","Saturday",null,0,null,null,null,null,null,null,null,null,null,null,null,null,null,null,null,null,null,null,null,null,null,null,null,null,null,null,null,null,null,null,null,null,null,null,null,null,null,null,null,null,null,null,null,null,null,null,null,null,null,null,null,null,null,null,null,null,null,null,null,null,null,null,null,null,null,null,null,null,null,null,null,null,null,null,null,null,null,null,null,null,null,null,null,null,null,null,null,null,null,null,null,null,null,null,null,0,"ecash",0,"ecash",null,null,null,null,null,null,null,null,0,"ecash",0,"ecash",0,"ecash",null,null,null,null,null,null,null,null,0,"ecash",0,"ecash",0,"ecash",null,null,null,null,null,null,null,null,0,"ecash",0,"ecash",0,"ecash"]
["2017-11-19","Sunday",null,0,null,null,null,null,null,null,null,null,null,null,null,null,null,null,null,null,null,null,null,null,null,null,null,null,null,null,null,null,null,null,null,null,null,null,null,null,null,null,null,null,null,null,null,null,null,null,null,null,null,null,null,null,null,null,null,null,null,null,null,null,null,null,null,null,null,null,null,null,null,null,null,null,null,null,null,null,null,null,null,null,null,null,null,null,null,null,null,null,null,null,null,null,null,null,null,null,null,0,"ecash",null,null,null,null,null,null,null,null,0,"ecash",0,"ecash",0,"ecash",null,null,null,null,null,null,null,null,0,"ecash",0,"ecash",0,"ecash",null,null,null,null,null,null,null,null,0,"ecash",0,"ecash",0,"ecash"]
["2017-11-20","Monday",null,2,null,null,null,null,null,null,null,null,null,null,null,null,null,null,null,null,null,null,null,null,null,null,null,null,null,null,null,null,null,null,null,null,null,null,null,null,null,null,null,null,null,null,null,null,null,null,null,null,null,null,null,null,null,null,null,null,null,null,null,null,null,null,null,null,null,null,null,null,null,null,null,null,null,null,null,null,null,null,null,null,null,null,null,null,null,null,null,null,null,null,null,null,null,null,null,null,null,null,null,null,null,null,null,null,null,null,null,21.15,"5 day e-pass",21.15,"5 day e-pass",21.15,"5 day e-pass",null,null,null,null,null,null,null,null,21.15,"5 day e-pass",21.15,"5 day e-pass",21.15,"5 day e-pass",null,null,null,null,null,null,null,null,21.15,"5 day e-pass",21.15,"5 day e-pass",21.15,"5 day e-pass"]
["2017-11-21","Tuesday",null,2,null,null,null,null,null,null,null,null,null,null,null,null,null,null,null,null,null,null,null,null,null,null,null,null,null,null,null,null,null,null,null,null,null,null,null,null,null,null,null,null,null,null,null,null,null,null,null,null,null,null,null,null,null,null,null,null,null,null,null,null,null,null,null,null,null,null,null,null,null,null,null,null,null,null,null,null,null,null,null,null,null,null,null,null,null,null,null,null,null,null,null,null,null,null,null,null,null,null,null,null,null,4.7,"ecash",4.7,"ecash",4.7,"ecash"]
["2017-11-22","Wednesday",null,2,null,null,null,null,null,null,null,null,null,null,null,null,null,null,null,null,null,null,null,null,null,null,null,null,null,null,null,null,null,null,null,null,null,null,null,null,null,null,null,null,null,null,null,null,null,null,null,null,null,null,null,null,null,null,null,null,null,null,null,null,null,null,null,null,null,null,null,null,null,null,null,null,null,null,null,null,null,null,null,null,null,null,null,null,null,null,null,null,null,null,null,null,null,null,null,null,null,null,null,null,null,null,null,4.7,"ecash",4.7,"ecash"]
["2017-11-23","Thursday",null,2,null,null,null,null,null,null,null,null,null,null,null,null,null,null,null,null,null,null,null,null,null,null,null,null,null,null,null,null,null,null,null,null,null,null,null,null,null,null,null,null,null,null,null,null,null,null,null,null,null,null,null,null,null,null,null,null,null,null,null,null,null,null,null,null,null,null,null,null,null,null,null,null,null,null,null,null,null,null,null,null,null,null,null,null,null,null,null,null,null,null,null,null,null,null,null,null,null,null,null,null,null,null,null,null,null,4.7,"ecash"]
["2017-11-24","Friday",null,2]
["2017-11-25","Saturday",null,0,null,null,null,null,null,null,null,null,null,null,null,null,null,null,null,null,null,null,null,null,null,null,null,null,null,null,null,null,null,null,null,null,null,null,null,null,null,null,null,null,null,null,null,null,null,null,null,null,null,null,null,null,null,null,null,null,null,null,null,null,null,null,null,null,null,null,null,null,null,null,null,null,null,null,null,null,null,null,null,null,null,null,null,null,null,null,null,null,null,null,null,null,null,null,null,null,null,null,null,null,null,null,null,null,null,null,null,null,null,0,"ecash",0,"ecash",null,null,null,null,null,null,null,null,0,"ecash",0,"ecash",0,"ecash",null,null,null,null,null,null,null,null,0,"ecash",0,"ecash",0,"ecash"]
["2017-11-26","Sunday",null,0,null,null,null,null,null,null,null,null,null,null,null,null,null,null,null,null,null,null,null,null,null,null,null,null,null,null,null,null,null,null,null,null,null,null,null,null,null,null,null,null,null,null,null,null,null,null,null,null,null,null,null,null,null,null,null,null,null,null,null,null,null,null,null,null,null,null,null,null,null,null,null,null,null,null,null,null,null,null,null,null,null,null,null,null,null,null,null,null,null,null,null,null,null,null,null,null,null,null,null,null,null,null,null,null,null,null,null,null,null,null,null,0,"ecash",null,null,null,null,null,null,null,null,0,"ecash",0,"ecash",0,"ecash",null,null,null,null,null,null,null,null,0,"ecash",0,"ecash",0,"ecash"]
["2017-11-27","Monday",null,2,null,null,null,null,null,null,null,null,null,null,null,null,null,null,null,null,null,null,null,null,null,null,null,null,null,null,null,null,null,null,null,null,null,null,null,null,null,null,null,null,null,null,null,null,null,null,null,null,null,null,null,null,null,null,null,null,null,null,null,null,null,null,null,null,null,null,null,null,null,null,null,null,null,null,null,null,null,null,null,null,null,null,null,null,null,null,null,null,null,null,null,null,null,null,null,null,null,null,null,null,null,null,null,null,null,null,null,null,null,null,null,null,null,null,null,null,null,null,null,null,null,21.15,"5 day e-pass",21.15,"5 day e-pass",21.15,"5 day e-pass",null,null,null,null,null,null,null,null,21.15,"5 day e-pass",21.15,"5 day e-pass",21.15,"5 day e-pass"]
["2017-11-28","Tuesday",null,2,null,null,null,null,null,null,null,null,null,null,null,null,null,null,null,null,null,null,null,null,null,null,null,null,null,null,null,null,null,null,null,null,null,null,null,null,null,null,null,null,null,null,null,null,null,null,null,null,null,null,null,null,null,null,null,null,null,null,null,null,null,null,null,null,null,null,null,null,null,null,null,null,null,null,null,null,null,null,null,null,null,null,null,null,null,null,null,null,null,null,null,null,null,null,null,null,null,null,null,null,null,null,null,null,null,null,null,null,null,null,null,null,null,null,null,4.7,"ecash",4.7,"ecash",4.7,"ecash"]
["2017-11-29","Wednesday",null,2,null,null,null,null,null,null,null,null,null,null,null,null,null,null,null,null,null,null,null,null,null,null,null,null,null,null,null,null,null,null,null,null,null,null,null,null,null,null,null,null,null,null,null,null,null,null,null,null,null,null,null,null,null,null,null,null,null,null,null,null,null,null,null,null,null,null,null,null,null,null,null,null,null,null,null,null,null,null,null,null,null,null,null,null,null,null,null,null,null,null,null,null,null,null,null,null,null,null,null,null,null,null,null,null,null,null,null,null,null,null,null,null,null,null,null,null,null,4.7,"ecash",4.7,"ecash"]
["2017-11-30","Thursday",null,2,null,null,null,null,null,null,null,null,null,null,null,null,null,null,null,null,null,null,null,null,null,null,null,null,null,null,null,null,null,null,null,null,null,null,null,null,null,null,null,null,null,null,null,null,null,null,null,null,null,null,null,null,null,null,null,null,null,null,null,null,null,null,null,null,null,null,null,null,null,null,null,null,null,null,null,null,null,null,null,null,null,null,null,null,null,null,null,null,null,null,null,null,null,null,null,null,null,null,null,null,null,null,null,null,null,null,null,null,null,null,null,null,null,null,null,null,null,null,null,4.7,"ecash"]
["2017-12-01","Friday",null,2]
["2017-12-02","Saturday",null,0,null,null,null,null,null,null,null,null,null,null,null,null,null,null,null,null,null,null,null,null,null,null,null,null,null,null,null,null,null,null,null,null,null,null,null,null,null,null,null,null,null,null,null,null,null,null,null,null,null,null,null,null,null,null,null,null,null,null,null,null,null,null,null,null,null,null,null,null,null,null,null,null,null,null,null,null,null,null,null,null,null,null,null,null,null,null,null,null,null,null,null,null,null,null,null,null,null,null,null,null,null,null,null,null,null,null,null,null,null,null,null,null,null,null,null,null,null,null,null,null,null,null,null,0,"ecash",0,"ecash",null,null,null,null,null,null,null,null,0,"ecash",0,"ecash",0,"ecash"]
["2017-12-03","Sunday",null,0,null,null,null,null,null,null,null,null,null,null,null,null,null,null,null,null,null,null,null,null,null,null,null,null,null,null,null,null,null,null,null,null,null,null,null,null,null,null,null,null,null,null,null,null,null,null,null,null,null,null,null,null,null,null,null,null,null,null,null,null,null,null,null,null,null,null,null,null,null,null,null,null,null,null,null,null,null,null,null,null,null,null,null,null,null,null,null,null,null,null,null,null,null,null,null,null,null,null,null,null,null,null,null,null,null,null,null,null,null,null,null,null,null,null,null,null,null,null,null,null,null,null,null,null,null,0,"ecash",null,null,null,null,null,null,null,null,0,"ecash",0,"ecash",0,"ecash"]
["2017-12-04","Monday",null,2,null,null,null,null,null,null,null,null,null,null,null,null,null,null,null,null,null,null,null,null,null,null,null,null,null,null,null,null,null,null,null,null,null,null,null,null,null,null,null,null,null,null,null,null,null,null,null,null,null,null,null,null,null,null,null,null,null,null,null,null,null,null,null,null,null,null,null,null,null,null,null,null,null,null,null,null,null,null,null,null,null,null,null,null,null,null,null,null,null,null,null,null,null,null,null,null,null,null,null,null,null,null,null,null,null,null,null,null,null,null,null,null,null,null,null,null,null,null,null,null,null,null,null,null,null,null,null,null,null,null,null,null,null,null,null,21.15,"5 day e-pass",21.15,"5 day e-pass",21.15,"5 day e-pass"]
["2017-12-05","Tuesday",null,2,null,null,null,null,null,null,null,null,null,null,null,null,null,null,null,null,null,null,null,null,null,null,null,null,null,null,null,null,null,null,null,null,null,null,null,null,null,null,null,null,null,null,null,null,null,null,null,null,null,null,null,null,null,null,null,null,null,null,null,null,null,null,null,null,null,null,null,null,null,null,null,null,null,null,null,null,null,null,null,null,null,null,null,null,null,null,null,null,null,null,null,null,null,null,null,null,null,null,null,null,null,null,null,null,null,null,null,null,null,null,null,null,null,null,null,null,null,null,null,null,null,null,null,null,null,null,null,null,null,4.7,"ecash",4.7,"ecash",4.7,"ecash"]
["2017-12-06",{"$f":"TEXT(A70,\"dddd\")","v":"Wednesday"},null,2,null,null,null,null,null,null,null,null,null,null,null,null,null,null,null,null,null,null,null,null,null,null,null,null,null,null,null,null,null,null,null,null,null,null,null,null,null,null,null,null,null,null,null,null,null,null,null,null,null,null,null,null,null,null,null,null,null,null,null,null,null,null,null,null,null,null,null,null,null,null,null,null,null,null,null,null,null,null,null,null,null,null,null,null,null,null,null,null,null,null,null,null,null,null,null,null,null,null,null,null,null,null,null,null,null,null,null,null,null,null,null,null,null,null,null,null,null,null,null,null,null,null,null,null,null,null,null,null,null,null,null,4.7,"ecash",4.7,"ecash"]
["2017-12-07","Thursday",null,2,null,null,null,null,null,null,null,null,null,null,null,null,null,null,null,null,null,null,null,null,null,null,null,null,null,null,null,null,null,null,null,null,null,null,null,null,null,null,null,null,null,null,null,null,null,null,null,null,null,null,null,null,null,null,null,null,null,null,null,null,null,null,null,null,null,null,null,null,null,null,null,null,null,null,null,null,null,null,null,null,null,null,null,null,null,null,null,null,null,null,null,null,null,null,null,null,null,null,null,null,null,null,null,null,null,null,null,null,null,null,null,null,null,null,null,null,null,null,null,null,null,null,null,null,null,null,null,null,null,null,null,null,null,4.7,"ecash"]
["2017-12-08","Friday",null,2]
["2017-12-09","Saturday",null,0,null,null,null,null,null,null,null,null,null,null,null,null,null,null,null,null,null,null,null,null,null,null,null,null,null,null,null,null,null,null,null,null,null,null,null,null,null,null,null,null,null,null,null,null,null,null,null,null,null,null,null,null,null,null,null,null,null,null,null,null,null,null,null,null,null,null,null,null,null,null,null,null,null,null,null,null,null,null,null,null,null,null,null,null,null,null,null,null,null,null,null,null,null,null,null,null,null,null,null,null,null,null,null,null,null,null,null,null,null,null,null,null,null,null,null,null,null,null,null,null,null,null,null,null,null,null,null,null,null,null,null,null,null,null,null,null,null,0,"ecash",0,"ecash"]
["2017-12-10","Sunday",null,0,null,null,null,null,null,null,null,null,null,null,null,null,null,null,null,null,null,null,null,null,null,null,null,null,null,null,null,null,null,null,null,null,null,null,null,null,null,null,null,null,null,null,null,null,null,null,null,null,null,null,null,null,null,null,null,null,null,null,null,null,null,null,null,null,null,null,null,null,null,null,null,null,null,null,null,null,null,null,null,null,null,null,null,null,null,null,null,null,null,null,null,null,null,null,null,null,null,null,null,null,null,null,null,null,null,null,null,null,null,null,null,null,null,null,null,null,null,null,null,null,null,null,null,null,null,null,null,null,null,null,null,null,null,null,null,null,null,null,null,0,"ecash"]
["2017-12-11","Monday",null,2]
["2017-12-12","Tuesday",null,2,null,null,null,null,null,null,null,null,null,null,null,null,null,null,null,null,null,null,null,null,null,null,null,null,null,null,null,null,null,null,null,null,null,null,null,null,null,null,null,null,null,null,null,null,null,null,null,null,null,null,null,null,null,null,null,null,null,null,null,null,null,null,null,null,null,null,null,null,null,null,null,null,null,null,null,null,null,null,null,null,null,null,null,null,null,null,null,null,null,null,null,null,null,null,null,null,null,null,null,null,null,null,null,null,null,null,null,null,null,null,null,null,null,null,null,null,null,null,null,null,null,null,null,null,null,null,null,null,null,null,null,null,null,null,null,null,null,null,null,null,null,null,null,4.7,"ecash",4.7,"ecash",4.7,"ecash",4.7,"ecash",4.7,"ecash",4.7,"ecash",4.7,"ecash",4.7,"ecash",4.7,"ecash",4.7,"ecash",4.7,"ecash",4.7,"ecash",4.7,"ecash",4.7,"ecash",4.7,"ecash",4.7,"ecash",4.7,"ecash",4.7,"ecash",4.7,"ecash",4.7,"ecash",4.7,"ecash",4.7,"ecash",4.7,"ecash",4.7,"ecash",4.7,"ecash",4.7,"ecash",4.7,"ecash",4.7,"ecash",4.7,"ecash",4.7,"ecash",4.7,"ecash",4.7,"ecash",4.7,"ecash",4.7,"ecash",4.7,"ecash",4.7,"ecash",4.7,"ecash",4.7,"ecash",4.7,"ecash",4.7,"ecash",4.7,"ecash",4.7,"ecash",4.7,"ecash",4.7,"ecash",4.7,"ecash",4.7,"ecash",4.7,"ecash",4.7,"ecash",4.7,"ecash",4.7,"ecash",4.7,"ecash",4.7,"ecash",4.7,"ecash",4.7,"ecash",4.7,"ecash",4.7,"ecash",4.7,"ecash",4.7,"ecash",4.7,"ecash",4.7,"ecash",4.7,"ecash",4.7,"ecash",4.7,"ecash",4.7,"ecash",4.7,"ecash",4.7,"ecash",4.7,"ecash",4.7,"ecash",4.7,"ecash",4.7,"ecash",4.7,"ecash",4.7,"ecash",4.7,"ecash",4.7,"ecash",4.7,"ecash",4.7,"ecash",4.7,"ecash",4.7,"ecash",4.7,"ecash",4.7,"ecash",4.7,"ecash",4.7,"ecash",4.7,"ecash",4.7,"ecash",4.7,"ecash",4.7,"ecash",4.7,"ecash",4.7,"ecash",4.7,"ecash",4.7,"ecash",4.7,"ecash",4.7,"ecash",4.7,"ecash",4.7,"ecash",4.7,"ecash",4.7,"ecash",4.7,"ecash",4.7,"ecash",4.7,"ecash",4.7,"ecash",4.7,"ecash",4.7,"ecash",4.7,"ecash",4.7,"ecash",4.7,"ecash",4.7,"ecash",4.7,"ecash",4.7,"ecash",4.7,"ecash",4.7,"ecash",4.7,"ecash",4.7,"ecash",4.7,"ecash",4.7,"ecash",4.7,"ecash",4.7,"ecash",4.7,"ecash",4.7,"ecash",4.7,"ecash",4.7,"ecash",4.7,"ecash",4.7,"ecash",4.7,"ecash",4.7,"ecash",4.7,"ecash",4.7,"ecash",4.7,"ecash",4.7,"ecash",4.7,"ecash",4.7,"ecash",4.7,"ecash",4.7,"ecash",4.7,"ecash",4.7,"ecash",4.7,"ecash",4.7,"ecash",4.7,"ecash",4.7,"ecash",4.7,"ecash",4.7,"ecash"]
["2017-12-13","Wednesday",null,2,null,null,null,null,null,null,null,null,null,null,null,null,null,null,null,null,null,null,null,null,null,null,null,null,null,null,null,null,null,null,null,null,null,null,null,null,null,null,null,null,null,null,null,null,null,null,null,null,null,null,null,null,null,null,null,null,null,null,null,null,null,null,null,null,null,null,null,null,null,null,null,null,null,null,null,null,null,null,null,null,null,null,null,null,null,null,null,null,null,null,null,null,null,null,null,null,null,null,null,null,null,null,null,null,null,null,null,null,null,null,null,null,null,null,null,null,null,null,null,null,null,null,null,null,null,null,null,null,null,null,null,null,null,null,null,null,null,null,null,null,null,null,null,null,null,4.7,"ecash",4.7,"ecash",4.7,"ecash",4.7,"ecash",4.7,"ecash",4.7,"ecash",4.7,"ecash",4.7,"ecash",4.7,"ecash",4.7,"ecash",4.7,"ecash",4.7,"ecash",4.7,"ecash",4.7,"ecash",4.7,"ecash",4.7,"ecash",4.7,"ecash",4.7,"ecash",4.7,"ecash",4.7,"ecash",4.7,"ecash",4.7,"ecash",4.7,"ecash",4.7,"ecash",4.7,"ecash",4.7,"ecash",4.7,"ecash",4.7,"ecash",4.7,"ecash",4.7,"ecash",4.7,"ecash",4.7,"ecash",4.7,"ecash",4.7,"ecash",4.7,"ecash",4.7,"ecash",4.7,"ecash",4.7,"ecash",4.7,"ecash",4.7,"ecash",4.7,"ecash",4.7,"ecash",4.7,"ecash",4.7,"ecash",4.7,"ecash",4.7,"ecash",4.7,"ecash",4.7,"ecash",4.7,"ecash",4.7,"ecash",4.7,"ecash",4.7,"ecash",4.7,"ecash",4.7,"ecash",4.7,"ecash",4.7,"ecash",4.7,"ecash",4.7,"ecash",4.7,"ecash",4.7,"ecash",4.7,"ecash",4.7,"ecash",4.7,"ecash",4.7,"ecash",4.7,"ecash",4.7,"ecash",4.7,"ecash",4.7,"ecash",4.7,"ecash",4.7,"ecash",4.7,"ecash",4.7,"ecash",4.7,"ecash",4.7,"ecash",4.7,"ecash",4.7,"ecash",4.7,"ecash",4.7,"ecash",4.7,"ecash",4.7,"ecash",4.7,"ecash",4.7,"ecash",4.7,"ecash",4.7,"ecash",4.7,"ecash",4.7,"ecash",4.7,"ecash",4.7,"ecash",4.7,"ecash",4.7,"ecash",4.7,"ecash",4.7,"ecash",4.7,"ecash",4.7,"ecash",4.7,"ecash",4.7,"ecash",4.7,"ecash",4.7,"ecash",4.7,"ecash",4.7,"ecash",4.7,"ecash",4.7,"ecash",4.7,"ecash",4.7,"ecash",4.7,"ecash",4.7,"ecash",4.7,"ecash",4.7,"ecash",4.7,"ecash",4.7,"ecash",4.7,"ecash",4.7,"ecash",4.7,"ecash",4.7,"ecash",4.7,"ecash",4.7,"ecash",4.7,"ecash",4.7,"ecash",4.7,"ecash",4.7,"ecash",4.7,"ecash",4.7,"ecash",4.7,"ecash",4.7,"ecash",4.7,"ecash",4.7,"ecash",4.7,"ecash",4.7,"ecash",4.7,"ecash",4.7,"ecash",4.7,"ecash",4.7,"ecash",4.7,"ecash",4.7,"ecash",4.7,"ecash",4.7,"ecash",4.7,"ecash",4.7,"ecash",4.7,"ecash"]
["2017-12-14","Thursday",null,2,null,null,null,null,null,null,null,null,null,null,null,null,null,null,null,null,null,null,null,null,null,null,null,null,null,null,null,null,null,null,null,null,null,null,null,null,null,null,null,null,null,null,null,null,null,null,null,null,null,null,null,null,null,null,null,null,null,null,null,null,null,null,null,null,null,null,null,null,null,null,null,null,null,null,null,null,null,null,null,null,null,null,null,null,null,null,null,null,null,null,null,null,null,null,null,null,null,null,null,null,null,null,null,null,null,null,null,null,null,null,null,null,null,null,null,null,null,null,null,null,null,null,null,null,null,null,null,null,null,null,null,null,null,null,null,null,null,null,null,null,null,null,null,null,null,null,null,4.7,"ecash",4.7,"ecash",4.7,"ecash",4.7,"ecash",4.7,"ecash",4.7,"ecash",4.7,"ecash",4.7,"ecash",4.7,"ecash",4.7,"ecash",4.7,"ecash",4.7,"ecash",4.7,"ecash",4.7,"ecash",4.7,"ecash",4.7,"ecash",4.7,"ecash",4.7,"ecash",4.7,"ecash",4.7,"ecash",4.7,"ecash",4.7,"ecash",4.7,"ecash",4.7,"ecash",4.7,"ecash",4.7,"ecash",4.7,"ecash",4.7,"ecash",4.7,"ecash",4.7,"ecash",4.7,"ecash",4.7,"ecash",4.7,"ecash",4.7,"ecash",4.7,"ecash",4.7,"ecash",4.7,"ecash",4.7,"ecash",4.7,"ecash",4.7,"ecash",4.7,"ecash",4.7,"ecash",4.7,"ecash",4.7,"ecash",4.7,"ecash",4.7,"ecash",4.7,"ecash",4.7,"ecash",4.7,"ecash",4.7,"ecash",4.7,"ecash",4.7,"ecash",4.7,"ecash",4.7,"ecash",4.7,"ecash",4.7,"ecash",4.7,"ecash",4.7,"ecash",4.7,"ecash",4.7,"ecash",4.7,"ecash",4.7,"ecash",4.7,"ecash",4.7,"ecash",4.7,"ecash",4.7,"ecash",4.7,"ecash",4.7,"ecash",4.7,"ecash",4.7,"ecash",4.7,"ecash",4.7,"ecash",4.7,"ecash",4.7,"ecash",4.7,"ecash",4.7,"ecash",4.7,"ecash",4.7,"ecash",4.7,"ecash",4.7,"ecash",4.7,"ecash",4.7,"ecash",4.7,"ecash",4.7,"ecash",4.7,"ecash",4.7,"ecash",4.7,"ecash",4.7,"ecash",4.7,"ecash",4.7,"ecash",4.7,"ecash",4.7,"ecash",4.7,"ecash",4.7,"ecash",4.7,"ecash",4.7,"ecash",4.7,"ecash",4.7,"ecash",4.7,"ecash",4.7,"ecash",4.7,"ecash",4.7,"ecash",4.7,"ecash",4.7,"ecash",4.7,"ecash",4.7,"ecash",4.7,"ecash",4.7,"ecash",4.7,"ecash",4.7,"ecash",4.7,"ecash",4.7,"ecash",4.7,"ecash",4.7,"ecash",4.7,"ecash",4.7,"ecash",4.7,"ecash",4.7,"ecash",4.7,"ecash",4.7,"ecash",4.7,"ecash",4.7,"ecash",4.7,"ecash",4.7,"ecash",4.7,"ecash",4.7,"ecash",4.7,"ecash",4.7,"ecash",4.7,"ecash",4.7,"ecash",4.7,"ecash",4.7,"ecash",4.7,"ecash",4.7,"ecash",4.7,"ecash",4.7,"ecash",4.7,"ecash",4.7,"ecash"]
["2017-12-15","Friday",null,2,null,null,null,null,null,null,null,null,null,null,null,null,null,null,null,null,null,null,null,null,null,null,null,null,null,null,null,null,null,null,null,null,null,null,null,null,null,null,null,null,null,null,null,null,null,null,null,null,null,null,null,null,null,null,null,null,null,null,null,null,null,null,null,null,null,null,null,null,null,null,null,null,null,null,null,null,null,null,null,null,null,null,null,null,null,null,null,null,null,null,null,null,null,null,null,null,null,null,null,null,null,null,null,null,null,null,null,null,null,null,null,null,null,null,null,null,null,null,null,null,null,null,null,null,null,null,null,null,null,null,null,null,null,null,null,null,null,null,null,null,null,null,null,null,null,null,null,null,null,4.7,"ecash",4.7,"ecash",4.7,"ecash",4.7,"ecash",4.7,"ecash",4.7,"ecash",4.7,"ecash",4.7,"ecash",4.7,"ecash",4.7,"ecash",4.7,"ecash",4.7,"ecash",4.7,"ecash",4.7,"ecash",4.7,"ecash",4.7,"ecash",4.7,"ecash",4.7,"ecash",4.7,"ecash",4.7,"ecash",4.7,"ecash",4.7,"ecash",4.7,"ecash",4.7,"ecash",4.7,"ecash",4.7,"ecash",4.7,"ecash",4.7,"ecash",4.7,"ecash",4.7,"ecash",4.7,"ecash",4.7,"ecash",4.7,"ecash",4.7,"ecash",4.7,"ecash",4.7,"ecash",4.7,"ecash",4.7,"ecash",4.7,"ecash",4.7,"ecash",4.7,"ecash",4.7,"ecash",4.7,"ecash",4.7,"ecash",4.7,"ecash",4.7,"ecash",4.7,"ecash",4.7,"ecash",4.7,"ecash",4.7,"ecash",4.7,"ecash",4.7,"ecash",4.7,"ecash",4.7,"ecash",4.7,"ecash",4.7,"ecash",4.7,"ecash",4.7,"ecash",4.7,"ecash",4.7,"ecash",4.7,"ecash",4.7,"ecash",4.7,"ecash",4.7,"ecash",4.7,"ecash",4.7,"ecash",4.7,"ecash",4.7,"ecash",4.7,"ecash",4.7,"ecash",4.7,"ecash",4.7,"ecash",4.7,"ecash",4.7,"ecash",4.7,"ecash",4.7,"ecash",4.7,"ecash",4.7,"ecash",4.7,"ecash",4.7,"ecash",4.7,"ecash",4.7,"ecash",4.7,"ecash",4.7,"ecash",4.7,"ecash",4.7,"ecash",4.7,"ecash",4.7,"ecash",4.7,"ecash",4.7,"ecash",4.7,"ecash",4.7,"ecash",4.7,"ecash",4.7,"ecash",4.7,"ecash",4.7,"ecash",4.7,"ecash",4.7,"ecash",4.7,"ecash",4.7,"ecash",4.7,"ecash",4.7,"ecash",4.7,"ecash",4.7,"ecash",4.7,"ecash",4.7,"ecash",4.7,"ecash",4.7,"ecash",4.7,"ecash",4.7,"ecash",4.7,"ecash",4.7,"ecash",4.7,"ecash",4.7,"ecash",4.7,"ecash",4.7,"ecash",4.7,"ecash",4.7,"ecash",4.7,"ecash",4.7,"ecash",4.7,"ecash",4.7,"ecash",4.7,"ecash",4.7,"ecash",4.7,"ecash",4.7,"ecash",4.7,"ecash",4.7,"ecash",4.7,"ecash",4.7,"ecash",4.7,"ecash",4.7,"ecash",4.7,"ecash",4.7,"ecash",4.7,"ecash",4.7,"ecash",4.7,"ecash"]
["2017-12-16","Saturday",null,0,null,null,null,null,null,null,null,null,null,null,null,null,null,null,null,null,null,null,null,null,null,null,null,null,null,null,null,null,null,null,null,null,null,null,null,null,null,null,null,null,null,null,null,null,null,null,null,null,null,null,null,null,null,null,null,null,null,null,null,null,null,null,null,null,null,null,null,null,null,null,null,null,null,null,null,null,null,null,null,null,null,null,null,null,null,null,null,null,null,null,null,null,null,null,null,null,null,null,null,null,null,null,null,null,null,null,null,null,null,null,null,null,null,null,null,null,null,null,null,null,null,null,null,null,null,null,null,null,null,null,null,null,null,null,null,null,null,null,null,null,null,null,null,null,null,null,null,null,null,null,null,0,"ecash",0,"ecash",0,"ecash",0,"ecash",0,"ecash",0,"ecash",0,"ecash",0,"ecash",0,"ecash",0,"ecash",0,"ecash",0,"ecash",0,"ecash",0,"ecash",0,"ecash",0,"ecash",0,"ecash",0,"ecash",0,"ecash",0,"ecash",0,"ecash",0,"ecash",0,"ecash",0,"ecash",0,"ecash",0,"ecash",0,"ecash",0,"ecash",0,"ecash",0,"ecash",0,"ecash",0,"ecash",0,"ecash",0,"ecash",0,"ecash",0,"ecash",0,"ecash",0,"ecash",0,"ecash",0,"ecash",0,"ecash",0,"ecash",0,"ecash",0,"ecash",0,"ecash",0,"ecash",0,"ecash",0,"ecash",0,"ecash",0,"ecash",0,"ecash",0,"ecash",0,"ecash",0,"ecash",0,"ecash",0,"ecash",0,"ecash",0,"ecash",0,"ecash",0,"ecash",0,"ecash",0,"ecash",0,"ecash",0,"ecash",0,"ecash",0,"ecash",0,"ecash",0,"ecash",0,"ecash",0,"ecash",0,"ecash",0,"ecash",0,"ecash",0,"ecash",0,"ecash",0,"ecash",0,"ecash",0,"ecash",0,"ecash",0,"ecash",0,"ecash",0,"ecash",0,"ecash",0,"ecash",0,"ecash",0,"ecash",0,"ecash",0,"ecash",0,"ecash",0,"ecash",0,"ecash",0,"ecash",0,"ecash",0,"ecash",0,"ecash",0,"ecash",0,"ecash",0,"ecash",0,"ecash",0,"ecash",0,"ecash",0,"ecash",0,"ecash",0,"ecash",0,"ecash",0,"ecash",0,"ecash",0,"ecash",0,"ecash",0,"ecash",0,"ecash",0,"ecash",0,"ecash",0,"ecash",0,"ecash",0,"ecash",0,"ecash",0,"ecash",0,"ecash",0,"ecash",0,"ecash",0,"ecash",0,"ecash",0,"ecash",0,"ecash",0,"ecash",0,"ecash",0,"ecash",0,"ecash",0,"ecash",0,"ecash",0,"ecash",0,"ecash",0,"ecash",0,"ecash",0,"ecash"]
["2017-12-17","Sunday",null,0,null,null,null,null,null,null,null,null,null,null,null,null,null,null,null,null,null,null,null,null,null,null,null,null,null,null,null,null,null,null,null,null,null,null,null,null,null,null,null,null,null,null,null,null,null,null,null,null,null,null,null,null,null,null,null,null,null,null,null,null,null,null,null,null,null,null,null,null,null,null,null,null,null,null,null,null,null,null,null,null,null,null,null,null,null,null,null,null,null,null,null,null,null,null,null,null,null,null,null,null,null,null,null,null,null,null,null,null,null,null,null,null,null,null,null,null,null,null,null,null,null,null,null,null,null,null,null,null,null,null,null,null,null,null,null,null,null,null,null,null,null,null,null,null,null,null,null,null,null,null,null,null,null,0,"ecash",0,"ecash",0,"ecash",0,"ecash",0,"ecash",0,"ecash",0,"ecash",0,"ecash",0,"ecash",0,"ecash",0,"ecash",0,"ecash",0,"ecash",0,"ecash",0,"ecash",0,"ecash",0,"ecash",0,"ecash",0,"ecash",0,"ecash",0,"ecash",0,"ecash",0,"ecash",0,"ecash",0,"ecash",0,"ecash",0,"ecash",0,"ecash",0,"ecash",0,"ecash",0,"ecash",0,"ecash",0,"ecash",0,"ecash",0,"ecash",0,"ecash",0,"ecash",0,"ecash",0,"ecash",0,"ecash",0,"ecash",0,"ecash",0,"ecash",0,"ecash",0,"ecash",0,"ecash",0,"ecash",0,"ecash",0,"ecash",0,"ecash",0,"ecash",0,"ecash",0,"ecash",0,"ecash",0,"ecash",0,"ecash",0,"ecash",0,"ecash",0,"ecash",0,"ecash",0,"ecash",0,"ecash",0,"ecash",0,"ecash",0,"ecash",0,"ecash",0,"ecash",0,"ecash",0,"ecash",0,"ecash",0,"ecash",0,"ecash",0,"ecash",0,"ecash",0,"ecash",0,"ecash",0,"ecash",0,"ecash",0,"ecash",0,"ecash",0,"ecash",0,"ecash",0,"ecash",0,"ecash",0,"ecash",0,"ecash",0,"ecash",0,"ecash",0,"ecash",0,"ecash",0,"ecash",0,"ecash",0,"ecash",0,"ecash",0,"ecash",0,"ecash",0,"ecash",0,"ecash",0,"ecash",0,"ecash",0,"ecash",0,"ecash",0,"ecash",0,"ecash",0,"ecash",0,"ecash",0,"ecash",0,"ecash",0,"ecash",0,"ecash",0,"ecash",0,"ecash",0,"ecash",0,"ecash",0,"ecash",0,"ecash",0,"ecash",0,"ecash",0,"ecash",0,"ecash",0,"ecash",0,"ecash",0,"ecash",0,"ecash",0,"ecash",0,"ecash",0,"ecash",0,"ecash",0,"ecash",0,"ecash",0,"ecash",0,"ecash",0,"ecash",0,"ecash",0,"ecash"]
["2017-12-18","Monday",null,2,null,null,null,null,null,null,null,null,null,null,null,null,null,null,null,null,null,null,null,null,null,null,null,null,null,null,null,null,null,null,null,null,null,null,null,null,null,null,null,null,null,null,null,null,null,null,null,null,null,null,null,null,null,null,null,null,null,null,null,null,null,null,null,null,null,null,null,null,null,null,null,null,null,null,null,null,null,null,null,null,null,null,null,null,null,null,null,null,null,null,null,null,null,null,null,null,null,null,null,null,null,null,null,null,null,null,null,null,null,null,null,null,null,null,null,null,null,null,null,null,null,null,null,null,null,null,null,null,null,null,null,null,null,null,null,null,null,null,null,null,null,null,null,null,null,null,null,null,null,null,null,null,null,null,null,4.7,"ecash",4.7,"ecash",4.7,"ecash",4.7,"ecash",21.15,"5 day e-pass",21.15,"5 day e-pass",21.15,"5 day e-pass",21.15,"5 day e-pass",21.15,"5 day e-pass",21.15,"5 day e-pass",21.15,"5 day e-pass",21.15,"5 day e-pass",21.15,"5 day e-pass",21.15,"5 day e-pass",21.15,"5 day e-pass",21.15,"5 day e-pass",21.15,"5 day e-pass",21.15,"5 day e-pass",21.15,"5 day e-pass",21.15,"5 day e-pass",21.15,"5 day e-pass",21.15,"5 day e-pass",21.15,"5 day e-pass",21.15,"5 day e-pass",21.15,"5 day e-pass",21.15,"5 day e-pass",21.15,"5 day e-pass",21.15,"5 day e-pass",21.15,"5 day e-pass",21.15,"5 day e-pass",21.15,"5 day e-pass",21.15,"5 day e-pass",21.15,"5 day e-pass",21.15,"5 day e-pass",21.15,"5 day e-pass",21.15,"5 day e-pass",21.15,"5 day e-pass",21.15,"5 day e-pass",21.15,"5 day e-pass",21.15,"5 day e-pass",21.15,"5 day e-pass",21.15,"5 day e-pass",21.15,"5 day e-pass",21.15,"5 day e-pass",21.15,"5 day e-pass",21.15,"5 day e-pass",21.15,"5 day e-pass",21.15,"5 day e-pass",21.15,"5 day e-pass",21.15,"5 day e-pass",21.15,"5 day e-pass",21.15,"5 day e-pass",21.15,"5 day e-pass",21.15,"5 day e-pass",21.15,"5 day e-pass",21.15,"5 day e-pass",21.15,"5 day e-pass",21.15,"5 day e-pass",21.15,"5 day e-pass",21.15,"5 day e-pass",21.15,"5 day e-pass",21.15,"5 day e-pass",21.15,"5 day e-pass",21.15,"5 day e-pass",21.15,"5 day e-pass",21.15,"5 day e-pass",21.15,"5 day e-pass",21.15,"5 day e-pass",21.15,"5 day e-pass",21.15,"5 day e-pass",21.15,"5 day e-pass",21.15,"5 day e-pass",21.15,"5 day e-pass",21.15,"5 day e-pass",21.15,"5 day e-pass",21.15,"5 day e-pass",21.15,"5 day e-pass",21.15,"5 day e-pass",21.15,"5 day e-pass",21.15,"5 day e-pass",21.15,"5 day e-pass",21.15,"5 day e-pass",21.15,"5 day e-pass",21.15,"5 day e-pass",21.15,"5 day e-pass",21.15,"5 day e-pass",21.15,"5 day e-pass",21.15,"5 day e-pass",21.15,"5 day e-pass",21.15,"5 day e-pass",21.15,"5 day e-pass",21.15,"5 day e-pass",21.15,"5 day e-pass",21.15,"5 day e-pass",21.15,"5 day e-pass",21.15,"5 day e-pass",21.15,"5 day e-pass",21.15,"5 day e-pass",21.15,"5 day e-pass",21.15,"5 day e-pass",21.15,"5 day e-pass",21.15,"5 day e-pass",21.15,"5 day e-pass",21.15,"5 day e-pass",21.15,"5 day e-pass",21.15,"5 day e-pass",21.15,"5 day e-pass",21.15,"5 day e-pass",21.15,"5 day e-pass",21.15,"5 day e-pass",21.15,"5 day e-pass",21.15,"5 day e-pass",21.15,"5 day e-pass",21.15,"5 day e-pass",21.15,"5 day e-pass",21.15,"5 day e-pass",21.15,"5 day e-pass",21.15,"5 day e-pass",21.15,"5 day e-pass",21.15,"5 day e-pass",21.15,"5 day e-pass",21.15,"5 day e-pass",21.15,"5 day e-pass",21.15,"5 day e-pass",21.15,"5 day e-pass",21.15,"5 day e-pass",21.15,"5 day e-pass",21.15,"5 day e-pass",21.15,"5 day e-pass",21.15,"5 day e-pass",21.15,"5 day e-pass",21.15,"5 day e-pass",21.15,"5 day e-pass",21.15,"5 day e-pass"]
["2017-12-19","Tuesday",null,2,null,null,null,null,null,null,null,null,null,null,null,null,null,null,null,null,null,null,null,null,null,null,null,null,null,null,null,null,null,null,null,null,null,null,null,null,null,null,null,null,null,null,null,null,null,null,null,null,null,null,null,null,null,null,null,null,null,null,null,null,null,null,null,null,null,null,null,null,null,null,null,null,null,null,null,null,null,null,null,null,null,null,null,null,null,null,null,null,null,null,null,null,null,null,null,null,null,null,null,null,null,null,null,null,null,null,null,null,null,null,null,null,null,null,null,null,null,null,null,null,null,null,null,null,null,null,null,null,null,null,null,null,null,null,null,null,null,null,null,null,null,null,null,null,null,null,null,null,null,null,null,null,null,null,null,null,null,4.7,"ecash",4.7,"ecash",4.7,"ecash"]
["2017-12-20","Wednesday",null,2,null,null,null,null,null,null,null,null,null,null,null,null,null,null,null,null,null,null,null,null,null,null,null,null,null,null,null,null,null,null,null,null,null,null,null,null,null,null,null,null,null,null,null,null,null,null,null,null,null,null,null,null,null,null,null,null,null,null,null,null,null,null,null,null,null,null,null,null,null,null,null,null,null,null,null,null,null,null,null,null,null,null,null,null,null,null,null,null,null,null,null,null,null,null,null,null,null,null,null,null,null,null,null,null,null,null,null,null,null,null,null,null,null,null,null,null,null,null,null,null,null,null,null,null,null,null,null,null,null,null,null,null,null,null,null,null,null,null,null,null,null,null,null,null,null,null,null,null,null,null,null,null,null,null,null,null,null,null,null,4.7,"ecash",4.7,"ecash"]
["2017-12-21","Thursday",null,2,null,null,null,null,null,null,null,null,null,null,null,null,null,null,null,null,null,null,null,null,null,null,null,null,null,null,null,null,null,null,null,null,null,null,null,null,null,null,null,null,null,null,null,null,null,null,null,null,null,null,null,null,null,null,null,null,null,null,null,null,null,null,null,null,null,null,null,null,null,null,null,null,null,null,null,null,null,null,null,null,null,null,null,null,null,null,null,null,null,null,null,null,null,null,null,null,null,null,null,null,null,null,null,null,null,null,null,null,null,null,null,null,null,null,null,null,null,null,null,null,null,null,null,null,null,null,null,null,null,null,null,null,null,null,null,null,null,null,null,null,null,null,null,null,null,null,null,null,null,null,null,null,null,null,null,null,null,null,null,null,null,4.7,"ecash"]
["2017-12-22","Friday",null,2]
["2017-12-23","Saturday",null,0,null,null,null,null,null,null,null,null,null,null,null,null,null,null,null,null,null,null,null,null,null,null,null,null,null,null,null,null,null,null,null,null,null,null,null,null,null,null,null,null,null,null,null,null,null,null,null,null,null,null,null,null,null,null,null,null,null,null,null,null,null,null,null,null,null,null,null,null,null,null,null,null,null,null,null,null,null,null,null,null,null,null,null,null,null,null,null,null,null,null,null,null,null,null,null,null,null,null,null,null,null,null,null,null,null,null,null,null,null,null,null,null,null,null,null,null,null,null,null,null,null,null,null,null,null,null,null,null,null,null,null,null,null,null,null,null,null,null,null,null,null,null,null,null,null,null,null,null,null,null,null,null,null,null,null,null,null,null,null,null,null,null,null,null,null,0,"ecash",0,"ecash",0,"ecash",0,"ecash",0,"ecash",0,"ecash",0,"ecash",0,"ecash",0,"ecash",0,"ecash",0,"ecash",0,"ecash",0,"ecash",0,"ecash",0,"ecash",0,"ecash",0,"ecash",0,"ecash",0,"ecash",0,"ecash",0,"ecash",0,"ecash",0,"ecash",0,"ecash",0,"ecash",0,"ecash",0,"ecash",0,"ecash",0,"ecash",0,"ecash",0,"ecash",0,"ecash",0,"ecash",0,"ecash",0,"ecash",0,"ecash",0,"ecash",0,"ecash",0,"ecash",0,"ecash",0,"ecash",0,"ecash",0,"ecash",0,"ecash",0,"ecash",0,"ecash",0,"ecash",0,"ecash",0,"ecash",0,"ecash",0,"ecash",0,"ecash",0,"ecash",0,"ecash",0,"ecash",0,"ecash",0,"ecash",0,"ecash",0,"ecash",0,"ecash",0,"ecash",0,"ecash",0,"ecash",0,"ecash",0,"ecash",0,"ecash",0,"ecash",0,"ecash",0,"ecash",0,"ecash",0,"ecash",0,"ecash",0,"ecash",0,"ecash",0,"ecash",0,"ecash",0,"ecash",0,"ecash",0,"ecash",0,"ecash",0,"ecash",0,"ecash",0,"ecash",0,"ecash",0,"ecash",0,"ecash",0,"ecash",0,"ecash",0,"ecash",0,"ecash",0,"ecash",0,"ecash",0,"ecash",0,"ecash",0,"ecash",0,"ecash",0,"ecash",0,"ecash",0,"ecash",0,"ecash",0,"ecash",0,"ecash",0,"ecash",0,"ecash",0,"ecash",0,"ecash",0,"ecash",0,"ecash",0,"ecash",0,"ecash",0,"ecash",0,"ecash",0,"ecash",0,"ecash",0,"ecash",0,"ecash",0,"ecash",0,"ecash",0,"ecash",0,"ecash",0,"ecash",0,"ecash",0,"ecash",0,"ecash",0,"ecash",0,"ecash",0,"ecash",0,"ecash",0,"ecash"]
["2017-12-24","Sunday",null,0,null,null,null,null,null,null,null,null,null,null,null,null,null,null,null,null,null,null,null,null,null,null,null,null,null,null,null,null,null,null,null,null,null,null,null,null,null,null,null,null,null,null,null,null,null,null,null,null,null,null,null,null,null,null,null,null,null,null,null,null,null,null,null,null,null,null,null,null,null,null,null,null,null,null,null,null,null,null,null,null,null,null,null,null,null,null,null,null,null,null,null,null,null,null,null,null,null,null,null,null,null,null,null,null,null,null,null,null,null,null,null,null,null,null,null,null,null,null,null,null,null,null,null,null,null,null,null,null,null,null,null,null,null,null,null,null,null,null,null,null,null,null,null,null,null,null,null,null,null,null,null,null,null,null,null,null,null,null,null,null,null,null,null,null,null,null,null,0,"ecash",0,"ecash",0,"ecash",0,"ecash",0,"ecash",0,"ecash",0,"ecash",0,"ecash",0,"ecash",0,"ecash",0,"ecash",0,"ecash",0,"ecash",0,"ecash",0,"ecash",0,"ecash",0,"ecash",0,"ecash",0,"ecash",0,"ecash",0,"ecash",0,"ecash",0,"ecash",0,"ecash",0,"ecash",0,"ecash",0,"ecash",0,"ecash",0,"ecash",0,"ecash",0,"ecash",0,"ecash",0,"ecash",0,"ecash",0,"ecash",0,"ecash",0,"ecash",0,"ecash",0,"ecash",0,"ecash",0,"ecash",0,"ecash",0,"ecash",0,"ecash",0,"ecash",0,"ecash",0,"ecash",0,"ecash",0,"ecash",0,"ecash",0,"ecash",0,"ecash",0,"ecash",0,"ecash",0,"ecash",0,"ecash",0,"ecash",0,"ecash",0,"ecash",0,"ecash",0,"ecash",0,"ecash",0,"ecash",0,"ecash",0,"ecash",0,"ecash",0,"ecash",0,"ecash",0,"ecash",0,"ecash",0,"ecash",0,"ecash",0,"ecash",0,"ecash",0,"ecash",0,"ecash",0,"ecash",0,"ecash",0,"ecash",0,"ecash",0,"ecash",0,"ecash",0,"ecash",0,"ecash",0,"ecash",0,"ecash",0,"ecash",0,"ecash",0,"ecash",0,"ecash",0,"ecash",0,"ecash",0,"ecash",0,"ecash",0,"ecash",0,"ecash",0,"ecash",0,"ecash",0,"ecash",0,"ecash",0,"ecash",0,"ecash",0,"ecash",0,"ecash",0,"ecash",0,"ecash",0,"ecash",0,"ecash",0,"ecash",0,"ecash",0,"ecash",0,"ecash",0,"ecash",0,"ecash",0,"ecash",0,"ecash",0,"ecash",0,"ecash",0,"ecash",0,"ecash",0,"ecash",0,"ecash",0,"ecash",0,"ecash",0,"ecash",0,"ecash",0,"ecash",0,"ecash"]
["2017-12-25","Monday","Christmas",0,null,null,null,null,null,null,null,null,null,null,null,null,null,null,null,null,null,null,null,null,null,null,null,null,null,null,null,null,null,null,null,null,null,null,null,null,null,null,null,null,null,null,null,null,null,null,null,null,null,null,null,null,null,null,null,null,null,null,null,null,null,null,null,null,null,null,null,null,null,null,null,null,null,null,null,null,null,null,null,null,null,null,null,null,null,null,null,null,null,null,null,null,null,null,null,null,null,null,null,null,null,null,null,null,null,null,null,null,null,null,null,null,null,null,null,null,null,null,null,null,null,null,null,null,null,null,null,null,null,null,null,null,null,null,null,null,null,null,null,null,null,null,null,null,null,null,null,null,null,null,null,null,null,null,null,null,null,null,null,null,null,null,null,null,null,null,null,null,null,0,"ecash",0,"ecash",0,"ecash",0,"ecash",0,"ecash",0,"ecash",0,"ecash",0,"ecash",0,"ecash",0,"ecash",0,"ecash",0,"ecash",0,"ecash",0,"ecash",0,"ecash",0,"ecash",0,"ecash",0,"ecash",0,"ecash",0,"ecash",0,"ecash",0,"ecash",0,"ecash",0,"ecash",0,"ecash",0,"ecash",0,"ecash",0,"ecash",0,"ecash",0,"ecash",0,"ecash",0,"ecash",0,"ecash",0,"ecash",0,"ecash",0,"ecash",0,"ecash",0,"ecash",0,"ecash",0,"ecash",0,"ecash",0,"ecash",0,"ecash",0,"ecash",0,"ecash",0,"ecash",0,"ecash",0,"ecash",0,"ecash",0,"ecash",0,"ecash",0,"ecash",0,"ecash",0,"ecash",0,"ecash",0,"ecash",0,"ecash",0,"ecash",0,"ecash",0,"ecash",0,"ecash",0,"ecash",0,"ecash",0,"ecash",0,"ecash",0,"ecash",0,"ecash",0,"ecash",0,"ecash",0,"ecash",0,"ecash",0,"ecash",0,"ecash",0,"ecash",0,"ecash",0,"ecash",0,"ecash",0,"ecash",0,"ecash",0,"ecash",0,"ecash",0,"ecash",0,"ecash",0,"ecash",0,"ecash",0,"ecash",0,"ecash",0,"ecash",0,"ecash",0,"ecash",0,"ecash",0,"ecash",0,"ecash",0,"ecash",0,"ecash",0,"ecash",0,"ecash",0,"ecash",0,"ecash",0,"ecash",0,"ecash",0,"ecash",0,"ecash",0,"ecash",0,"ecash",0,"ecash",0,"ecash",0,"ecash",0,"ecash",0,"ecash",0,"ecash",0,"ecash",0,"ecash",0,"ecash",0,"ecash",0,"ecash",0,"ecash",0,"ecash",0,"ecash",0,"ecash",0,"ecash",0,"ecash",0,"ecash",0,"ecash",0,"ecash",0,"ecash",0,"ecash"]
["2017-12-26","Tuesday","Boxing Day",0,null,null,null,null,null,null,null,null,null,null,null,null,null,null,null,null,null,null,null,null,null,null,null,null,null,null,null,null,null,null,null,null,null,null,null,null,null,null,null,null,null,null,null,null,null,null,null,null,null,null,null,null,null,null,null,null,null,null,null,null,null,null,null,null,null,null,null,null,null,null,null,null,null,null,null,null,null,null,null,null,null,null,null,null,null,null,null,null,null,null,null,null,null,null,null,null,null,null,null,null,null,null,null,null,null,null,null,null,null,null,null,null,null,null,null,null,null,null,null,null,null,null,null,null,null,null,null,null,null,null,null,null,null,null,null,null,null,null,null,null,null,null,null,null,null,null,null,null,null,null,null,null,null,null,null,null,null,null,null,null,null,null,null,null,null,null,null,null,null,null,null,0,"ecash",0,"ecash",0,"ecash",0,"ecash",0,"ecash",0,"ecash",0,"ecash",0,"ecash",0,"ecash",0,"ecash",0,"ecash",0,"ecash",0,"ecash",0,"ecash",0,"ecash",0,"ecash",0,"ecash",0,"ecash",0,"ecash",0,"ecash",0,"ecash",0,"ecash",0,"ecash",0,"ecash",0,"ecash",0,"ecash",0,"ecash",0,"ecash",0,"ecash",0,"ecash",0,"ecash",0,"ecash",0,"ecash",0,"ecash",0,"ecash",0,"ecash",0,"ecash",0,"ecash",0,"ecash",0,"ecash",0,"ecash",0,"ecash",0,"ecash",0,"ecash",0,"ecash",0,"ecash",0,"ecash",0,"ecash",0,"ecash",0,"ecash",0,"ecash",0,"ecash",0,"ecash",0,"ecash",0,"ecash",0,"ecash",0,"ecash",0,"ecash",0,"ecash",0,"ecash",0,"ecash",0,"ecash",0,"ecash",0,"ecash",0,"ecash",0,"ecash",0,"ecash",0,"ecash",0,"ecash",0,"ecash",0,"ecash",0,"ecash",0,"ecash",0,"ecash",0,"ecash",0,"ecash",0,"ecash",0,"ecash",0,"ecash",0,"ecash",0,"ecash",0,"ecash",0,"ecash",0,"ecash",0,"ecash",0,"ecash",0,"ecash",0,"ecash",0,"ecash",0,"ecash",0,"ecash",0,"ecash",0,"ecash",0,"ecash",0,"ecash",0,"ecash",0,"ecash",0,"ecash",0,"ecash",0,"ecash",0,"ecash",0,"ecash",0,"ecash",0,"ecash",0,"ecash",0,"ecash",0,"ecash",0,"ecash",0,"ecash",0,"ecash",0,"ecash",0,"ecash",0,"ecash",0,"ecash",0,"ecash",0,"ecash",0,"ecash",0,"ecash",0,"ecash",0,"ecash",0,"ecash",0,"ecash",0,"ecash",0,"ecash",0,"ecash",0,"ecash"]
["2017-12-27","Wednesday",null,2,null,null,null,null,null,null,null,null,null,null,null,null,null,null,null,null,null,null,null,null,null,null,null,null,null,null,null,null,null,null,null,null,null,null,null,null,null,null,null,null,null,null,null,null,null,null,null,null,null,null,null,null,null,null,null,null,null,null,null,null,null,null,null,null,null,null,null,null,null,null,null,null,null,null,null,null,null,null,null,null,null,null,null,null,null,null,null,null,null,null,null,null,null,null,null,null,null,null,null,null,null,null,null,null,null,null,null,null,null,null,null,null,null,null,null,null,null,null,null,null,null,null,null,null,null,null,null,null,null,null,null,null,null,null,null,null,null,null,null,null,null,null,null,null,null,null,null,null,null,null,null,null,null,null,null,null,null,null,null,null,null,null,null,null,null,null,null,null,null,null,null,null,null,4.7,"ecash",4.7,"ecash",4.7,"ecash",4.7,"ecash",4.7,"ecash",4.7,"ecash",4.7,"ecash",4.7,"ecash",4.7,"ecash",4.7,"ecash",4.7,"ecash",4.7,"ecash",4.7,"ecash",4.7,"ecash",4.7,"ecash",4.7,"ecash",4.7,"ecash",4.7,"ecash",4.7,"ecash",4.7,"ecash",4.7,"ecash",4.7,"ecash",4.7,"ecash",4.7,"ecash",4.7,"ecash",4.7,"ecash",4.7,"ecash",4.7,"ecash",4.7,"ecash",4.7,"ecash",4.7,"ecash",4.7,"ecash",4.7,"ecash",4.7,"ecash",4.7,"ecash",4.7,"ecash",4.7,"ecash",4.7,"ecash",4.7,"ecash",4.7,"ecash",4.7,"ecash",4.7,"ecash",4.7,"ecash",4.7,"ecash",4.7,"ecash",4.7,"ecash",4.7,"ecash",4.7,"ecash",4.7,"ecash",4.7,"ecash",4.7,"ecash",4.7,"ecash",4.7,"ecash",4.7,"ecash",4.7,"ecash",4.7,"ecash",4.7,"ecash",4.7,"ecash",4.7,"ecash",4.7,"ecash",4.7,"ecash",4.7,"ecash",4.7,"ecash",4.7,"ecash",4.7,"ecash",4.7,"ecash",4.7,"ecash",4.7,"ecash",4.7,"ecash",4.7,"ecash",4.7,"ecash",4.7,"ecash",4.7,"ecash",4.7,"ecash",4.7,"ecash",4.7,"ecash",4.7,"ecash",4.7,"ecash",4.7,"ecash",4.7,"ecash",4.7,"ecash",4.7,"ecash",4.7,"ecash",4.7,"ecash",4.7,"ecash",4.7,"ecash",4.7,"ecash",4.7,"ecash",4.7,"ecash",4.7,"ecash",4.7,"ecash",4.7,"ecash",4.7,"ecash",4.7,"ecash",4.7,"ecash",4.7,"ecash",4.7,"ecash",4.7,"ecash",4.7,"ecash",4.7,"ecash",4.7,"ecash",4.7,"ecash",4.7,"ecash",4.7,"ecash",4.7,"ecash",4.7,"ecash",4.7,"ecash",4.7,"ecash",4.7,"ecash",4.7,"ecash",4.7,"ecash",4.7,"ecash",4.7,"ecash",4.7,"ecash",4.7,"ecash",4.7,"ecash",4.7,"ecash",4.7,"ecash",4.7,"ecash",4.7,"ecash",4.7,"ecash",4.7,"ecash",4.7,"ecash",4.7,"ecash",4.7,"ecash"]
["2017-12-28","Thursday",null,2,null,null,null,null,null,null,null,null,null,null,null,null,null,null,null,null,null,null,null,null,null,null,null,null,null,null,null,null,null,null,null,null,null,null,null,null,null,null,null,null,null,null,null,null,null,null,null,null,null,null,null,null,null,null,null,null,null,null,null,null,null,null,null,null,null,null,null,null,null,null,null,null,null,null,null,null,null,null,null,null,null,null,null,null,null,null,null,null,null,null,null,null,null,null,null,null,null,null,null,null,null,null,null,null,null,null,null,null,null,null,null,null,null,null,null,null,null,null,null,null,null,null,null,null,null,null,null,null,null,null,null,null,null,null,null,null,null,null,null,null,null,null,null,null,null,null,null,null,null,null,null,null,null,null,null,null,null,null,null,null,null,null,null,null,null,null,null,null,null,null,null,null,null,null,null,4.7,"ecash",4.7,"ecash",4.7,"ecash",4.7,"ecash",4.7,"ecash",4.7,"ecash",4.7,"ecash",4.7,"ecash",4.7,"ecash",4.7,"ecash",4.7,"ecash",4.7,"ecash",4.7,"ecash",4.7,"ecash",4.7,"ecash",4.7,"ecash",4.7,"ecash",4.7,"ecash",4.7,"ecash",4.7,"ecash",4.7,"ecash",4.7,"ecash",4.7,"ecash",4.7,"ecash",4.7,"ecash",4.7,"ecash",4.7,"ecash",4.7,"ecash",4.7,"ecash",4.7,"ecash",4.7,"ecash",4.7,"ecash",4.7,"ecash",4.7,"ecash",4.7,"ecash",4.7,"ecash",4.7,"ecash",4.7,"ecash",4.7,"ecash",4.7,"ecash",4.7,"ecash",4.7,"ecash",4.7,"ecash",4.7,"ecash",4.7,"ecash",4.7,"ecash",4.7,"ecash",4.7,"ecash",4.7,"ecash",4.7,"ecash",4.7,"ecash",4.7,"ecash",4.7,"ecash",4.7,"ecash",4.7,"ecash",4.7,"ecash",4.7,"ecash",4.7,"ecash",4.7,"ecash",4.7,"ecash",4.7,"ecash",4.7,"ecash",4.7,"ecash",4.7,"ecash",4.7,"ecash",4.7,"ecash",4.7,"ecash",4.7,"ecash",4.7,"ecash",4.7,"ecash",4.7,"ecash",4.7,"ecash",4.7,"ecash",4.7,"ecash",4.7,"ecash",4.7,"ecash",4.7,"ecash",4.7,"ecash",4.7,"ecash",4.7,"ecash",4.7,"ecash",4.7,"ecash",4.7,"ecash",4.7,"ecash",4.7,"ecash",4.7,"ecash",4.7,"ecash",4.7,"ecash",4.7,"ecash",4.7,"ecash",4.7,"ecash",4.7,"ecash",4.7,"ecash",4.7,"ecash",4.7,"ecash",4.7,"ecash",4.7,"ecash",4.7,"ecash",4.7,"ecash",4.7,"ecash",4.7,"ecash",4.7,"ecash",4.7,"ecash",4.7,"ecash",4.7,"ecash",4.7,"ecash",4.7,"ecash",4.7,"ecash",4.7,"ecash",4.7,"ecash",4.7,"ecash",4.7,"ecash",4.7,"ecash",4.7,"ecash",4.7,"ecash",4.7,"ecash",4.7,"ecash",4.7,"ecash",4.7,"ecash",4.7,"ecash",4.7,"ecash",4.7,"ecash",4.7,"ecash",4.7,"ecash"]
["2017-12-29","Friday",null,2,null,null,null,null,null,null,null,null,null,null,null,null,null,null,null,null,null,null,null,null,null,null,null,null,null,null,null,null,null,null,null,null,null,null,null,null,null,null,null,null,null,null,null,null,null,null,null,null,null,null,null,null,null,null,null,null,null,null,null,null,null,null,null,null,null,null,null,null,null,null,null,null,null,null,null,null,null,null,null,null,null,null,null,null,null,null,null,null,null,null,null,null,null,null,null,null,null,null,null,null,null,null,null,null,null,null,null,null,null,null,null,null,null,null,null,null,null,null,null,null,null,null,null,null,null,null,null,null,null,null,null,null,null,null,null,null,null,null,null,null,null,null,null,null,null,null,null,null,null,null,null,null,null,null,null,null,null,null,null,null,null,null,null,null,null,null,null,null,null,null,null,null,null,null,null,null,null,4.7,"ecash",4.7,"ecash",4.7,"ecash",4.7,"ecash",4.7,"ecash",4.7,"ecash",4.7,"ecash",4.7,"ecash",4.7,"ecash",4.7,"ecash",4.7,"ecash",4.7,"ecash",4.7,"ecash",4.7,"ecash",4.7,"ecash",4.7,"ecash",4.7,"ecash",4.7,"ecash",4.7,"ecash",4.7,"ecash",4.7,"ecash",4.7,"ecash",4.7,"ecash",4.7,"ecash",4.7,"ecash",4.7,"ecash",4.7,"ecash",4.7,"ecash",4.7,"ecash",4.7,"ecash",4.7,"ecash",4.7,"ecash",4.7,"ecash",4.7,"ecash",4.7,"ecash",4.7,"ecash",4.7,"ecash",4.7,"ecash",4.7,"ecash",4.7,"ecash",4.7,"ecash",4.7,"ecash",4.7,"ecash",4.7,"ecash",4.7,"ecash",4.7,"ecash",4.7,"ecash",4.7,"ecash",4.7,"ecash",4.7,"ecash",4.7,"ecash",4.7,"ecash",4.7,"ecash",4.7,"ecash",4.7,"ecash",4.7,"ecash",4.7,"ecash",4.7,"ecash",4.7,"ecash",4.7,"ecash",4.7,"ecash",4.7,"ecash",4.7,"ecash",4.7,"ecash",4.7,"ecash",4.7,"ecash",4.7,"ecash",4.7,"ecash",4.7,"ecash",4.7,"ecash",4.7,"ecash",4.7,"ecash",4.7,"ecash",4.7,"ecash",4.7,"ecash",4.7,"ecash",4.7,"ecash",4.7,"ecash",4.7,"ecash",4.7,"ecash",4.7,"ecash",4.7,"ecash",4.7,"ecash",4.7,"ecash",4.7,"ecash",4.7,"ecash",4.7,"ecash",4.7,"ecash",4.7,"ecash",4.7,"ecash",4.7,"ecash",4.7,"ecash",4.7,"ecash",4.7,"ecash",4.7,"ecash",4.7,"ecash",4.7,"ecash",4.7,"ecash",4.7,"ecash",4.7,"ecash",4.7,"ecash",4.7,"ecash",4.7,"ecash",4.7,"ecash",4.7,"ecash",4.7,"ecash",4.7,"ecash",4.7,"ecash",4.7,"ecash",4.7,"ecash",4.7,"ecash",4.7,"ecash",4.7,"ecash",4.7,"ecash",4.7,"ecash",4.7,"ecash",4.7,"ecash",4.7,"ecash",4.7,"ecash",4.7,"ecash",4.7,"ecash",4.7,"ecash",4.7,"ecash"]
["2017-12-30","Saturday",null,0,null,null,null,null,null,null,null,null,null,null,null,null,null,null,null,null,null,null,null,null,null,null,null,null,null,null,null,null,null,null,null,null,null,null,null,null,null,null,null,null,null,null,null,null,null,null,null,null,null,null,null,null,null,null,null,null,null,null,null,null,null,null,null,null,null,null,null,null,null,null,null,null,null,null,null,null,null,null,null,null,null,null,null,null,null,null,null,null,null,null,null,null,null,null,null,null,null,null,null,null,null,null,null,null,null,null,null,null,null,null,null,null,null,null,null,null,null,null,null,null,null,null,null,null,null,null,null,null,null,null,null,null,null,null,null,null,null,null,null,null,null,null,null,null,null,null,null,null,null,null,null,null,null,null,null,null,null,null,null,null,null,null,null,null,null,null,null,null,null,null,null,null,null,null,null,null,null,null,null,0,"ecash",0,"ecash",0,"ecash",0,"ecash",0,"ecash",0,"ecash",0,"ecash",0,"ecash",0,"ecash",0,"ecash",0,"ecash",0,"ecash",0,"ecash",0,"ecash",0,"ecash",0,"ecash",0,"ecash",0,"ecash",0,"ecash",0,"ecash",0,"ecash",0,"ecash",0,"ecash",0,"ecash",0,"ecash",0,"ecash",0,"ecash",0,"ecash",0,"ecash",0,"ecash",0,"ecash",0,"ecash",0,"ecash",0,"ecash",0,"ecash",0,"ecash",0,"ecash",0,"ecash",0,"ecash",0,"ecash",0,"ecash",0,"ecash",0,"ecash",0,"ecash",0,"ecash",0,"ecash",0,"ecash",0,"ecash",0,"ecash",0,"ecash",0,"ecash",0,"ecash",0,"ecash",0,"ecash",0,"ecash",0,"ecash",0,"ecash",0,"ecash",0,"ecash",0,"ecash",0,"ecash",0,"ecash",0,"ecash",0,"ecash",0,"ecash",0,"ecash",0,"ecash",0,"ecash",0,"ecash",0,"ecash",0,"ecash",0,"ecash",0,"ecash",0,"ecash",0,"ecash",0,"ecash",0,"ecash",0,"ecash",0,"ecash",0,"ecash",0,"ecash",0,"ecash",0,"ecash",0,"ecash",0,"ecash",0,"ecash",0,"ecash",0,"ecash",0,"ecash",0,"ecash",0,"ecash",0,"ecash",0,"ecash",0,"ecash",0,"ecash",0,"ecash",0,"ecash",0,"ecash",0,"ecash",0,"ecash",0,"ecash",0,"ecash",0,"ecash",0,"ecash",0,"ecash",0,"ecash",0,"ecash",0,"ecash",0,"ecash",0,"ecash",0,"ecash",0,"ecash",0,"ecash",0,"ecash",0,"ecash",0,"ecash",0,"ecash",0,"ecash",0,"ecash",0,"ecash",0,"ecash",0,"ecash"]
["2017-12-31","Sunday",null,0,null,null,null,null,null,null,null,null,null,null,null,null,null,null,null,null,null,null,null,null,null,null,null,null,null,null,null,null,null,null,null,null,null,null,null,null,null,null,null,null,null,null,null,null,null,null,null,null,null,null,null,null,null,null,null,null,null,null,null,null,null,null,null,null,null,null,null,null,null,null,null,null,null,null,null,null,null,null,null,null,null,null,null,null,null,null,null,null,null,null,null,null,null,null,null,null,null,null,null,null,null,null,null,null,null,null,null,null,null,null,null,null,null,null,null,null,null,null,null,null,null,null,null,null,null,null,null,null,null,null,null,null,null,null,null,null,null,null,null,null,null,null,null,null,null,null,null,null,null,null,null,null,null,null,null,null,null,null,null,null,null,null,null,null,null,null,null,null,null,null,null,null,null,null,null,null,null,null,null,null,null,0,"ecash",0,"ecash",0,"ecash",0,"ecash",0,"ecash",0,"ecash",0,"ecash",0,"ecash",0,"ecash",0,"ecash",0,"ecash",0,"ecash",0,"ecash",0,"ecash",0,"ecash",0,"ecash",0,"ecash",0,"ecash",0,"ecash",0,"ecash",0,"ecash",0,"ecash",0,"ecash",0,"ecash",0,"ecash",0,"ecash",0,"ecash",0,"ecash",0,"ecash",0,"ecash",0,"ecash",0,"ecash",0,"ecash",0,"ecash",0,"ecash",0,"ecash",0,"ecash",0,"ecash",0,"ecash",0,"ecash",0,"ecash",0,"ecash",0,"ecash",0,"ecash",0,"ecash",0,"ecash",0,"ecash",0,"ecash",0,"ecash",0,"ecash",0,"ecash",0,"ecash",0,"ecash",0,"ecash",0,"ecash",0,"ecash",0,"ecash",0,"ecash",0,"ecash",0,"ecash",0,"ecash",0,"ecash",0,"ecash",0,"ecash",0,"ecash",0,"ecash",0,"ecash",0,"ecash",0,"ecash",0,"ecash",0,"ecash",0,"ecash",0,"ecash",0,"ecash",0,"ecash",0,"ecash",0,"ecash",0,"ecash",0,"ecash",0,"ecash",0,"ecash",0,"ecash",0,"ecash",0,"ecash",0,"ecash",0,"ecash",0,"ecash",0,"ecash",0,"ecash",0,"ecash",0,"ecash",0,"ecash",0,"ecash",0,"ecash",0,"ecash",0,"ecash",0,"ecash",0,"ecash",0,"ecash",0,"ecash",0,"ecash",0,"ecash",0,"ecash",0,"ecash",0,"ecash",0,"ecash",0,"ecash",0,"ecash",0,"ecash",0,"ecash",0,"ecash",0,"ecash",0,"ecash",0,"ecash",0,"ecash",0,"ecash",0,"ecash",0,"ecash",0,"ecash",0,"ecash",0,"ecash"]
["2018-01-01","Monday","New Years Day",0,null,null,null,null,null,null,null,null,null,null,null,null,null,null,null,null,null,null,null,null,null,null,null,null,null,null,null,null,null,null,null,null,null,null,null,null,null,null,null,null,null,null,null,null,null,null,null,null,null,null,null,null,null,null,null,null,null,null,null,null,null,null,null,null,null,null,null,null,null,null,null,null,null,null,null,null,null,null,null,null,null,null,null,null,null,null,null,null,null,null,null,null,null,null,null,null,null,null,null,null,null,null,null,null,null,null,null,null,null,null,null,null,null,null,null,null,null,null,null,null,null,null,null,null,null,null,null,null,null,null,null,null,null,null,null,null,null,null,null,null,null,null,null,null,null,null,null,null,null,null,null,null,null,null,null,null,null,null,null,null,null,null,null,null,null,null,null,null,null,null,null,null,null,null,null,null,null,null,null,null,null,null,null,0,"ecash",0,"ecash",0,"ecash",0,"ecash",0,"ecash",0,"ecash",0,"ecash",0,"ecash",0,"ecash",0,"ecash",0,"ecash",0,"ecash",0,"ecash",0,"ecash",0,"ecash",0,"ecash",0,"ecash",0,"ecash",0,"ecash",0,"ecash",0,"ecash",0,"ecash",0,"ecash",0,"ecash",0,"ecash",0,"ecash",0,"ecash",0,"ecash",0,"ecash",0,"ecash",90.5,"Monthly e-pass",90.5,"Monthly e-pass",90.5,"Monthly e-pass",90.5,"Monthly e-pass",90.5,"Monthly e-pass",90.5,"Monthly e-pass",90.5,"Monthly e-pass",90.5,"Monthly e-pass",90.5,"Monthly e-pass",90.5,"Monthly e-pass",90.5,"Monthly e-pass",90.5,"Monthly e-pass",90.5,"Monthly e-pass",90.5,"Monthly e-pass",90.5,"Monthly e-pass",90.5,"Monthly e-pass",90.5,"Monthly e-pass",90.5,"Monthly e-pass",90.5,"Monthly e-pass",90.5,"Monthly e-pass",90.5,"Monthly e-pass",90.5,"Monthly e-pass",90.5,"Monthly e-pass",90.5,"Monthly e-pass",90.5,"Monthly e-pass",90.5,"Monthly e-pass",90.5,"Monthly e-pass",90.5,"Monthly e-pass",90.5,"Monthly e-pass",90.5,"Monthly e-pass",90.5,"Monthly e-pass",90.5,"Monthly e-pass",90.5,"Monthly e-pass",90.5,"Monthly e-pass",90.5,"Monthly e-pass",90.5,"Monthly e-pass",90.5,"Monthly e-pass",90.5,"Monthly e-pass",90.5,"Monthly e-pass",90.5,"Monthly e-pass",90.5,"Monthly e-pass",90.5,"Monthly e-pass",90.5,"Monthly e-pass",90.5,"Monthly e-pass",90.5,"Monthly e-pass",90.5,"Monthly e-pass",90.5,"Monthly e-pass",90.5,"Monthly e-pass",90.5,"Monthly e-pass",90.5,"Monthly e-pass",90.5,"Monthly e-pass",90.5,"Monthly e-pass",90.5,"Monthly e-pass",90.5,"Monthly e-pass",90.5,"Monthly e-pass",90.5,"Monthly e-pass",90.5,"Monthly e-pass",90.5,"Monthly e-pass",90.5,"Monthly e-pass",90.5,"Monthly e-pass",90.5,"Monthly e-pass",90.5,"Monthly e-pass",90.5,"Monthly e-pass",90.5,"Monthly e-pass",90.5,"Monthly e-pass",90.5,"Monthly e-pass",90.5,"Monthly e-pass",90.5,"Monthly e-pass",90.5,"Monthly e-pass",90.5,"Monthly e-pass",90.5,"Monthly e-pass",90.5,"Monthly e-pass",90.5,"Monthly e-pass",90.5,"Monthly e-pass",90.5,"Monthly e-pass",90.5,"Monthly e-pass",90.5,"Monthly e-pass",90.5,"Monthly e-pass",90.5,"Monthly e-pass",90.5,"Monthly e-pass",90.5,"Monthly e-pass",90.5,"Monthly e-pass",90.5,"Monthly e-pass",90.5,"Monthly e-pass",90.5,"Monthly e-pass",90.5,"Monthly e-pass",90.5,"Monthly e-pass",90.5,"Monthly e-pass",90.5,"Monthly e-pass",90.5,"Monthly e-pass"]
["2018-01-02","Tuesday",null,2,null,null,null,null,null,null,null,null,null,null,null,null,null,null,null,null,null,null,null,null,null,null,null,null,null,null,null,null,null,null,null,null,null,null,null,null,null,null,null,null,null,null,null,null,null,null,null,null,null,null,null,null,null,null,null,null,null,null,null,null,null,null,null,null,null,null,null,null,null,null,null,null,null,null,null,null,null,null,null,null,null,null,null,null,null,null,null,null,null,null,null,null,null,null,null,null,null,null,null,null,null,null,null,null,null,null,null,null,null,null,null,null,null,null,null,null,null,null,null,null,null,null,null,null,null,null,null,null,null,null,null,null,null,null,null,null,null,null,null,null,null,null,null,null,null,null,null,null,null,null,null,null,null,null,null,null,null,null,null,null,null,null,null,null,null,null,null,null,null,null,null,null,null,null,null,null,null,null,null,null,null,null,null,null,null,4.7,"ecash",4.7,"ecash",4.7,"ecash",4.7,"ecash",4.7,"ecash",4.7,"ecash",4.7,"ecash",4.7,"ecash",4.7,"ecash",4.7,"ecash",4.7,"ecash",4.7,"ecash",4.7,"ecash",43.5,"14 day e-pass",4.7,"ecash",4.7,"ecash",4.7,"ecash",4.7,"ecash",4.7,"ecash",4.7,"ecash",64.650000000000006,"21 day e-pass",64.650000000000006,"21 day e-pass",64.650000000000006,"21 day e-pass",64.650000000000006,"21 day e-pass",4.7,"ecash",4.7,"ecash",4.7,"ecash",83.45,"28 day e-pass",83.45,"28 day e-pass"]
["2018-01-03","Wednesday",null,2,null,null,null,null,null,null,null,null,null,null,null,null,null,null,null,null,null,null,null,null,null,null,null,null,null,null,null,null,null,null,null,null,null,null,null,null,null,null,null,null,null,null,null,null,null,null,null,null,null,null,null,null,null,null,null,null,null,null,null,null,null,null,null,null,null,null,null,null,null,null,null,null,null,null,null,null,null,null,null,null,null,null,null,null,null,null,null,null,null,null,null,null,null,null,null,null,null,null,null,null,null,null,null,null,null,null,null,null,null,null,null,null,null,null,null,null,null,null,null,null,null,null,null,null,null,null,null,null,null,null,null,null,null,null,null,null,null,null,null,null,null,null,null,null,null,null,null,null,null,null,null,null,null,null,null,null,null,null,null,null,null,null,null,null,null,null,null,null,null,null,null,null,null,null,null,null,null,null,null,null,null,null,null,null,null,null,null,4.7,"ecash",4.7,"ecash",4.7,"ecash",4.7,"ecash",4.7,"ecash",4.7,"ecash",4.7,"ecash",4.7,"ecash",4.7,"ecash",4.7,"ecash",4.7,"ecash",4.7,"ecash",null,null,43.5,"14 day e-pass",43.5,"14 day e-pass",43.5,"14 day e-pass",4.7,"ecash",4.7,"ecash",4.7,"ecash",null,null,null,null,null,null,null,null,4.7,"ecash",4.7,"ecash",4.7,"ecash"]
["2018-01-04","Thursday",null,2,null,null,null,null,null,null,null,null,null,null,null,null,null,null,null,null,null,null,null,null,null,null,null,null,null,null,null,null,null,null,null,null,null,null,null,null,null,null,null,null,null,null,null,null,null,null,null,null,null,null,null,null,null,null,null,null,null,null,null,null,null,null,null,null,null,null,null,null,null,null,null,null,null,null,null,null,null,null,null,null,null,null,null,null,null,null,null,null,null,null,null,null,null,null,null,null,null,null,null,null,null,null,null,null,null,null,null,null,null,null,null,null,null,null,null,null,null,null,null,null,null,null,null,null,null,null,null,null,null,null,null,null,null,null,null,null,null,null,null,null,null,null,null,null,null,null,null,null,null,null,null,null,null,null,null,null,null,null,null,null,null,null,null,null,null,null,null,null,null,null,null,null,null,null,null,null,null,null,null,null,null,null,null,null,null,null,null,null,null,4.7,"ecash",4.7,"ecash",4.7,"ecash",4.7,"ecash",4.7,"ecash",4.7,"ecash",4.7,"ecash",4.7,"ecash",4.7,"ecash",4.7,"ecash",4.7,"ecash",null,null,null,null,null,null,null,null,4.7,"ecash",4.7,"ecash",4.7,"ecash",null,null,null,null,null,null,null,null,4.7,"ecash",4.7,"ecash",4.7,"ecash"]
["2018-01-05","Friday",null,2,null,null,null,null,null,null,null,null,null,null,null,null,null,null,null,null,null,null,null,null,null,null,null,null,null,null,null,null,null,null,null,null,null,null,null,null,null,null,null,null,null,null,null,null,null,null,null,null,null,null,null,null,null,null,null,null,null,null,null,null,null,null,null,null,null,null,null,null,null,null,null,null,null,null,null,null,null,null,null,null,null,null,null,null,null,null,null,null,null,null,null,null,null,null,null,null,null,null,null,null,null,null,null,null,null,null,null,null,null,null,null,null,null,null,null,null,null,null,null,null,null,null,null,null,null,null,null,null,null,null,null,null,null,null,null,null,null,null,null,null,null,null,null,null,null,null,null,null,null,null,null,null,null,null,null,null,null,null,null,null,null,null,null,null,null,null,null,null,null,null,null,null,null,null,null,null,null,null,null,null,null,null,null,null,null,null,null,null,null,null,null,4.7,"ecash",4.7,"ecash",4.7,"ecash",4.7,"ecash",4.7,"ecash",4.7,"ecash",4.7,"ecash",4.7,"ecash",4.7,"ecash",4.7,"ecash",null,null,null,null,null,null,null,null,4.7,"ecash",4.7,"ecash",4.7,"ecash",null,null,null,null,null,null,null,null,4.7,"ecash",4.7,"ecash",4.7,"ecash"]
["2018-01-06","Saturday",null,0,null,null,null,null,null,null,null,null,null,null,null,null,null,null,null,null,null,null,null,null,null,null,null,null,null,null,null,null,null,null,null,null,null,null,null,null,null,null,null,null,null,null,null,null,null,null,null,null,null,null,null,null,null,null,null,null,null,null,null,null,null,null,null,null,null,null,null,null,null,null,null,null,null,null,null,null,null,null,null,null,null,null,null,null,null,null,null,null,null,null,null,null,null,null,null,null,null,null,null,null,null,null,null,null,null,null,null,null,null,null,null,null,null,null,null,null,null,null,null,null,null,null,null,null,null,null,null,null,null,null,null,null,null,null,null,null,null,null,null,null,null,null,null,null,null,null,null,null,null,null,null,null,null,null,null,null,null,null,null,null,null,null,null,null,null,null,null,null,null,null,null,null,null,null,null,null,null,null,null,null,null,null,null,null,null,null,null,null,null,null,null,null,null,0,"ecash",0,"ecash",0,"ecash",0,"ecash",0,"ecash",0,"ecash",0,"ecash",0,"ecash",0,"ecash",null,null,null,null,null,null,null,null,0,"ecash",0,"ecash",0,"ecash",null,null,null,null,null,null,null,null,0,"ecash",0,"ecash",0,"ecash"]
["2018-01-07","Sunday",null,0,null,null,null,null,null,null,null,null,null,null,null,null,null,null,null,null,null,null,null,null,null,null,null,null,null,null,null,null,null,null,null,null,null,null,null,null,null,null,null,null,null,null,null,null,null,null,null,null,null,null,null,null,null,null,null,null,null,null,null,null,null,null,null,null,null,null,null,null,null,null,null,null,null,null,null,null,null,null,null,null,null,null,null,null,null,null,null,null,null,null,null,null,null,null,null,null,null,null,null,null,null,null,null,null,null,null,null,null,null,null,null,null,null,null,null,null,null,null,null,null,null,null,null,null,null,null,null,null,null,null,null,null,null,null,null,null,null,null,null,null,null,null,null,null,null,null,null,null,null,null,null,null,null,null,null,null,null,null,null,null,null,null,null,null,null,null,null,null,null,null,null,null,null,null,null,null,null,null,null,null,null,null,null,null,null,null,null,null,null,null,null,null,null,null,null,0,"ecash",0,"ecash",0,"ecash",0,"ecash",0,"ecash",0,"ecash",0,"ecash",0,"ecash",null,null,null,null,null,null,null,null,0,"ecash",0,"ecash",0,"ecash",null,null,null,null,null,null,null,null,0,"ecash",0,"ecash",0,"ecash"]
["2018-01-08","Monday",null,2,null,null,null,null,null,null,null,null,null,null,null,null,null,null,null,null,null,null,null,null,null,null,null,null,null,null,null,null,null,null,null,null,null,null,null,null,null,null,null,null,null,null,null,null,null,null,null,null,null,null,null,null,null,null,null,null,null,null,null,null,null,null,null,null,null,null,null,null,null,null,null,null,null,null,null,null,null,null,null,null,null,null,null,null,null,null,null,null,null,null,null,null,null,null,null,null,null,null,null,null,null,null,null,null,null,null,null,null,null,null,null,null,null,null,null,null,null,null,null,null,null,null,null,null,null,null,null,null,null,null,null,null,null,null,null,null,null,null,null,null,null,null,null,null,null,null,null,null,null,null,null,null,null,null,null,null,null,null,null,null,null,null,null,null,null,null,null,null,null,null,null,null,null,null,null,null,null,null,null,null,null,null,null,null,null,null,null,null,null,null,null,null,null,null,null,null,null,4.7,"ecash",4.7,"ecash",4.7,"ecash",4.7,"ecash",21.15,"5 day e-pass",21.15,"5 day e-pass",21.15,"5 day e-pass",null,null,null,null,null,null,null,null,21.15,"5 day e-pass",21.15,"5 day e-pass",21.15,"5 day e-pass",null,null,null,null,null,null,null,null,21.15,"5 day e-pass",21.15,"5 day e-pass",21.15,"5 day e-pass"]
["2018-01-09","Tuesday",null,2,null,null,null,null,null,null,null,null,null,null,null,null,null,null,null,null,null,null,null,null,null,null,null,null,null,null,null,null,null,null,null,null,null,null,null,null,null,null,null,null,null,null,null,null,null,null,null,null,null,null,null,null,null,null,null,null,null,null,null,null,null,null,null,null,null,null,null,null,null,null,null,null,null,null,null,null,null,null,null,null,null,null,null,null,null,null,null,null,null,null,null,null,null,null,null,null,null,null,null,null,null,null,null,null,null,null,null,null,null,null,null,null,null,null,null,null,null,null,null,null,null,null,null,null,null,null,null,null,null,null,null,null,null,null,null,null,null,null,null,null,null,null,null,null,null,null,null,null,null,null,null,null,null,null,null,null,null,null,null,null,null,null,null,null,null,null,null,null,null,null,null,null,null,null,null,null,null,null,null,null,null,null,null,null,null,null,null,null,null,null,null,null,null,null,null,null,null,null,null,4.7,"ecash",4.7,"ecash",4.7,"ecash"]
["2018-01-10","Wednesday",null,2,null,null,null,null,null,null,null,null,null,null,null,null,null,null,null,null,null,null,null,null,null,null,null,null,null,null,null,null,null,null,null,null,null,null,null,null,null,null,null,null,null,null,null,null,null,null,null,null,null,null,null,null,null,null,null,null,null,null,null,null,null,null,null,null,null,null,null,null,null,null,null,null,null,null,null,null,null,null,null,null,null,null,null,null,null,null,null,null,null,null,null,null,null,null,null,null,null,null,null,null,null,null,null,null,null,null,null,null,null,null,null,null,null,null,null,null,null,null,null,null,null,null,null,null,null,null,null,null,null,null,null,null,null,null,null,null,null,null,null,null,null,null,null,null,null,null,null,null,null,null,null,null,null,null,null,null,null,null,null,null,null,null,null,null,null,null,null,null,null,null,null,null,null,null,null,null,null,null,null,null,null,null,null,null,null,null,null,null,null,null,null,null,null,null,null,null,null,null,null,null,null,4.7,"ecash",4.7,"ecash"]
["2018-01-11","Thursday",null,2,null,null,null,null,null,null,null,null,null,null,null,null,null,null,null,null,null,null,null,null,null,null,null,null,null,null,null,null,null,null,null,null,null,null,null,null,null,null,null,null,null,null,null,null,null,null,null,null,null,null,null,null,null,null,null,null,null,null,null,null,null,null,null,null,null,null,null,null,null,null,null,null,null,null,null,null,null,null,null,null,null,null,null,null,null,null,null,null,null,null,null,null,null,null,null,null,null,null,null,null,null,null,null,null,null,null,null,null,null,null,null,null,null,null,null,null,null,null,null,null,null,null,null,null,null,null,null,null,null,null,null,null,null,null,null,null,null,null,null,null,null,null,null,null,null,null,null,null,null,null,null,null,null,null,null,null,null,null,null,null,null,null,null,null,null,null,null,null,null,null,null,null,null,null,null,null,null,null,null,null,null,null,null,null,null,null,null,null,null,null,null,null,null,null,null,null,null,null,null,null,null,null,null,4.7,"ecash"]
["2018-01-12","Friday",null,2]
["2018-01-13","Saturday",null,0,null,null,null,null,null,null,null,null,null,null,null,null,null,null,null,null,null,null,null,null,null,null,null,null,null,null,null,null,null,null,null,null,null,null,null,null,null,null,null,null,null,null,null,null,null,null,null,null,null,null,null,null,null,null,null,null,null,null,null,null,null,null,null,null,null,null,null,null,null,null,null,null,null,null,null,null,null,null,null,null,null,null,null,null,null,null,null,null,null,null,null,null,null,null,null,null,null,null,null,null,null,null,null,null,null,null,null,null,null,null,null,null,null,null,null,null,null,null,null,null,null,null,null,null,null,null,null,null,null,null,null,null,null,null,null,null,null,null,null,null,null,null,null,null,null,null,null,null,null,null,null,null,null,null,null,null,null,null,null,null,null,null,null,null,null,null,null,null,null,null,null,null,null,null,null,null,null,null,null,null,null,null,null,null,null,null,null,null,null,null,null,null,null,null,null,null,null,null,null,null,null,null,null,null,null,null,null,0,"ecash",0,"ecash",null,null,null,null,null,null,null,null,0,"ecash",0,"ecash",0,"ecash",null,null,null,null,null,null,null,null,0,"ecash",0,"ecash",0,"ecash"]
["2018-01-14","Sunday",null,0,null,null,null,null,null,null,null,null,null,null,null,null,null,null,null,null,null,null,null,null,null,null,null,null,null,null,null,null,null,null,null,null,null,null,null,null,null,null,null,null,null,null,null,null,null,null,null,null,null,null,null,null,null,null,null,null,null,null,null,null,null,null,null,null,null,null,null,null,null,null,null,null,null,null,null,null,null,null,null,null,null,null,null,null,null,null,null,null,null,null,null,null,null,null,null,null,null,null,null,null,null,null,null,null,null,null,null,null,null,null,null,null,null,null,null,null,null,null,null,null,null,null,null,null,null,null,null,null,null,null,null,null,null,null,null,null,null,null,null,null,null,null,null,null,null,null,null,null,null,null,null,null,null,null,null,null,null,null,null,null,null,null,null,null,null,null,null,null,null,null,null,null,null,null,null,null,null,null,null,null,null,null,null,null,null,null,null,null,null,null,null,null,null,null,null,null,null,null,null,null,null,null,null,null,null,null,null,null,null,0,"ecash",null,null,null,null,null,null,null,null,0,"ecash",0,"ecash",0,"ecash",null,null,null,null,null,null,null,null,0,"ecash",0,"ecash",0,"ecash"]
["2018-01-15","Monday",null,2,null,null,null,null,null,null,null,null,null,null,null,null,null,null,null,null,null,null,null,null,null,null,null,null,null,null,null,null,null,null,null,null,null,null,null,null,null,null,null,null,null,null,null,null,null,null,null,null,null,null,null,null,null,null,null,null,null,null,null,null,null,null,null,null,null,null,null,null,null,null,null,null,null,null,null,null,null,null,null,null,null,null,null,null,null,null,null,null,null,null,null,null,null,null,null,null,null,null,null,null,null,null,null,null,null,null,null,null,null,null,null,null,null,null,null,null,null,null,null,null,null,null,null,null,null,null,null,null,null,null,null,null,null,null,null,null,null,null,null,null,null,null,null,null,null,null,null,null,null,null,null,null,null,null,null,null,null,null,null,null,null,null,null,null,null,null,null,null,null,null,null,null,null,null,null,null,null,null,null,null,null,null,null,null,null,null,null,null,null,null,null,null,null,null,null,null,null,null,null,null,null,null,null,null,null,null,null,null,null,null,null,null,null,null,null,null,null,null,null,21.15,"5 day e-pass",21.15,"5 day e-pass",21.15,"5 day e-pass",null,null,null,null,null,null,null,null,21.15,"5 day e-pass",21.15,"5 day e-pass",21.15,"5 day e-pass"]
["2018-01-16","Tuesday",null,2]
["2018-01-17","Wednesday",null,2,null,null,null,null,null,null,null,null,null,null,null,null,null,null,null,null,null,null,null,null,null,null,null,null,null,null,null,null,null,null,null,null,null,null,null,null,null,null,null,null,null,null,null,null,null,null,null,null,null,null,null,null,null,null,null,null,null,null,null,null,null,null,null,null,null,null,null,null,null,null,null,null,null,null,null,null,null,null,null,null,null,null,null,null,null,null,null,null,null,null,null,null,null,null,null,null,null,null,null,null,null,null,null,null,null,null,null,null,null,null,null,null,null,null,null,null,null,null,null,null,null,null,null,null,null,null,null,null,null,null,null,null,null,null,null,null,null,null,null,null,null,null,null,null,null,null,null,null,null,null,null,null,null,null,null,null,null,null,null,null,null,null,null,null,null,null,null,null,null,null,null,null,null,null,null,null,null,null,null,null,null,null,null,null,null,null,null,null,null,null,null,null,null,null,null,null,null,null,null,null,null,null,null,null,null,null,null,null,null,null,null,null,null,null,null,4.7,"ecash",4.7,"ecash"]
["2018-01-18","Thursday",null,2,null,null,null,null,null,null,null,null,null,null,null,null,null,null,null,null,null,null,null,null,null,null,null,null,null,null,null,null,null,null,null,null,null,null,null,null,null,null,null,null,null,null,null,null,null,null,null,null,null,null,null,null,null,null,null,null,null,null,null,null,null,null,null,null,null,null,null,null,null,null,null,null,null,null,null,null,null,null,null,null,null,null,null,null,null,null,null,null,null,null,null,null,null,null,null,null,null,null,null,null,null,null,null,null,null,null,null,null,null,null,null,null,null,null,null,null,null,null,null,null,null,null,null,null,null,null,null,null,null,null,null,null,null,null,null,null,null,null,null,null,null,null,null,null,null,null,null,null,null,null,null,null,null,null,null,null,null,null,null,null,null,null,null,null,null,null,null,null,null,null,null,null,null,null,null,null,null,null,null,null,null,null,null,null,null,null,null,null,null,null,null,null,null,null,null,null,null,null,null,null,null,null,null,null,null,null,null,null,null,null,null,null,null,null,null,null,null,4.7,"ecash"]
["2018-01-19","Friday",null,2]
["2018-01-20","Saturday",null,0,null,null,null,null,null,null,null,null,null,null,null,null,null,null,null,null,null,null,null,null,null,null,null,null,null,null,null,null,null,null,null,null,null,null,null,null,null,null,null,null,null,null,null,null,null,null,null,null,null,null,null,null,null,null,null,null,null,null,null,null,null,null,null,null,null,null,null,null,null,null,null,null,null,null,null,null,null,null,null,null,null,null,null,null,null,null,null,null,null,null,null,null,null,null,null,null,null,null,null,null,null,null,null,null,null,null,null,null,null,null,null,null,null,null,null,null,null,null,null,null,null,null,null,null,null,null,null,null,null,null,null,null,null,null,null,null,null,null,null,null,null,null,null,null,null,null,null,null,null,null,null,null,null,null,null,null,null,null,null,null,null,null,null,null,null,null,null,null,null,null,null,null,null,null,null,null,null,null,null,null,null,null,null,null,null,null,null,null,null,null,null,null,null,null,null,null,null,null,null,null,null,null,null,null,null,null,null,null,null,null,null,null,null,null,null,null,null,null,null,null,null,0,"ecash",0,"ecash",null,null,null,null,null,null,null,null,0,"ecash",0,"ecash",0,"ecash"]
["2018-01-21","Sunday",null,0,null,null,null,null,null,null,null,null,null,null,null,null,null,null,null,null,null,null,null,null,null,null,null,null,null,null,null,null,null,null,null,null,null,null,null,null,null,null,null,null,null,null,null,null,null,null,null,null,null,null,null,null,null,null,null,null,null,null,null,null,null,null,null,null,null,null,null,null,null,null,null,null,null,null,null,null,null,null,null,null,null,null,null,null,null,null,null,null,null,null,null,null,null,null,null,null,null,null,null,null,null,null,null,null,null,null,null,null,null,null,null,null,null,null,null,null,null,null,null,null,null,null,null,null,null,null,null,null,null,null,null,null,null,null,null,null,null,null,null,null,null,null,null,null,null,null,null,null,null,null,null,null,null,null,null,null,null,null,null,null,null,null,null,null,null,null,null,null,null,null,null,null,null,null,null,null,null,null,null,null,null,null,null,null,null,null,null,null,null,null,null,null,null,null,null,null,null,null,null,null,null,null,null,null,null,null,null,null,null,null,null,null,null,null,null,null,null,null,null,null,null,null,null,0,"ecash",null,null,null,null,null,null,null,null,0,"ecash",0,"ecash",0,"ecash"]
["2018-01-22","Monday",null,2,null,null,null,null,null,null,null,null,null,null,null,null,null,null,null,null,null,null,null,null,null,null,null,null,null,null,null,null,null,null,null,null,null,null,null,null,null,null,null,null,null,null,null,null,null,null,null,null,null,null,null,null,null,null,null,null,null,null,null,null,null,null,null,null,null,null,null,null,null,null,null,null,null,null,null,null,null,null,null,null,null,null,null,null,null,null,null,null,null,null,null,null,null,null,null,null,null,null,null,null,null,null,null,null,null,null,null,null,null,null,null,null,null,null,null,null,null,null,null,null,null,null,null,null,null,null,null,null,null,null,null,null,null,null,null,null,null,null,null,null,null,null,null,null,null,null,null,null,null,null,null,null,null,null,null,null,null,null,null,null,null,null,null,null,null,null,null,null,null,null,null,null,null,null,null,null,null,null,null,null,null,null,null,null,null,null,null,null,null,null,null,null,null,null,null,null,null,null,null,null,null,null,null,null,null,null,null,null,null,null,null,null,null,null,null,null,null,null,null,null,null,null,null,null,null,null,null,null,null,null,null,null,null,21.15,"5 day e-pass",21.15,"5 day e-pass",21.15,"5 day e-pass"]
["2018-01-23","Tuesday",null,2,null,null,null,null,null,null,null,null,null,null,null,null,null,null,null,null,null,null,null,null,null,null,null,null,null,null,null,null,null,null,null,null,null,null,null,null,null,null,null,null,null,null,null,null,null,null,null,null,null,null,null,null,null,null,null,null,null,null,null,null,null,null,null,null,null,null,null,null,null,null,null,null,null,null,null,null,null,null,null,null,null,null,null,null,null,null,null,null,null,null,null,null,null,null,null,null,null,null,null,null,null,null,null,null,null,null,null,null,null,null,null,null,null,null,null,null,null,null,null,null,null,null,null,null,null,null,null,null,null,null,null,null,null,null,null,null,null,null,null,null,null,null,null,null,null,null,null,null,null,null,null,null,null,null,null,null,null,null,null,null,null,null,null,null,null,null,null,null,null,null,null,null,null,null,null,null,null,null,null,null,null,null,null,null,null,null,null,null,null,null,null,null,null,null,null,null,null,null,null,null,null,null,null,null,null,null,null,null,null,null,null,null,null,null,null,null,null,null,null,null,null,null,null,null,null,null,null,4.7,"ecash",4.7,"ecash",4.7,"ecash"]
["2018-01-24","Wednesday",null,2,null,null,null,null,null,null,null,null,null,null,null,null,null,null,null,null,null,null,null,null,null,null,null,null,null,null,null,null,null,null,null,null,null,null,null,null,null,null,null,null,null,null,null,null,null,null,null,null,null,null,null,null,null,null,null,null,null,null,null,null,null,null,null,null,null,null,null,null,null,null,null,null,null,null,null,null,null,null,null,null,null,null,null,null,null,null,null,null,null,null,null,null,null,null,null,null,null,null,null,null,null,null,null,null,null,null,null,null,null,null,null,null,null,null,null,null,null,null,null,null,null,null,null,null,null,null,null,null,null,null,null,null,null,null,null,null,null,null,null,null,null,null,null,null,null,null,null,null,null,null,null,null,null,null,null,null,null,null,null,null,null,null,null,null,null,null,null,null,null,null,null,null,null,null,null,null,null,null,null,null,null,null,null,null,null,null,null,null,null,null,null,null,null,null,null,null,null,null,null,null,null,null,null,null,null,null,null,null,null,null,null,null,null,null,null,null,null,null,null,null,null,null,null,null,null,null,null,null,null,4.7,"ecash",4.7,"ecash"]
["2018-01-25","Thursday",null,2,null,null,null,null,null,null,null,null,null,null,null,null,null,null,null,null,null,null,null,null,null,null,null,null,null,null,null,null,null,null,null,null,null,null,null,null,null,null,null,null,null,null,null,null,null,null,null,null,null,null,null,null,null,null,null,null,null,null,null,null,null,null,null,null,null,null,null,null,null,null,null,null,null,null,null,null,null,null,null,null,null,null,null,null,null,null,null,null,null,null,null,null,null,null,null,null,null,null,null,null,null,null,null,null,null,null,null,null,null,null,null,null,null,null,null,null,null,null,null,null,null,null,null,null,null,null,null,null,null,null,null,null,null,null,null,null,null,null,null,null,null,null,null,null,null,null,null,null,null,null,null,null,null,null,null,null,null,null,null,null,null,null,null,null,null,null,null,null,null,null,null,null,null,null,null,null,null,null,null,null,null,null,null,null,null,null,null,null,null,null,null,null,null,null,null,null,null,null,null,null,null,null,null,null,null,null,null,null,null,null,null,null,null,null,null,null,null,null,null,null,null,null,null,null,null,null,null,null,null,null,null,4.7,"ecash"]
["2018-01-26","Friday",null,2]
["2018-01-27","Saturday",null,0,null,null,null,null,null,null,null,null,null,null,null,null,null,null,null,null,null,null,null,null,null,null,null,null,null,null,null,null,null,null,null,null,null,null,null,null,null,null,null,null,null,null,null,null,null,null,null,null,null,null,null,null,null,null,null,null,null,null,null,null,null,null,null,null,null,null,null,null,null,null,null,null,null,null,null,null,null,null,null,null,null,null,null,null,null,null,null,null,null,null,null,null,null,null,null,null,null,null,null,null,null,null,null,null,null,null,null,null,null,null,null,null,null,null,null,null,null,null,null,null,null,null,null,null,null,null,null,null,null,null,null,null,null,null,null,null,null,null,null,null,null,null,null,null,null,null,null,null,null,null,null,null,null,null,null,null,null,null,null,null,null,null,null,null,null,null,null,null,null,null,null,null,null,null,null,null,null,null,null,null,null,null,null,null,null,null,null,null,null,null,null,null,null,null,null,null,null,null,null,null,null,null,null,null,null,null,null,null,null,null,null,null,null,null,null,null,null,null,null,null,null,null,null,null,null,null,null,null,null,null,null,null,null,null,null,0,"ecash",0,"ecash"]
["2018-01-28","Sunday",null,0,null,null,null,null,null,null,null,null,null,null,null,null,null,null,null,null,null,null,null,null,null,null,null,null,null,null,null,null,null,null,null,null,null,null,null,null,null,null,null,null,null,null,null,null,null,null,null,null,null,null,null,null,null,null,null,null,null,null,null,null,null,null,null,null,null,null,null,null,null,null,null,null,null,null,null,null,null,null,null,null,null,null,null,null,null,null,null,null,null,null,null,null,null,null,null,null,null,null,null,null,null,null,null,null,null,null,null,null,null,null,null,null,null,null,null,null,null,null,null,null,null,null,null,null,null,null,null,null,null,null,null,null,null,null,null,null,null,null,null,null,null,null,null,null,null,null,null,null,null,null,null,null,null,null,null,null,null,null,null,null,null,null,null,null,null,null,null,null,null,null,null,null,null,null,null,null,null,null,null,null,null,null,null,null,null,null,null,null,null,null,null,null,null,null,null,null,null,null,null,null,null,null,null,null,null,null,null,null,null,null,null,null,null,null,null,null,null,null,null,null,null,null,null,null,null,null,null,null,null,null,null,null,null,null,null,null,null,0,"ecash"]
["2018-01-29","Monday",null,2]
["2018-01-30","Tuesday",null,2,null,null,null,null,null,null,null,null,null,null,null,null,null,null,null,null,null,null,null,null,null,null,null,null,null,null,null,null,null,null,null,null,null,null,null,null,null,null,null,null,null,null,null,null,null,null,null,null,null,null,null,null,null,null,null,null,null,null,null,null,null,null,null,null,null,null,null,null,null,null,null,null,null,null,null,null,null,null,null,null,null,null,null,null,null,null,null,null,null,null,null,null,null,null,null,null,null,null,null,null,null,null,null,null,null,null,null,null,null,null,null,null,null,null,null,null,null,null,null,null,null,null,null,null,null,null,null,null,null,null,null,null,null,null,null,null,null,null,null,null,null,null,null,null,null,null,null,null,null,null,null,null,null,null,null,null,null,null,null,null,null,null,null,null,null,null,null,null,null,null,null,null,null,null,null,null,null,null,null,null,null,null,null,null,null,null,null,null,null,null,null,null,null,null,null,null,null,null,null,null,null,null,null,null,null,null,null,null,null,null,null,null,null,null,null,null,null,null,null,null,null,null,null,null,null,null,null,null,null,null,null,null,null,null,null,null,null,null,null,null,null,4.7,"ecash"]
["2018-01-31","Wednesday",null,2]
["2018-02-01","Thursday",null,2,null,null,null,null,null,null,null,null,null,null,null,null,null,null,null,null,null,null,null,null,null,null,null,null,null,null,null,null,null,null,null,null,null,null,null,null,null,null,null,null,null,null,null,null,null,null,null,null,null,null,null,null,null,null,null,null,null,null,null,null,null,null,null,null,null,null,null,null,null,null,null,null,null,null,null,null,null,null,null,null,null,null,null,null,null,null,null,null,null,null,null,null,null,null,null,null,null,null,null,null,null,null,null,null,null,null,null,null,null,null,null,null,null,null,null,null,null,null,null,null,null,null,null,null,null,null,null,null,null,null,null,null,null,null,null,null,null,null,null,null,null,null,null,null,null,null,null,null,null,null,null,null,null,null,null,null,null,null,null,null,null,null,null,null,null,null,null,null,null,null,null,null,null,null,null,null,null,null,null,null,null,null,null,null,null,null,null,null,null,null,null,null,null,null,null,null,null,null,null,null,null,null,null,null,null,null,null,null,null,null,null,null,null,null,null,null,null,null,null,null,null,null,null,null,null,null,null,null,null,null,null,null,null,null,null,null,null,null,null,null,null,null,null,null,null,4.7,"ecash",4.7,"ecash",4.7,"ecash",4.7,"ecash",4.7,"ecash",4.7,"ecash",4.7,"ecash",4.7,"ecash",4.7,"ecash",4.7,"ecash",4.7,"ecash",4.7,"ecash",4.7,"ecash",43.5,"14 day e-pass",43.5,"14 day e-pass",4.7,"ecash",4.7,"ecash",4.7,"ecash",4.7,"ecash",4.7,"ecash",4.7,"ecash",4.7,"ecash",4.7,"ecash",4.7,"ecash",4.7,"ecash",4.7,"ecash",4.7,"ecash",83.45,"28 day e-pass",83.45,"28 day e-pass",4.7,"ecash",4.7,"ecash",4.7,"ecash",4.7,"ecash",4.7,"ecash",4.7,"ecash",4.7,"ecash",4.7,"ecash",4.7,"ecash",4.7,"ecash",4.7,"ecash",4.7,"ecash",4.7,"ecash",4.7,"ecash",4.7,"ecash",4.7,"ecash",4.7,"ecash",4.7,"ecash",4.7,"ecash",4.7,"ecash",4.7,"ecash",4.7,"ecash",4.7,"ecash",4.7,"ecash",4.7,"ecash",4.7,"ecash",83.45,"28 day e-pass",83.45,"28 day e-pass",83.45,"28 day e-pass",83.45,"28 day e-pass",83.45,"28 day e-pass",83.45,"28 day e-pass",83.45,"28 day e-pass",83.45,"28 day e-pass",83.45,"28 day e-pass",83.45,"28 day e-pass",83.45,"28 day e-pass",83.45,"28 day e-pass",83.45,"28 day e-pass",83.45,"28 day e-pass",83.45,"28 day e-pass",83.45,"28 day e-pass",83.45,"28 day e-pass",83.45,"28 day e-pass",83.45,"28 day e-pass",4.7,"ecash",4.7,"ecash",4.7,"ecash",4.7,"ecash",83.45,"28 day e-pass",83.45,"28 day e-pass",83.45,"28 day e-pass",83.45,"28 day e-pass",83.45,"28 day e-pass",83.45,"28 day e-pass",83.45,"28 day e-pass",83.45,"28 day e-pass",83.45,"28 day e-pass",83.45,"28 day e-pass",83.45,"28 day e-pass"]
["2018-02-02","Friday",null,2,null,null,null,null,null,null,null,null,null,null,null,null,null,null,null,null,null,null,null,null,null,null,null,null,null,null,null,null,null,null,null,null,null,null,null,null,null,null,null,null,null,null,null,null,null,null,null,null,null,null,null,null,null,null,null,null,null,null,null,null,null,null,null,null,null,null,null,null,null,null,null,null,null,null,null,null,null,null,null,null,null,null,null,null,null,null,null,null,null,null,null,null,null,null,null,null,null,null,null,null,null,null,null,null,null,null,null,null,null,null,null,null,null,null,null,null,null,null,null,null,null,null,null,null,null,null,null,null,null,null,null,null,null,null,null,null,null,null,null,null,null,null,null,null,null,null,null,null,null,null,null,null,null,null,null,null,null,null,null,null,null,null,null,null,null,null,null,null,null,null,null,null,null,null,null,null,null,null,null,null,null,null,null,null,null,null,null,null,null,null,null,null,null,null,null,null,null,null,null,null,null,null,null,null,null,null,null,null,null,null,null,null,null,null,null,null,null,null,null,null,null,null,null,null,null,null,null,null,null,null,null,null,null,null,null,null,null,null,null,null,null,null,null,null,null,null,null,4.7,"ecash",4.7,"ecash",4.7,"ecash",4.7,"ecash",4.7,"ecash",4.7,"ecash",4.7,"ecash",4.7,"ecash",4.7,"ecash",4.7,"ecash",4.7,"ecash",4.7,"ecash",null,null,null,null,4.7,"ecash",4.7,"ecash",4.7,"ecash",4.7,"ecash",4.7,"ecash",4.7,"ecash",4.7,"ecash",4.7,"ecash",4.7,"ecash",4.7,"ecash",4.7,"ecash",4.7,"ecash",null,null,null,null,4.7,"ecash",4.7,"ecash",4.7,"ecash",4.7,"ecash",4.7,"ecash",4.7,"ecash",4.7,"ecash",4.7,"ecash",4.7,"ecash",4.7,"ecash",4.7,"ecash",4.7,"ecash",4.7,"ecash",4.7,"ecash",4.7,"ecash",4.7,"ecash",4.7,"ecash",4.7,"ecash",4.7,"ecash",4.7,"ecash",4.7,"ecash",4.7,"ecash",4.7,"ecash",4.7,"ecash",4.7,"ecash",4.7,"ecash",null,null,null,null,null,null,null,null,null,null,null,null,null,null,null,null,null,null,null,null,null,null,null,null,null,null,null,null,null,null,null,null,null,null,null,null,null,null,4.7,"ecash",4.7,"ecash",4.7,"ecash",4.7,"ecash"]
["2018-02-03","Saturday",null,0,null,null,null,null,null,null,null,null,null,null,null,null,null,null,null,null,null,null,null,null,null,null,null,null,null,null,null,null,null,null,null,null,null,null,null,null,null,null,null,null,null,null,null,null,null,null,null,null,null,null,null,null,null,null,null,null,null,null,null,null,null,null,null,null,null,null,null,null,null,null,null,null,null,null,null,null,null,null,null,null,null,null,null,null,null,null,null,null,null,null,null,null,null,null,null,null,null,null,null,null,null,null,null,null,null,null,null,null,null,null,null,null,null,null,null,null,null,null,null,null,null,null,null,null,null,null,null,null,null,null,null,null,null,null,null,null,null,null,null,null,null,null,null,null,null,null,null,null,null,null,null,null,null,null,null,null,null,null,null,null,null,null,null,null,null,null,null,null,null,null,null,null,null,null,null,null,null,null,null,null,null,null,null,null,null,null,null,null,null,null,null,null,null,null,null,null,null,null,null,null,null,null,null,null,null,null,null,null,null,null,null,null,null,null,null,null,null,null,null,null,null,null,null,null,null,null,null,null,null,null,null,null,null,null,null,null,null,null,null,null,null,null,null,null,null,null,null,null,null,0,"ecash",0,"ecash",0,"ecash",0,"ecash",0,"ecash",0,"ecash",0,"ecash",0,"ecash",0,"ecash",0,"ecash",0,"ecash",null,null,null,null,0,"ecash",0,"ecash",0,"ecash",0,"ecash",0,"ecash",0,"ecash",0,"ecash",0,"ecash",0,"ecash",0,"ecash",0,"ecash",0,"ecash",null,null,null,null,0,"ecash",0,"ecash",0,"ecash",0,"ecash",0,"ecash",0,"ecash",0,"ecash",0,"ecash",0,"ecash",0,"ecash",0,"ecash",0,"ecash",0,"ecash",0,"ecash",0,"ecash",0,"ecash",0,"ecash",0,"ecash",0,"ecash",0,"ecash",0,"ecash",0,"ecash",0,"ecash",0,"ecash",0,"ecash",0,"ecash",null,null,null,null,null,null,null,null,null,null,null,null,null,null,null,null,null,null,null,null,null,null,null,null,null,null,null,null,null,null,null,null,null,null,null,null,null,null,0,"ecash",0,"ecash",0,"ecash",0,"ecash"]
["2018-02-04","Sunday",null,0,null,null,null,null,null,null,null,null,null,null,null,null,null,null,null,null,null,null,null,null,null,null,null,null,null,null,null,null,null,null,null,null,null,null,null,null,null,null,null,null,null,null,null,null,null,null,null,null,null,null,null,null,null,null,null,null,null,null,null,null,null,null,null,null,null,null,null,null,null,null,null,null,null,null,null,null,null,null,null,null,null,null,null,null,null,null,null,null,null,null,null,null,null,null,null,null,null,null,null,null,null,null,null,null,null,null,null,null,null,null,null,null,null,null,null,null,null,null,null,null,null,null,null,null,null,null,null,null,null,null,null,null,null,null,null,null,null,null,null,null,null,null,null,null,null,null,null,null,null,null,null,null,null,null,null,null,null,null,null,null,null,null,null,null,null,null,null,null,null,null,null,null,null,null,null,null,null,null,null,null,null,null,null,null,null,null,null,null,null,null,null,null,null,null,null,null,null,null,null,null,null,null,null,null,null,null,null,null,null,null,null,null,null,null,null,null,null,null,null,null,null,null,null,null,null,null,null,null,null,null,null,null,null,null,null,null,null,null,null,null,null,null,null,null,null,null,null,null,null,null,null,0,"ecash",0,"ecash",0,"ecash",0,"ecash",0,"ecash",0,"ecash",0,"ecash",0,"ecash",0,"ecash",0,"ecash",null,null,null,null,0,"ecash",0,"ecash",0,"ecash",0,"ecash",0,"ecash",0,"ecash",0,"ecash",0,"ecash",0,"ecash",0,"ecash",0,"ecash",0,"ecash",null,null,null,null,0,"ecash",0,"ecash",0,"ecash",0,"ecash",0,"ecash",0,"ecash",0,"ecash",0,"ecash",0,"ecash",0,"ecash",0,"ecash",0,"ecash",0,"ecash",0,"ecash",0,"ecash",0,"ecash",0,"ecash",0,"ecash",0,"ecash",0,"ecash",0,"ecash",0,"ecash",0,"ecash",0,"ecash",0,"ecash",0,"ecash",null,null,null,null,null,null,null,null,null,null,null,null,null,null,null,null,null,null,null,null,null,null,null,null,null,null,null,null,null,null,null,null,null,null,null,null,null,null,0,"ecash",0,"ecash",0,"ecash",0,"ecash"]
["2018-02-05","Monday",null,2,null,null,null,null,null,null,null,null,null,null,null,null,null,null,null,null,null,null,null,null,null,null,null,null,null,null,null,null,null,null,null,null,null,null,null,null,null,null,null,null,null,null,null,null,null,null,null,null,null,null,null,null,null,null,null,null,null,null,null,null,null,null,null,null,null,null,null,null,null,null,null,null,null,null,null,null,null,null,null,null,null,null,null,null,null,null,null,null,null,null,null,null,null,null,null,null,null,null,null,null,null,null,null,null,null,null,null,null,null,null,null,null,null,null,null,null,null,null,null,null,null,null,null,null,null,null,null,null,null,null,null,null,null,null,null,null,null,null,null,null,null,null,null,null,null,null,null,null,null,null,null,null,null,null,null,null,null,null,null,null,null,null,null,null,null,null,null,null,null,null,null,null,null,null,null,null,null,null,null,null,null,null,null,null,null,null,null,null,null,null,null,null,null,null,null,null,null,null,null,null,null,null,null,null,null,null,null,null,null,null,null,null,null,null,null,null,null,null,null,null,null,null,null,null,null,null,null,null,null,null,null,null,null,null,null,null,null,null,null,null,null,null,null,null,null,null,null,null,null,null,null,null,null,4.7,"ecash",4.7,"ecash",4.7,"ecash",4.7,"ecash",21.15,"5 day e-pass",21.15,"5 day e-pass",21.15,"5 day e-pass",21.15,"5 day e-pass",21.15,"5 day e-pass",null,null,null,null,21.15,"5 day e-pass",21.15,"5 day e-pass",21.15,"5 day e-pass",21.15,"5 day e-pass",21.15,"5 day e-pass",21.15,"5 day e-pass",21.15,"5 day e-pass",21.15,"5 day e-pass",21.15,"5 day e-pass",21.15,"5 day e-pass",21.15,"5 day e-pass",21.15,"5 day e-pass",null,null,null,null,21.15,"5 day e-pass",21.15,"5 day e-pass",21.15,"5 day e-pass",21.15,"5 day e-pass",21.15,"5 day e-pass",21.15,"5 day e-pass",21.15,"5 day e-pass",21.15,"5 day e-pass",21.15,"5 day e-pass",21.15,"5 day e-pass",21.15,"5 day e-pass",21.15,"5 day e-pass",21.15,"5 day e-pass",21.15,"5 day e-pass",21.15,"5 day e-pass",21.15,"5 day e-pass",21.15,"5 day e-pass",21.15,"5 day e-pass",21.15,"5 day e-pass",21.15,"5 day e-pass",21.15,"5 day e-pass",21.15,"5 day e-pass",21.15,"5 day e-pass",21.15,"5 day e-pass",21.15,"5 day e-pass",21.15,"5 day e-pass",null,null,null,null,null,null,null,null,null,null,null,null,null,null,null,null,null,null,null,null,null,null,null,null,null,null,null,null,null,null,null,null,null,null,null,null,null,null,21.15,"5 day e-pass",21.15,"5 day e-pass",21.15,"5 day e-pass",21.15,"5 day e-pass"]
["2018-02-06","Tuesday",null,2,null,null,null,null,null,null,null,null,null,null,null,null,null,null,null,null,null,null,null,null,null,null,null,null,null,null,null,null,null,null,null,null,null,null,null,null,null,null,null,null,null,null,null,null,null,null,null,null,null,null,null,null,null,null,null,null,null,null,null,null,null,null,null,null,null,null,null,null,null,null,null,null,null,null,null,null,null,null,null,null,null,null,null,null,null,null,null,null,null,null,null,null,null,null,null,null,null,null,null,null,null,null,null,null,null,null,null,null,null,null,null,null,null,null,null,null,null,null,null,null,null,null,null,null,null,null,null,null,null,null,null,null,null,null,null,null,null,null,null,null,null,null,null,null,null,null,null,null,null,null,null,null,null,null,null,null,null,null,null,null,null,null,null,null,null,null,null,null,null,null,null,null,null,null,null,null,null,null,null,null,null,null,null,null,null,null,null,null,null,null,null,null,null,null,null,null,null,null,null,null,null,null,null,null,null,null,null,null,null,null,null,null,null,null,null,null,null,null,null,null,null,null,null,null,null,null,null,null,null,null,null,null,null,null,null,null,null,null,null,null,null,null,null,null,null,null,null,null,null,null,null,null,null,null,null,4.7,"ecash",4.7,"ecash",4.7,"ecash"]
["2018-02-07","Wednesday",null,2,null,null,null,null,null,null,null,null,null,null,null,null,null,null,null,null,null,null,null,null,null,null,null,null,null,null,null,null,null,null,null,null,null,null,null,null,null,null,null,null,null,null,null,null,null,null,null,null,null,null,null,null,null,null,null,null,null,null,null,null,null,null,null,null,null,null,null,null,null,null,null,null,null,null,null,null,null,null,null,null,null,null,null,null,null,null,null,null,null,null,null,null,null,null,null,null,null,null,null,null,null,null,null,null,null,null,null,null,null,null,null,null,null,null,null,null,null,null,null,null,null,null,null,null,null,null,null,null,null,null,null,null,null,null,null,null,null,null,null,null,null,null,null,null,null,null,null,null,null,null,null,null,null,null,null,null,null,null,null,null,null,null,null,null,null,null,null,null,null,null,null,null,null,null,null,null,null,null,null,null,null,null,null,null,null,null,null,null,null,null,null,null,null,null,null,null,null,null,null,null,null,null,null,null,null,null,null,null,null,null,null,null,null,null,null,null,null,null,null,null,null,null,null,null,null,null,null,null,null,null,null,null,null,null,null,null,null,null,null,null,null,null,null,null,null,null,null,null,null,null,null,null,null,null,null,null,null,4.7,"ecash",4.7,"ecash"]
["2018-02-08",{"$f":"TEXT(A134,\"dddd\")","v":"Thursday"},null,2,null,null,null,null,null,null,null,null,null,null,null,null,null,null,null,null,null,null,null,null,null,null,null,null,null,null,null,null,null,null,null,null,null,null,null,null,null,null,null,null,null,null,null,null,null,null,null,null,null,null,null,null,null,null,null,null,null,null,null,null,null,null,null,null,null,null,null,null,null,null,null,null,null,null,null,null,null,null,null,null,null,null,null,null,null,null,null,null,null,null,null,null,null,null,null,null,null,null,null,null,null,null,null,null,null,null,null,null,null,null,null,null,null,null,null,null,null,null,null,null,null,null,null,null,null,null,null,null,null,null,null,null,null,null,null,null,null,null,null,null,null,null,null,null,null,null,null,null,null,null,null,null,null,null,null,null,null,null,null,null,null,null,null,null,null,null,null,null,null,null,null,null,null,null,null,null,null,null,null,null,null,null,null,null,null,null,null,null,null,null,null,null,null,null,null,null,null,null,null,null,null,null,null,null,null,null,null,null,null,null,null,null,null,null,null,null,null,null,null,null,null,null,null,null,null,null,null,null,null,null,null,null,null,null,null,null,null,null,null,null,null,null,null,null,null,null,null,null,null,null,null,null,null,null,null,null,null,null,null,4.7,"ecash"]
["2018-02-09","Friday",null,2]
["2018-02-10","Saturday",null,0,null,null,null,null,null,null,null,null,null,null,null,null,null,null,null,null,null,null,null,null,null,null,null,null,null,null,null,null,null,null,null,null,null,null,null,null,null,null,null,null,null,null,null,null,null,null,null,null,null,null,null,null,null,null,null,null,null,null,null,null,null,null,null,null,null,null,null,null,null,null,null,null,null,null,null,null,null,null,null,null,null,null,null,null,null,null,null,null,null,null,null,null,null,null,null,null,null,null,null,null,null,null,null,null,null,null,null,null,null,null,null,null,null,null,null,null,null,null,null,null,null,null,null,null,null,null,null,null,null,null,null,null,null,null,null,null,null,null,null,null,null,null,null,null,null,null,null,null,null,null,null,null,null,null,null,null,null,null,null,null,null,null,null,null,null,null,null,null,null,null,null,null,null,null,null,null,null,null,null,null,null,null,null,null,null,null,null,null,null,null,null,null,null,null,null,null,null,null,null,null,null,null,null,null,null,null,null,null,null,null,null,null,null,null,null,null,null,null,null,null,null,null,null,null,null,null,null,null,null,null,null,null,null,null,null,null,null,null,null,null,null,null,null,null,null,null,null,null,null,null,null,null,null,null,null,null,null,null,null,null,null,null,null,0,"ecash",0,"ecash",0,"ecash",0,"ecash",null,null,null,null,0,"ecash",0,"ecash",0,"ecash",0,"ecash",0,"ecash",0,"ecash",0,"ecash",0,"ecash",0,"ecash",0,"ecash",0,"ecash",0,"ecash",null,null,null,null,0,"ecash",0,"ecash",0,"ecash",0,"ecash",0,"ecash",0,"ecash",0,"ecash",0,"ecash",0,"ecash",0,"ecash",0,"ecash",0,"ecash",0,"ecash",0,"ecash",0,"ecash",0,"ecash",0,"ecash",0,"ecash",0,"ecash",0,"ecash",0,"ecash",0,"ecash",0,"ecash",0,"ecash",0,"ecash",0,"ecash",null,null,null,null,null,null,null,null,null,null,null,null,null,null,null,null,null,null,null,null,null,null,null,null,null,null,null,null,null,null,null,null,null,null,null,null,null,null,0,"ecash",0,"ecash",0,"ecash",0,"ecash"]
["2018-02-11","Sunday",null,0,null,null,null,null,null,null,null,null,null,null,null,null,null,null,null,null,null,null,null,null,null,null,null,null,null,null,null,null,null,null,null,null,null,null,null,null,null,null,null,null,null,null,null,null,null,null,null,null,null,null,null,null,null,null,null,null,null,null,null,null,null,null,null,null,null,null,null,null,null,null,null,null,null,null,null,null,null,null,null,null,null,null,null,null,null,null,null,null,null,null,null,null,null,null,null,null,null,null,null,null,null,null,null,null,null,null,null,null,null,null,null,null,null,null,null,null,null,null,null,null,null,null,null,null,null,null,null,null,null,null,null,null,null,null,null,null,null,null,null,null,null,null,null,null,null,null,null,null,null,null,null,null,null,null,null,null,null,null,null,null,null,null,null,null,null,null,null,null,null,null,null,null,null,null,null,null,null,null,null,null,null,null,null,null,null,null,null,null,null,null,null,null,null,null,null,null,null,null,null,null,null,null,null,null,null,null,null,null,null,null,null,null,null,null,null,null,null,null,null,null,null,null,null,null,null,null,null,null,null,null,null,null,null,null,null,null,null,null,null,null,null,null,null,null,null,null,null,null,null,null,null,null,null,null,null,null,null,null,null,null,null,null,null,null,null,0,"ecash",0,"ecash",0,"ecash",null,null,null,null,0,"ecash",0,"ecash",0,"ecash",0,"ecash",0,"ecash",0,"ecash",0,"ecash",0,"ecash",0,"ecash",0,"ecash",0,"ecash",0,"ecash",null,null,null,null,0,"ecash",0,"ecash",0,"ecash",0,"ecash",0,"ecash",0,"ecash",0,"ecash",0,"ecash",0,"ecash",0,"ecash",0,"ecash",0,"ecash",0,"ecash",0,"ecash",0,"ecash",0,"ecash",0,"ecash",0,"ecash",0,"ecash",0,"ecash",0,"ecash",0,"ecash",0,"ecash",0,"ecash",0,"ecash",0,"ecash",null,null,null,null,null,null,null,null,null,null,null,null,null,null,null,null,null,null,null,null,null,null,null,null,null,null,null,null,null,null,null,null,null,null,null,null,null,null,0,"ecash",0,"ecash",0,"ecash",0,"ecash"]
["2018-02-12","Monday",null,2,null,null,null,null,null,null,null,null,null,null,null,null,null,null,null,null,null,null,null,null,null,null,null,null,null,null,null,null,null,null,null,null,null,null,null,null,null,null,null,null,null,null,null,null,null,null,null,null,null,null,null,null,null,null,null,null,null,null,null,null,null,null,null,null,null,null,null,null,null,null,null,null,null,null,null,null,null,null,null,null,null,null,null,null,null,null,null,null,null,null,null,null,null,null,null,null,null,null,null,null,null,null,null,null,null,null,null,null,null,null,null,null,null,null,null,null,null,null,null,null,null,null,null,null,null,null,null,null,null,null,null,null,null,null,null,null,null,null,null,null,null,null,null,null,null,null,null,null,null,null,null,null,null,null,null,null,null,null,null,null,null,null,null,null,null,null,null,null,null,null,null,null,null,null,null,null,null,null,null,null,null,null,null,null,null,null,null,null,null,null,null,null,null,null,null,null,null,null,null,null,null,null,null,null,null,null,null,null,null,null,null,null,null,null,null,null,null,null,null,null,null,null,null,null,null,null,null,null,null,null,null,null,null,null,null,null,null,null,null,null,null,null,null,null,null,null,null,null,null,null,null,null,null,null,null,null,null,null,null,null,null,null,null,null,null,null,null,4.7,"ecash",4.7,"ecash",null,null,null,null,21.15,"5 day e-pass",21.15,"5 day e-pass",21.15,"5 day e-pass",21.15,"5 day e-pass",21.15,"5 day e-pass",21.15,"5 day e-pass",21.15,"5 day e-pass",21.15,"5 day e-pass",21.15,"5 day e-pass",21.15,"5 day e-pass",21.15,"5 day e-pass",21.15,"5 day e-pass",null,null,null,null,21.15,"5 day e-pass",21.15,"5 day e-pass",21.15,"5 day e-pass",21.15,"5 day e-pass",21.15,"5 day e-pass",21.15,"5 day e-pass",21.15,"5 day e-pass",21.15,"5 day e-pass",21.15,"5 day e-pass",21.15,"5 day e-pass",21.15,"5 day e-pass",21.15,"5 day e-pass",21.15,"5 day e-pass",21.15,"5 day e-pass",21.15,"5 day e-pass",21.15,"5 day e-pass",21.15,"5 day e-pass",21.15,"5 day e-pass",21.15,"5 day e-pass",21.15,"5 day e-pass",21.15,"5 day e-pass",21.15,"5 day e-pass",21.15,"5 day e-pass",21.15,"5 day e-pass",21.15,"5 day e-pass",21.15,"5 day e-pass",null,null,null,null,null,null,null,null,null,null,null,null,null,null,null,null,null,null,null,null,null,null,null,null,null,null,null,null,null,null,null,null,null,null,null,null,null,null,21.15,"5 day e-pass",21.15,"5 day e-pass",21.15,"5 day e-pass",21.15,"5 day e-pass"]
["2018-02-13","Tuesday",null,2,null,null,null,null,null,null,null,null,null,null,null,null,null,null,null,null,null,null,null,null,null,null,null,null,null,null,null,null,null,null,null,null,null,null,null,null,null,null,null,null,null,null,null,null,null,null,null,null,null,null,null,null,null,null,null,null,null,null,null,null,null,null,null,null,null,null,null,null,null,null,null,null,null,null,null,null,null,null,null,null,null,null,null,null,null,null,null,null,null,null,null,null,null,null,null,null,null,null,null,null,null,null,null,null,null,null,null,null,null,null,null,null,null,null,null,null,null,null,null,null,null,null,null,null,null,null,null,null,null,null,null,null,null,null,null,null,null,null,null,null,null,null,null,null,null,null,null,null,null,null,null,null,null,null,null,null,null,null,null,null,null,null,null,null,null,null,null,null,null,null,null,null,null,null,null,null,null,null,null,null,null,null,null,null,null,null,null,null,null,null,null,null,null,null,null,null,null,null,null,null,null,null,null,null,null,null,null,null,null,null,null,null,null,null,null,null,null,null,null,null,null,null,null,null,null,null,null,null,null,null,null,null,null,null,null,null,null,null,null,null,null,null,null,null,null,null,null,null,null,null,null,null,null,null,null,null,null,null,null,null,null,null,null,null,null,null,null,null,null,4.7,"ecash"]
["2018-02-14","Wednesday",null,2]
["2018-02-15","Thursday",null,2,null,null,null,null,null,null,null,null,null,null,null,null,null,null,null,null,null,null,null,null,null,null,null,null,null,null,null,null,null,null,null,null,null,null,null,null,null,null,null,null,null,null,null,null,null,null,null,null,null,null,null,null,null,null,null,null,null,null,null,null,null,null,null,null,null,null,null,null,null,null,null,null,null,null,null,null,null,null,null,null,null,null,null,null,null,null,null,null,null,null,null,null,null,null,null,null,null,null,null,null,null,null,null,null,null,null,null,null,null,null,null,null,null,null,null,null,null,null,null,null,null,null,null,null,null,null,null,null,null,null,null,null,null,null,null,null,null,null,null,null,null,null,null,null,null,null,null,null,null,null,null,null,null,null,null,null,null,null,null,null,null,null,null,null,null,null,null,null,null,null,null,null,null,null,null,null,null,null,null,null,null,null,null,null,null,null,null,null,null,null,null,null,null,null,null,null,null,null,null,null,null,null,null,null,null,null,null,null,null,null,null,null,null,null,null,null,null,null,null,null,null,null,null,null,null,null,null,null,null,null,null,null,null,null,null,null,null,null,null,null,null,null,null,null,null,null,null,null,null,null,null,null,null,null,null,null,null,null,null,null,null,null,null,null,null,null,null,null,null,null,null,null,null,4.7,"ecash"]
["2018-02-16","Friday",null,2]
["2018-02-17","Saturday",null,0,null,null,null,null,null,null,null,null,null,null,null,null,null,null,null,null,null,null,null,null,null,null,null,null,null,null,null,null,null,null,null,null,null,null,null,null,null,null,null,null,null,null,null,null,null,null,null,null,null,null,null,null,null,null,null,null,null,null,null,null,null,null,null,null,null,null,null,null,null,null,null,null,null,null,null,null,null,null,null,null,null,null,null,null,null,null,null,null,null,null,null,null,null,null,null,null,null,null,null,null,null,null,null,null,null,null,null,null,null,null,null,null,null,null,null,null,null,null,null,null,null,null,null,null,null,null,null,null,null,null,null,null,null,null,null,null,null,null,null,null,null,null,null,null,null,null,null,null,null,null,null,null,null,null,null,null,null,null,null,null,null,null,null,null,null,null,null,null,null,null,null,null,null,null,null,null,null,null,null,null,null,null,null,null,null,null,null,null,null,null,null,null,null,null,null,null,null,null,null,null,null,null,null,null,null,null,null,null,null,null,null,null,null,null,null,null,null,null,null,null,null,null,null,null,null,null,null,null,null,null,null,null,null,null,null,null,null,null,null,null,null,null,null,null,null,null,null,null,null,null,null,null,null,null,null,null,null,null,null,null,null,null,null,null,null,null,null,null,null,null,null,null,null,null,null,null,null,0,"ecash",0,"ecash",0,"ecash",0,"ecash",0,"ecash",0,"ecash",0,"ecash",0,"ecash",0,"ecash",0,"ecash",0,"ecash",null,null,null,null,0,"ecash",0,"ecash",0,"ecash",0,"ecash",0,"ecash",0,"ecash",0,"ecash",0,"ecash",0,"ecash",0,"ecash",0,"ecash",0,"ecash",0,"ecash",0,"ecash",0,"ecash",0,"ecash",0,"ecash",0,"ecash",0,"ecash",0,"ecash",0,"ecash",0,"ecash",0,"ecash",0,"ecash",0,"ecash",0,"ecash",null,null,null,null,null,null,null,null,null,null,null,null,null,null,null,null,null,null,null,null,null,null,null,null,null,null,null,null,null,null,null,null,null,null,null,null,null,null,0,"ecash",0,"ecash",0,"ecash",0,"ecash"]
["2018-02-18","Sunday",null,0,null,null,null,null,null,null,null,null,null,null,null,null,null,null,null,null,null,null,null,null,null,null,null,null,null,null,null,null,null,null,null,null,null,null,null,null,null,null,null,null,null,null,null,null,null,null,null,null,null,null,null,null,null,null,null,null,null,null,null,null,null,null,null,null,null,null,null,null,null,null,null,null,null,null,null,null,null,null,null,null,null,null,null,null,null,null,null,null,null,null,null,null,null,null,null,null,null,null,null,null,null,null,null,null,null,null,null,null,null,null,null,null,null,null,null,null,null,null,null,null,null,null,null,null,null,null,null,null,null,null,null,null,null,null,null,null,null,null,null,null,null,null,null,null,null,null,null,null,null,null,null,null,null,null,null,null,null,null,null,null,null,null,null,null,null,null,null,null,null,null,null,null,null,null,null,null,null,null,null,null,null,null,null,null,null,null,null,null,null,null,null,null,null,null,null,null,null,null,null,null,null,null,null,null,null,null,null,null,null,null,null,null,null,null,null,null,null,null,null,null,null,null,null,null,null,null,null,null,null,null,null,null,null,null,null,null,null,null,null,null,null,null,null,null,null,null,null,null,null,null,null,null,null,null,null,null,null,null,null,null,null,null,null,null,null,null,null,null,null,null,null,null,null,null,null,null,null,null,null,0,"ecash",0,"ecash",0,"ecash",0,"ecash",0,"ecash",0,"ecash",0,"ecash",0,"ecash",0,"ecash",0,"ecash",null,null,null,null,0,"ecash",0,"ecash",0,"ecash",0,"ecash",0,"ecash",0,"ecash",0,"ecash",0,"ecash",0,"ecash",0,"ecash",0,"ecash",0,"ecash",0,"ecash",0,"ecash",0,"ecash",0,"ecash",0,"ecash",0,"ecash",0,"ecash",0,"ecash",0,"ecash",0,"ecash",0,"ecash",0,"ecash",0,"ecash",0,"ecash",null,null,null,null,null,null,null,null,null,null,null,null,null,null,null,null,null,null,null,null,null,null,null,null,null,null,null,null,null,null,null,null,null,null,null,null,null,null,0,"ecash",0,"ecash",0,"ecash",0,"ecash"]
["2018-02-19","Monday","Louis Riel",0,null,null,null,null,null,null,null,null,null,null,null,null,null,null,null,null,null,null,null,null,null,null,null,null,null,null,null,null,null,null,null,null,null,null,null,null,null,null,null,null,null,null,null,null,null,null,null,null,null,null,null,null,null,null,null,null,null,null,null,null,null,null,null,null,null,null,null,null,null,null,null,null,null,null,null,null,null,null,null,null,null,null,null,null,null,null,null,null,null,null,null,null,null,null,null,null,null,null,null,null,null,null,null,null,null,null,null,null,null,null,null,null,null,null,null,null,null,null,null,null,null,null,null,null,null,null,null,null,null,null,null,null,null,null,null,null,null,null,null,null,null,null,null,null,null,null,null,null,null,null,null,null,null,null,null,null,null,null,null,null,null,null,null,null,null,null,null,null,null,null,null,null,null,null,null,null,null,null,null,null,null,null,null,null,null,null,null,null,null,null,null,null,null,null,null,null,null,null,null,null,null,null,null,null,null,null,null,null,null,null,null,null,null,null,null,null,null,null,null,null,null,null,null,null,null,null,null,null,null,null,null,null,null,null,null,null,null,null,null,null,null,null,null,null,null,null,null,null,null,null,null,null,null,null,null,null,null,null,null,null,null,null,null,null,null,null,null,null,null,null,null,null,null,null,null,null,null,null,null,null,null,0,"ecash",0,"ecash",0,"ecash",0,"ecash",0,"ecash",0,"ecash",0,"ecash",0,"ecash",0,"ecash",null,null,null,null,0,"ecash",0,"ecash",0,"ecash",0,"ecash",0,"ecash",0,"ecash",0,"ecash",0,"ecash",0,"ecash",0,"ecash",0,"ecash",0,"ecash",0,"ecash",0,"ecash",0,"ecash",0,"ecash",0,"ecash",0,"ecash",0,"ecash",0,"ecash",0,"ecash",0,"ecash",0,"ecash",0,"ecash",0,"ecash",0,"ecash",null,null,null,null,null,null,null,null,null,null,null,null,null,null,null,null,null,null,null,null,null,null,null,null,null,null,null,null,null,null,null,null,null,null,null,null,null,null,0,"ecash",0,"ecash",0,"ecash",0,"ecash"]
["2018-02-20","Tuesday",null,2,null,null,null,null,null,null,null,null,null,null,null,null,null,null,null,null,null,null,null,null,null,null,null,null,null,null,null,null,null,null,null,null,null,null,null,null,null,null,null,null,null,null,null,null,null,null,null,null,null,null,null,null,null,null,null,null,null,null,null,null,null,null,null,null,null,null,null,null,null,null,null,null,null,null,null,null,null,null,null,null,null,null,null,null,null,null,null,null,null,null,null,null,null,null,null,null,null,null,null,null,null,null,null,null,null,null,null,null,null,null,null,null,null,null,null,null,null,null,null,null,null,null,null,null,null,null,null,null,null,null,null,null,null,null,null,null,null,null,null,null,null,null,null,null,null,null,null,null,null,null,null,null,null,null,null,null,null,null,null,null,null,null,null,null,null,null,null,null,null,null,null,null,null,null,null,null,null,null,null,null,null,null,null,null,null,null,null,null,null,null,null,null,null,null,null,null,null,null,null,null,null,null,null,null,null,null,null,null,null,null,null,null,null,null,null,null,null,null,null,null,null,null,null,null,null,null,null,null,null,null,null,null,null,null,null,null,null,null,null,null,null,null,null,null,null,null,null,null,null,null,null,null,null,null,null,null,null,null,null,null,null,null,null,null,null,null,null,null,null,null,null,null,null,null,null,null,null,null,null,null,null,null,null,4.7,"ecash",4.7,"ecash",4.7,"ecash",4.7,"ecash",4.7,"ecash",4.7,"ecash",4.7,"ecash",4.7,"ecash",null,null,null,null,4.7,"ecash",4.7,"ecash",4.7,"ecash",43.5,"14 day e-pass",43.5,"14 day e-pass",43.5,"14 day e-pass",43.5,"14 day e-pass",4.7,"ecash",4.7,"ecash",4.7,"ecash",64.650000000000006,"21 day e-pass",64.650000000000006,"21 day e-pass",64.650000000000006,"21 day e-pass",64.650000000000006,"21 day e-pass",4.7,"ecash",4.7,"ecash",4.7,"ecash",83.45,"28 day e-pass",83.45,"28 day e-pass",83.45,"28 day e-pass",83.45,"28 day e-pass",83.45,"28 day e-pass",83.45,"28 day e-pass",83.45,"28 day e-pass",83.45,"28 day e-pass",83.45,"28 day e-pass",null,null,null,null,null,null,null,null,null,null,null,null,null,null,null,null,null,null,null,null,null,null,null,null,null,null,null,null,null,null,null,null,null,null,null,null,null,null,83.45,"28 day e-pass",83.45,"28 day e-pass",83.45,"28 day e-pass",83.45,"28 day e-pass"]
["2018-02-21","Wednesday",null,2,null,null,null,null,null,null,null,null,null,null,null,null,null,null,null,null,null,null,null,null,null,null,null,null,null,null,null,null,null,null,null,null,null,null,null,null,null,null,null,null,null,null,null,null,null,null,null,null,null,null,null,null,null,null,null,null,null,null,null,null,null,null,null,null,null,null,null,null,null,null,null,null,null,null,null,null,null,null,null,null,null,null,null,null,null,null,null,null,null,null,null,null,null,null,null,null,null,null,null,null,null,null,null,null,null,null,null,null,null,null,null,null,null,null,null,null,null,null,null,null,null,null,null,null,null,null,null,null,null,null,null,null,null,null,null,null,null,null,null,null,null,null,null,null,null,null,null,null,null,null,null,null,null,null,null,null,null,null,null,null,null,null,null,null,null,null,null,null,null,null,null,null,null,null,null,null,null,null,null,null,null,null,null,null,null,null,null,null,null,null,null,null,null,null,null,null,null,null,null,null,null,null,null,null,null,null,null,null,null,null,null,null,null,null,null,null,null,null,null,null,null,null,null,null,null,null,null,null,null,null,null,null,null,null,null,null,null,null,null,null,null,null,null,null,null,null,null,null,null,null,null,null,null,null,null,null,null,null,null,null,null,null,null,null,null,null,null,null,null,null,null,null,null,null,null,null,null,null,null,null,null,null,null,null,null,4.7,"ecash",4.7,"ecash",4.7,"ecash",4.7,"ecash",4.7,"ecash",4.7,"ecash",4.7,"ecash",null,null,null,null,4.7,"ecash",4.7,"ecash",4.7,"ecash",null,null,null,null,null,null,null,null,4.7,"ecash",4.7,"ecash",4.7,"ecash",null,null,null,null,null,null,null,null,4.7,"ecash",4.7,"ecash",4.7,"ecash"]
["2018-02-22","Thursday",null,2,null,null,null,null,null,null,null,null,null,null,null,null,null,null,null,null,null,null,null,null,null,null,null,null,null,null,null,null,null,null,null,null,null,null,null,null,null,null,null,null,null,null,null,null,null,null,null,null,null,null,null,null,null,null,null,null,null,null,null,null,null,null,null,null,null,null,null,null,null,null,null,null,null,null,null,null,null,null,null,null,null,null,null,null,null,null,null,null,null,null,null,null,null,null,null,null,null,null,null,null,null,null,null,null,null,null,null,null,null,null,null,null,null,null,null,null,null,null,null,null,null,null,null,null,null,null,null,null,null,null,null,null,null,null,null,null,null,null,null,null,null,null,null,null,null,null,null,null,null,null,null,null,null,null,null,null,null,null,null,null,null,null,null,null,null,null,null,null,null,null,null,null,null,null,null,null,null,null,null,null,null,null,null,null,null,null,null,null,null,null,null,null,null,null,null,null,null,null,null,null,null,null,null,null,null,null,null,null,null,null,null,null,null,null,null,null,null,null,null,null,null,null,null,null,null,null,null,null,null,null,null,null,null,null,null,null,null,null,null,null,null,null,null,null,null,null,null,null,null,null,null,null,null,null,null,null,null,null,null,null,null,null,null,null,null,null,null,null,null,null,null,null,null,null,null,null,null,null,null,null,null,null,null,null,null,null,null,4.7,"ecash",4.7,"ecash",4.7,"ecash",4.7,"ecash",4.7,"ecash",4.7,"ecash",null,null,null,null,4.7,"ecash",4.7,"ecash",4.7,"ecash",null,null,null,null,null,null,null,null,4.7,"ecash",4.7,"ecash",4.7,"ecash",null,null,null,null,null,null,null,null,4.7,"ecash",4.7,"ecash",4.7,"ecash"]
["2018-02-23","Friday",null,2,null,null,null,null,null,null,null,null,null,null,null,null,null,null,null,null,null,null,null,null,null,null,null,null,null,null,null,null,null,null,null,null,null,null,null,null,null,null,null,null,null,null,null,null,null,null,null,null,null,null,null,null,null,null,null,null,null,null,null,null,null,null,null,null,null,null,null,null,null,null,null,null,null,null,null,null,null,null,null,null,null,null,null,null,null,null,null,null,null,null,null,null,null,null,null,null,null,null,null,null,null,null,null,null,null,null,null,null,null,null,null,null,null,null,null,null,null,null,null,null,null,null,null,null,null,null,null,null,null,null,null,null,null,null,null,null,null,null,null,null,null,null,null,null,null,null,null,null,null,null,null,null,null,null,null,null,null,null,null,null,null,null,null,null,null,null,null,null,null,null,null,null,null,null,null,null,null,null,null,null,null,null,null,null,null,null,null,null,null,null,null,null,null,null,null,null,null,null,null,null,null,null,null,null,null,null,null,null,null,null,null,null,null,null,null,null,null,null,null,null,null,null,null,null,null,null,null,null,null,null,null,null,null,null,null,null,null,null,null,null,null,null,null,null,null,null,null,null,null,null,null,null,null,null,null,null,null,null,null,null,null,null,null,null,null,null,null,null,null,null,null,null,null,null,null,null,null,null,null,null,null,null,null,null,null,null,null,null,null,4.7,"ecash",4.7,"ecash",4.7,"ecash",4.7,"ecash",4.7,"ecash",null,null,null,null,4.7,"ecash",4.7,"ecash",4.7,"ecash",null,null,null,null,null,null,null,null,4.7,"ecash",4.7,"ecash",4.7,"ecash",null,null,null,null,null,null,null,null,4.7,"ecash",4.7,"ecash",4.7,"ecash"]
["2018-02-24","Saturday",null,0,null,null,null,null,null,null,null,null,null,null,null,null,null,null,null,null,null,null,null,null,null,null,null,null,null,null,null,null,null,null,null,null,null,null,null,null,null,null,null,null,null,null,null,null,null,null,null,null,null,null,null,null,null,null,null,null,null,null,null,null,null,null,null,null,null,null,null,null,null,null,null,null,null,null,null,null,null,null,null,null,null,null,null,null,null,null,null,null,null,null,null,null,null,null,null,null,null,null,null,null,null,null,null,null,null,null,null,null,null,null,null,null,null,null,null,null,null,null,null,null,null,null,null,null,null,null,null,null,null,null,null,null,null,null,null,null,null,null,null,null,null,null,null,null,null,null,null,null,null,null,null,null,null,null,null,null,null,null,null,null,null,null,null,null,null,null,null,null,null,null,null,null,null,null,null,null,null,null,null,null,null,null,null,null,null,null,null,null,null,null,null,null,null,null,null,null,null,null,null,null,null,null,null,null,null,null,null,null,null,null,null,null,null,null,null,null,null,null,null,null,null,null,null,null,null,null,null,null,null,null,null,null,null,null,null,null,null,null,null,null,null,null,null,null,null,null,null,null,null,null,null,null,null,null,null,null,null,null,null,null,null,null,null,null,null,null,null,null,null,null,null,null,null,null,null,null,null,null,null,null,null,null,null,null,null,null,null,null,null,null,null,0,"ecash",0,"ecash",0,"ecash",0,"ecash",null,null,null,null,0,"ecash",0,"ecash",0,"ecash",null,null,null,null,null,null,null,null,0,"ecash",0,"ecash",0,"ecash",null,null,null,null,null,null,null,null,0,"ecash",0,"ecash",0,"ecash"]
["2018-02-25","Sunday",null,0,null,null,null,null,null,null,null,null,null,null,null,null,null,null,null,null,null,null,null,null,null,null,null,null,null,null,null,null,null,null,null,null,null,null,null,null,null,null,null,null,null,null,null,null,null,null,null,null,null,null,null,null,null,null,null,null,null,null,null,null,null,null,null,null,null,null,null,null,null,null,null,null,null,null,null,null,null,null,null,null,null,null,null,null,null,null,null,null,null,null,null,null,null,null,null,null,null,null,null,null,null,null,null,null,null,null,null,null,null,null,null,null,null,null,null,null,null,null,null,null,null,null,null,null,null,null,null,null,null,null,null,null,null,null,null,null,null,null,null,null,null,null,null,null,null,null,null,null,null,null,null,null,null,null,null,null,null,null,null,null,null,null,null,null,null,null,null,null,null,null,null,null,null,null,null,null,null,null,null,null,null,null,null,null,null,null,null,null,null,null,null,null,null,null,null,null,null,null,null,null,null,null,null,null,null,null,null,null,null,null,null,null,null,null,null,null,null,null,null,null,null,null,null,null,null,null,null,null,null,null,null,null,null,null,null,null,null,null,null,null,null,null,null,null,null,null,null,null,null,null,null,null,null,null,null,null,null,null,null,null,null,null,null,null,null,null,null,null,null,null,null,null,null,null,null,null,null,null,null,null,null,null,null,null,null,null,null,null,null,null,null,null,null,0,"ecash",0,"ecash",0,"ecash",null,null,null,null,0,"ecash",0,"ecash",0,"ecash",null,null,null,null,null,null,null,null,0,"ecash",0,"ecash",0,"ecash",null,null,null,null,null,null,null,null,0,"ecash",0,"ecash",0,"ecash"]
["2018-02-26","Monday",null,2,null,null,null,null,null,null,null,null,null,null,null,null,null,null,null,null,null,null,null,null,null,null,null,null,null,null,null,null,null,null,null,null,null,null,null,null,null,null,null,null,null,null,null,null,null,null,null,null,null,null,null,null,null,null,null,null,null,null,null,null,null,null,null,null,null,null,null,null,null,null,null,null,null,null,null,null,null,null,null,null,null,null,null,null,null,null,null,null,null,null,null,null,null,null,null,null,null,null,null,null,null,null,null,null,null,null,null,null,null,null,null,null,null,null,null,null,null,null,null,null,null,null,null,null,null,null,null,null,null,null,null,null,null,null,null,null,null,null,null,null,null,null,null,null,null,null,null,null,null,null,null,null,null,null,null,null,null,null,null,null,null,null,null,null,null,null,null,null,null,null,null,null,null,null,null,null,null,null,null,null,null,null,null,null,null,null,null,null,null,null,null,null,null,null,null,null,null,null,null,null,null,null,null,null,null,null,null,null,null,null,null,null,null,null,null,null,null,null,null,null,null,null,null,null,null,null,null,null,null,null,null,null,null,null,null,null,null,null,null,null,null,null,null,null,null,null,null,null,null,null,null,null,null,null,null,null,null,null,null,null,null,null,null,null,null,null,null,null,null,null,null,null,null,null,null,null,null,null,null,null,null,null,null,null,null,null,null,null,null,null,null,null,null,null,null,4.7,"ecash",4.7,"ecash",null,null,null,null,21.15,"5 day e-pass",21.15,"5 day e-pass",21.15,"5 day e-pass",null,null,null,null,null,null,null,null,21.15,"5 day e-pass",21.15,"5 day e-pass",21.15,"5 day e-pass",null,null,null,null,null,null,null,null,21.15,"5 day e-pass",21.15,"5 day e-pass",21.15,"5 day e-pass"]
["2018-02-27","Tuesday",null,2,null,null,null,null,null,null,null,null,null,null,null,null,null,null,null,null,null,null,null,null,null,null,null,null,null,null,null,null,null,null,null,null,null,null,null,null,null,null,null,null,null,null,null,null,null,null,null,null,null,null,null,null,null,null,null,null,null,null,null,null,null,null,null,null,null,null,null,null,null,null,null,null,null,null,null,null,null,null,null,null,null,null,null,null,null,null,null,null,null,null,null,null,null,null,null,null,null,null,null,null,null,null,null,null,null,null,null,null,null,null,null,null,null,null,null,null,null,null,null,null,null,null,null,null,null,null,null,null,null,null,null,null,null,null,null,null,null,null,null,null,null,null,null,null,null,null,null,null,null,null,null,null,null,null,null,null,null,null,null,null,null,null,null,null,null,null,null,null,null,null,null,null,null,null,null,null,null,null,null,null,null,null,null,null,null,null,null,null,null,null,null,null,null,null,null,null,null,null,null,null,null,null,null,null,null,null,null,null,null,null,null,null,null,null,null,null,null,null,null,null,null,null,null,null,null,null,null,null,null,null,null,null,null,null,null,null,null,null,null,null,null,null,null,null,null,null,null,null,null,null,null,null,null,null,null,null,null,null,null,null,null,null,null,null,null,null,null,null,null,null,null,null,null,null,null,null,null,null,null,null,null,null,null,null,null,null,null,null,null,null,null,null,null,null,null,null,null,4.7,"ecash"]
["2018-02-28","Wednesday",null,2]
["2018-03-01","Thursday",null,2,null,null,null,null,null,null,null,null,null,null,null,null,null,null,null,null,null,null,null,null,null,null,null,null,null,null,null,null,null,null,null,null,null,null,null,null,null,null,null,null,null,null,null,null,null,null,null,null,null,null,null,null,null,null,null,null,null,null,null,null,null,null,null,null,null,null,null,null,null,null,null,null,null,null,null,null,null,null,null,null,null,null,null,null,null,null,null,null,null,null,null,null,null,null,null,null,null,null,null,null,null,null,null,null,null,null,null,null,null,null,null,null,null,null,null,null,null,null,null,null,null,null,null,null,null,null,null,null,null,null,null,null,null,null,null,null,null,null,null,null,null,null,null,null,null,null,null,null,null,null,null,null,null,null,null,null,null,null,null,null,null,null,null,null,null,null,null,null,null,null,null,null,null,null,null,null,null,null,null,null,null,null,null,null,null,null,null,null,null,null,null,null,null,null,null,null,null,null,null,null,null,null,null,null,null,null,null,null,null,null,null,null,null,null,null,null,null,null,null,null,null,null,null,null,null,null,null,null,null,null,null,null,null,null,null,null,null,null,null,null,null,null,null,null,null,null,null,null,null,null,null,null,null,null,null,null,null,null,null,null,null,null,null,null,null,null,null,null,null,null,null,null,null,null,null,null,null,null,null,null,null,null,null,null,null,null,null,null,null,null,null,null,null,null,null,null,null,null,null,null,null,4.7,"ecash",null,null,null,null,null,null,null,null,null,null,null,null,null,null,null,null,null,null,null,null,null,null,null,null,null,null,null,null,null,null,null,null,null,null,null,null,null,null,null,null,null,null,null,null,null,null,null,null,null,null,null,null,83.45,"28 day e-pass",83.45,"28 day e-pass",83.45,"28 day e-pass",83.45,"28 day e-pass",83.45,"28 day e-pass",83.45,"28 day e-pass",83.45,"28 day e-pass",83.45,"28 day e-pass",83.45,"28 day e-pass",83.45,"28 day e-pass",83.45,"28 day e-pass",83.45,"28 day e-pass",83.45,"28 day e-pass",83.45,"28 day e-pass",83.45,"28 day e-pass",83.45,"28 day e-pass",83.45,"28 day e-pass",83.45,"28 day e-pass",83.45,"28 day e-pass",null,null,null,null,null,null,null,null,83.45,"28 day e-pass",83.45,"28 day e-pass",83.45,"28 day e-pass",83.45,"28 day e-pass",83.45,"28 day e-pass",83.45,"28 day e-pass",83.45,"28 day e-pass",83.45,"28 day e-pass",83.45,"28 day e-pass",83.45,"28 day e-pass",83.45,"28 day e-pass"]
["2018-03-02","Friday",null,2]
["2018-03-03","Saturday",null,0,null,null,null,null,null,null,null,null,null,null,null,null,null,null,null,null,null,null,null,null,null,null,null,null,null,null,null,null,null,null,null,null,null,null,null,null,null,null,null,null,null,null,null,null,null,null,null,null,null,null,null,null,null,null,null,null,null,null,null,null,null,null,null,null,null,null,null,null,null,null,null,null,null,null,null,null,null,null,null,null,null,null,null,null,null,null,null,null,null,null,null,null,null,null,null,null,null,null,null,null,null,null,null,null,null,null,null,null,null,null,null,null,null,null,null,null,null,null,null,null,null,null,null,null,null,null,null,null,null,null,null,null,null,null,null,null,null,null,null,null,null,null,null,null,null,null,null,null,null,null,null,null,null,null,null,null,null,null,null,null,null,null,null,null,null,null,null,null,null,null,null,null,null,null,null,null,null,null,null,null,null,null,null,null,null,null,null,null,null,null,null,null,null,null,null,null,null,null,null,null,null,null,null,null,null,null,null,null,null,null,null,null,null,null,null,null,null,null,null,null,null,null,null,null,null,null,null,null,null,null,null,null,null,null,null,null,null,null,null,null,null,null,null,null,null,null,null,null,null,null,null,null,null,null,null,null,null,null,null,null,null,null,null,null,null,null,null,null,null,null,null,null,null,null,null,null,null,null,null,null,null,null,null,null,null,null,null,null,null,null,null,null,null,null,null,null,null,null,null,null,null,null,null,null,null,0,"ecash",0,"ecash",null,null,null,null,null,null,null,null,0,"ecash",0,"ecash",0,"ecash",null,null,null,null,null,null,null,null,0,"ecash",0,"ecash",0,"ecash"]
["2018-03-04","Sunday",null,0,null,null,null,null,null,null,null,null,null,null,null,null,null,null,null,null,null,null,null,null,null,null,null,null,null,null,null,null,null,null,null,null,null,null,null,null,null,null,null,null,null,null,null,null,null,null,null,null,null,null,null,null,null,null,null,null,null,null,null,null,null,null,null,null,null,null,null,null,null,null,null,null,null,null,null,null,null,null,null,null,null,null,null,null,null,null,null,null,null,null,null,null,null,null,null,null,null,null,null,null,null,null,null,null,null,null,null,null,null,null,null,null,null,null,null,null,null,null,null,null,null,null,null,null,null,null,null,null,null,null,null,null,null,null,null,null,null,null,null,null,null,null,null,null,null,null,null,null,null,null,null,null,null,null,null,null,null,null,null,null,null,null,null,null,null,null,null,null,null,null,null,null,null,null,null,null,null,null,null,null,null,null,null,null,null,null,null,null,null,null,null,null,null,null,null,null,null,null,null,null,null,null,null,null,null,null,null,null,null,null,null,null,null,null,null,null,null,null,null,null,null,null,null,null,null,null,null,null,null,null,null,null,null,null,null,null,null,null,null,null,null,null,null,null,null,null,null,null,null,null,null,null,null,null,null,null,null,null,null,null,null,null,null,null,null,null,null,null,null,null,null,null,null,null,null,null,null,null,null,null,null,null,null,null,null,null,null,null,null,null,null,null,null,null,null,null,null,null,null,null,null,null,null,null,null,null,null,0,"ecash",null,null,null,null,null,null,null,null,0,"ecash",0,"ecash",0,"ecash",null,null,null,null,null,null,null,null,0,"ecash",0,"ecash",0,"ecash"]
["2018-03-05","Monday",null,2,null,null,null,null,null,null,null,null,null,null,null,null,null,null,null,null,null,null,null,null,null,null,null,null,null,null,null,null,null,null,null,null,null,null,null,null,null,null,null,null,null,null,null,null,null,null,null,null,null,null,null,null,null,null,null,null,null,null,null,null,null,null,null,null,null,null,null,null,null,null,null,null,null,null,null,null,null,null,null,null,null,null,null,null,null,null,null,null,null,null,null,null,null,null,null,null,null,null,null,null,null,null,null,null,null,null,null,null,null,null,null,null,null,null,null,null,null,null,null,null,null,null,null,null,null,null,null,null,null,null,null,null,null,null,null,null,null,null,null,null,null,null,null,null,null,null,null,null,null,null,null,null,null,null,null,null,null,null,null,null,null,null,null,null,null,null,null,null,null,null,null,null,null,null,null,null,null,null,null,null,null,null,null,null,null,null,null,null,null,null,null,null,null,null,null,null,null,null,null,null,null,null,null,null,null,null,null,null,null,null,null,null,null,null,null,null,null,null,null,null,null,null,null,null,null,null,null,null,null,null,null,null,null,null,null,null,null,null,null,null,null,null,null,null,null,null,null,null,null,null,null,null,null,null,null,null,null,null,null,null,null,null,null,null,null,null,null,null,null,null,null,null,null,null,null,null,null,null,null,null,null,null,null,null,null,null,null,null,null,null,null,null,null,null,null,null,null,null,null,null,null,null,null,null,null,null,null,null,null,null,null,null,null,null,null,null,null,21.15,"5 day e-pass",21.15,"5 day e-pass",21.15,"5 day e-pass",null,null,null,null,null,null,null,null,21.15,"5 day e-pass",21.15,"5 day e-pass",21.15,"5 day e-pass"]
["2018-03-06","Tuesday",null,2,null,null,null,null,null,null,null,null,null,null,null,null,null,null,null,null,null,null,null,null,null,null,null,null,null,null,null,null,null,null,null,null,null,null,null,null,null,null,null,null,null,null,null,null,null,null,null,null,null,null,null,null,null,null,null,null,null,null,null,null,null,null,null,null,null,null,null,null,null,null,null,null,null,null,null,null,null,null,null,null,null,null,null,null,null,null,null,null,null,null,null,null,null,null,null,null,null,null,null,null,null,null,null,null,null,null,null,null,null,null,null,null,null,null,null,null,null,null,null,null,null,null,null,null,null,null,null,null,null,null,null,null,null,null,null,null,null,null,null,null,null,null,null,null,null,null,null,null,null,null,null,null,null,null,null,null,null,null,null,null,null,null,null,null,null,null,null,null,null,null,null,null,null,null,null,null,null,null,null,null,null,null,null,null,null,null,null,null,null,null,null,null,null,null,null,null,null,null,null,null,null,null,null,null,null,null,null,null,null,null,null,null,null,null,null,null,null,null,null,null,null,null,null,null,null,null,null,null,null,null,null,null,null,null,null,null,null,null,null,null,null,null,null,null,null,null,null,null,null,null,null,null,null,null,null,null,null,null,null,null,null,null,null,null,null,null,null,null,null,null,null,null,null,null,null,null,null,null,null,null,null,null,null,null,null,null,null,null,null,null,null,null,null,null,null,null,null,null,null,null,null,null,null,null,null,null,null,null,null,null,null,4.7,"ecash",4.7,"ecash",4.7,"ecash"]
["2018-03-07","Wednesday",null,2,null,null,null,null,null,null,null,null,null,null,null,null,null,null,null,null,null,null,null,null,null,null,null,null,null,null,null,null,null,null,null,null,null,null,null,null,null,null,null,null,null,null,null,null,null,null,null,null,null,null,null,null,null,null,null,null,null,null,null,null,null,null,null,null,null,null,null,null,null,null,null,null,null,null,null,null,null,null,null,null,null,null,null,null,null,null,null,null,null,null,null,null,null,null,null,null,null,null,null,null,null,null,null,null,null,null,null,null,null,null,null,null,null,null,null,null,null,null,null,null,null,null,null,null,null,null,null,null,null,null,null,null,null,null,null,null,null,null,null,null,null,null,null,null,null,null,null,null,null,null,null,null,null,null,null,null,null,null,null,null,null,null,null,null,null,null,null,null,null,null,null,null,null,null,null,null,null,null,null,null,null,null,null,null,null,null,null,null,null,null,null,null,null,null,null,null,null,null,null,null,null,null,null,null,null,null,null,null,null,null,null,null,null,null,null,null,null,null,null,null,null,null,null,null,null,null,null,null,null,null,null,null,null,null,null,null,null,null,null,null,null,null,null,null,null,null,null,null,null,null,null,null,null,null,null,null,null,null,null,null,null,null,null,null,null,null,null,null,null,null,null,null,null,null,null,null,null,null,null,null,null,null,null,null,null,null,null,null,null,null,null,null,null,null,null,null,null,null,null,null,null,null,null,null,null,null,null,null,null,null,null,null,null,4.7,"ecash",4.7,"ecash"]
["2018-03-08","Thursday",null,2,null,null,null,null,null,null,null,null,null,null,null,null,null,null,null,null,null,null,null,null,null,null,null,null,null,null,null,null,null,null,null,null,null,null,null,null,null,null,null,null,null,null,null,null,null,null,null,null,null,null,null,null,null,null,null,null,null,null,null,null,null,null,null,null,null,null,null,null,null,null,null,null,null,null,null,null,null,null,null,null,null,null,null,null,null,null,null,null,null,null,null,null,null,null,null,null,null,null,null,null,null,null,null,null,null,null,null,null,null,null,null,null,null,null,null,null,null,null,null,null,null,null,null,null,null,null,null,null,null,null,null,null,null,null,null,null,null,null,null,null,null,null,null,null,null,null,null,null,null,null,null,null,null,null,null,null,null,null,null,null,null,null,null,null,null,null,null,null,null,null,null,null,null,null,null,null,null,null,null,null,null,null,null,null,null,null,null,null,null,null,null,null,null,null,null,null,null,null,null,null,null,null,null,null,null,null,null,null,null,null,null,null,null,null,null,null,null,null,null,null,null,null,null,null,null,null,null,null,null,null,null,null,null,null,null,null,null,null,null,null,null,null,null,null,null,null,null,null,null,null,null,null,null,null,null,null,null,null,null,null,null,null,null,null,null,null,null,null,null,null,null,null,null,null,null,null,null,null,null,null,null,null,null,null,null,null,null,null,null,null,null,null,null,null,null,null,null,null,null,null,null,null,null,null,null,null,null,null,null,null,null,null,null,null,null,4.7,"ecash"]
["2018-03-09","Friday",null,2]
["2018-03-10","Saturday",null,0,null,null,null,null,null,null,null,null,null,null,null,null,null,null,null,null,null,null,null,null,null,null,null,null,null,null,null,null,null,null,null,null,null,null,null,null,null,null,null,null,null,null,null,null,null,null,null,null,null,null,null,null,null,null,null,null,null,null,null,null,null,null,null,null,null,null,null,null,null,null,null,null,null,null,null,null,null,null,null,null,null,null,null,null,null,null,null,null,null,null,null,null,null,null,null,null,null,null,null,null,null,null,null,null,null,null,null,null,null,null,null,null,null,null,null,null,null,null,null,null,null,null,null,null,null,null,null,null,null,null,null,null,null,null,null,null,null,null,null,null,null,null,null,null,null,null,null,null,null,null,null,null,null,null,null,null,null,null,null,null,null,null,null,null,null,null,null,null,null,null,null,null,null,null,null,null,null,null,null,null,null,null,null,null,null,null,null,null,null,null,null,null,null,null,null,null,null,null,null,null,null,null,null,null,null,null,null,null,null,null,null,null,null,null,null,null,null,null,null,null,null,null,null,null,null,null,null,null,null,null,null,null,null,null,null,null,null,null,null,null,null,null,null,null,null,null,null,null,null,null,null,null,null,null,null,null,null,null,null,null,null,null,null,null,null,null,null,null,null,null,null,null,null,null,null,null,null,null,null,null,null,null,null,null,null,null,null,null,null,null,null,null,null,null,null,null,null,null,null,null,null,null,null,null,null,null,null,null,null,null,null,null,null,null,null,null,null,null,null,0,"ecash",0,"ecash",null,null,null,null,null,null,null,null,0,"ecash",0,"ecash",0,"ecash"]
["2018-03-11","Sunday",null,0,null,null,null,null,null,null,null,null,null,null,null,null,null,null,null,null,null,null,null,null,null,null,null,null,null,null,null,null,null,null,null,null,null,null,null,null,null,null,null,null,null,null,null,null,null,null,null,null,null,null,null,null,null,null,null,null,null,null,null,null,null,null,null,null,null,null,null,null,null,null,null,null,null,null,null,null,null,null,null,null,null,null,null,null,null,null,null,null,null,null,null,null,null,null,null,null,null,null,null,null,null,null,null,null,null,null,null,null,null,null,null,null,null,null,null,null,null,null,null,null,null,null,null,null,null,null,null,null,null,null,null,null,null,null,null,null,null,null,null,null,null,null,null,null,null,null,null,null,null,null,null,null,null,null,null,null,null,null,null,null,null,null,null,null,null,null,null,null,null,null,null,null,null,null,null,null,null,null,null,null,null,null,null,null,null,null,null,null,null,null,null,null,null,null,null,null,null,null,null,null,null,null,null,null,null,null,null,null,null,null,null,null,null,null,null,null,null,null,null,null,null,null,null,null,null,null,null,null,null,null,null,null,null,null,null,null,null,null,null,null,null,null,null,null,null,null,null,null,null,null,null,null,null,null,null,null,null,null,null,null,null,null,null,null,null,null,null,null,null,null,null,null,null,null,null,null,null,null,null,null,null,null,null,null,null,null,null,null,null,null,null,null,null,null,null,null,null,null,null,null,null,null,null,null,null,null,null,null,null,null,null,null,null,null,null,null,null,null,null,null,null,0,"ecash",null,null,null,null,null,null,null,null,0,"ecash",0,"ecash",0,"ecash"]
["2018-03-12","Monday",null,2,null,null,null,null,null,null,null,null,null,null,null,null,null,null,null,null,null,null,null,null,null,null,null,null,null,null,null,null,null,null,null,null,null,null,null,null,null,null,null,null,null,null,null,null,null,null,null,null,null,null,null,null,null,null,null,null,null,null,null,null,null,null,null,null,null,null,null,null,null,null,null,null,null,null,null,null,null,null,null,null,null,null,null,null,null,null,null,null,null,null,null,null,null,null,null,null,null,null,null,null,null,null,null,null,null,null,null,null,null,null,null,null,null,null,null,null,null,null,null,null,null,null,null,null,null,null,null,null,null,null,null,null,null,null,null,null,null,null,null,null,null,null,null,null,null,null,null,null,null,null,null,null,null,null,null,null,null,null,null,null,null,null,null,null,null,null,null,null,null,null,null,null,null,null,null,null,null,null,null,null,null,null,null,null,null,null,null,null,null,null,null,null,null,null,null,null,null,null,null,null,null,null,null,null,null,null,null,null,null,null,null,null,null,null,null,null,null,null,null,null,null,null,null,null,null,null,null,null,null,null,null,null,null,null,null,null,null,null,null,null,null,null,null,null,null,null,null,null,null,null,null,null,null,null,null,null,null,null,null,null,null,null,null,null,null,null,null,null,null,null,null,null,null,null,null,null,null,null,null,null,null,null,null,null,null,null,null,null,null,null,null,null,null,null,null,null,null,null,null,null,null,null,null,null,null,null,null,null,null,null,null,null,null,null,null,null,null,null,null,null,null,null,null,null,null,null,null,null,null,null,null,21.15,"5 day e-pass",21.15,"5 day e-pass",21.15,"5 day e-pass"]
["2018-03-13","Tuesday",null,2,null,null,null,null,null,null,null,null,null,null,null,null,null,null,null,null,null,null,null,null,null,null,null,null,null,null,null,null,null,null,null,null,null,null,null,null,null,null,null,null,null,null,null,null,null,null,null,null,null,null,null,null,null,null,null,null,null,null,null,null,null,null,null,null,null,null,null,null,null,null,null,null,null,null,null,null,null,null,null,null,null,null,null,null,null,null,null,null,null,null,null,null,null,null,null,null,null,null,null,null,null,null,null,null,null,null,null,null,null,null,null,null,null,null,null,null,null,null,null,null,null,null,null,null,null,null,null,null,null,null,null,null,null,null,null,null,null,null,null,null,null,null,null,null,null,null,null,null,null,null,null,null,null,null,null,null,null,null,null,null,null,null,null,null,null,null,null,null,null,null,null,null,null,null,null,null,null,null,null,null,null,null,null,null,null,null,null,null,null,null,null,null,null,null,null,null,null,null,null,null,null,null,null,null,null,null,null,null,null,null,null,null,null,null,null,null,null,null,null,null,null,null,null,null,null,null,null,null,null,null,null,null,null,null,null,null,null,null,null,null,null,null,null,null,null,null,null,null,null,null,null,null,null,null,null,null,null,null,null,null,null,null,null,null,null,null,null,null,null,null,null,null,null,null,null,null,null,null,null,null,null,null,null,null,null,null,null,null,null,null,null,null,null,null,null,null,null,null,null,null,null,null,null,null,null,null,null,null,null,null,null,null,null,null,null,null,null,null,null,null,null,null,null,null,null,4.7,"ecash",4.7,"ecash",4.7,"ecash"]
["2018-03-14","Wednesday",null,2,null,null,null,null,null,null,null,null,null,null,null,null,null,null,null,null,null,null,null,null,null,null,null,null,null,null,null,null,null,null,null,null,null,null,null,null,null,null,null,null,null,null,null,null,null,null,null,null,null,null,null,null,null,null,null,null,null,null,null,null,null,null,null,null,null,null,null,null,null,null,null,null,null,null,null,null,null,null,null,null,null,null,null,null,null,null,null,null,null,null,null,null,null,null,null,null,null,null,null,null,null,null,null,null,null,null,null,null,null,null,null,null,null,null,null,null,null,null,null,null,null,null,null,null,null,null,null,null,null,null,null,null,null,null,null,null,null,null,null,null,null,null,null,null,null,null,null,null,null,null,null,null,null,null,null,null,null,null,null,null,null,null,null,null,null,null,null,null,null,null,null,null,null,null,null,null,null,null,null,null,null,null,null,null,null,null,null,null,null,null,null,null,null,null,null,null,null,null,null,null,null,null,null,null,null,null,null,null,null,null,null,null,null,null,null,null,null,null,null,null,null,null,null,null,null,null,null,null,null,null,null,null,null,null,null,null,null,null,null,null,null,null,null,null,null,null,null,null,null,null,null,null,null,null,null,null,null,null,null,null,null,null,null,null,null,null,null,null,null,null,null,null,null,null,null,null,null,null,null,null,null,null,null,null,null,null,null,null,null,null,null,null,null,null,null,null,null,null,null,null,null,null,null,null,null,null,null,null,null,null,null,null,null,null,null,null,null,null,null,null,null,null,null,null,null,null,null,4.7,"ecash",4.7,"ecash"]
["2018-03-15","Thursday",null,2,null,null,null,null,null,null,null,null,null,null,null,null,null,null,null,null,null,null,null,null,null,null,null,null,null,null,null,null,null,null,null,null,null,null,null,null,null,null,null,null,null,null,null,null,null,null,null,null,null,null,null,null,null,null,null,null,null,null,null,null,null,null,null,null,null,null,null,null,null,null,null,null,null,null,null,null,null,null,null,null,null,null,null,null,null,null,null,null,null,null,null,null,null,null,null,null,null,null,null,null,null,null,null,null,null,null,null,null,null,null,null,null,null,null,null,null,null,null,null,null,null,null,null,null,null,null,null,null,null,null,null,null,null,null,null,null,null,null,null,null,null,null,null,null,null,null,null,null,null,null,null,null,null,null,null,null,null,null,null,null,null,null,null,null,null,null,null,null,null,null,null,null,null,null,null,null,null,null,null,null,null,null,null,null,null,null,null,null,null,null,null,null,null,null,null,null,null,null,null,null,null,null,null,null,null,null,null,null,null,null,null,null,null,null,null,null,null,null,null,null,null,null,null,null,null,null,null,null,null,null,null,null,null,null,null,null,null,null,null,null,null,null,null,null,null,null,null,null,null,null,null,null,null,null,null,null,null,null,null,null,null,null,null,null,null,null,null,null,null,null,null,null,null,null,null,null,null,null,null,null,null,null,null,null,null,null,null,null,null,null,null,null,null,null,null,null,null,null,null,null,null,null,null,null,null,null,null,null,null,null,null,null,null,null,null,null,null,null,null,null,null,null,null,null,null,null,null,null,null,4.7,"ecash"]
["2018-03-16","Friday",null,2]
["2018-03-17","Saturday",null,0,null,null,null,null,null,null,null,null,null,null,null,null,null,null,null,null,null,null,null,null,null,null,null,null,null,null,null,null,null,null,null,null,null,null,null,null,null,null,null,null,null,null,null,null,null,null,null,null,null,null,null,null,null,null,null,null,null,null,null,null,null,null,null,null,null,null,null,null,null,null,null,null,null,null,null,null,null,null,null,null,null,null,null,null,null,null,null,null,null,null,null,null,null,null,null,null,null,null,null,null,null,null,null,null,null,null,null,null,null,null,null,null,null,null,null,null,null,null,null,null,null,null,null,null,null,null,null,null,null,null,null,null,null,null,null,null,null,null,null,null,null,null,null,null,null,null,null,null,null,null,null,null,null,null,null,null,null,null,null,null,null,null,null,null,null,null,null,null,null,null,null,null,null,null,null,null,null,null,null,null,null,null,null,null,null,null,null,null,null,null,null,null,null,null,null,null,null,null,null,null,null,null,null,null,null,null,null,null,null,null,null,null,null,null,null,null,null,null,null,null,null,null,null,null,null,null,null,null,null,null,null,null,null,null,null,null,null,null,null,null,null,null,null,null,null,null,null,null,null,null,null,null,null,null,null,null,null,null,null,null,null,null,null,null,null,null,null,null,null,null,null,null,null,null,null,null,null,null,null,null,null,null,null,null,null,null,null,null,null,null,null,null,null,null,null,null,null,null,null,null,null,null,null,null,null,null,null,null,null,null,null,null,null,null,null,null,null,null,null,null,null,null,null,null,null,null,null,null,null,null,null,null,null,0,"ecash",0,"ecash"]
["2018-03-18","Sunday",null,0,null,null,null,null,null,null,null,null,null,null,null,null,null,null,null,null,null,null,null,null,null,null,null,null,null,null,null,null,null,null,null,null,null,null,null,null,null,null,null,null,null,null,null,null,null,null,null,null,null,null,null,null,null,null,null,null,null,null,null,null,null,null,null,null,null,null,null,null,null,null,null,null,null,null,null,null,null,null,null,null,null,null,null,null,null,null,null,null,null,null,null,null,null,null,null,null,null,null,null,null,null,null,null,null,null,null,null,null,null,null,null,null,null,null,null,null,null,null,null,null,null,null,null,null,null,null,null,null,null,null,null,null,null,null,null,null,null,null,null,null,null,null,null,null,null,null,null,null,null,null,null,null,null,null,null,null,null,null,null,null,null,null,null,null,null,null,null,null,null,null,null,null,null,null,null,null,null,null,null,null,null,null,null,null,null,null,null,null,null,null,null,null,null,null,null,null,null,null,null,null,null,null,null,null,null,null,null,null,null,null,null,null,null,null,null,null,null,null,null,null,null,null,null,null,null,null,null,null,null,null,null,null,null,null,null,null,null,null,null,null,null,null,null,null,null,null,null,null,null,null,null,null,null,null,null,null,null,null,null,null,null,null,null,null,null,null,null,null,null,null,null,null,null,null,null,null,null,null,null,null,null,null,null,null,null,null,null,null,null,null,null,null,null,null,null,null,null,null,null,null,null,null,null,null,null,null,null,null,null,null,null,null,null,null,null,null,null,null,null,null,null,null,null,null,null,null,null,null,null,null,null,null,null,null,null,0,"ecash"]
["2018-03-19","Monday",null,2]
["2018-03-20","Tuesday",null,2,null,null,null,null,null,null,null,null,null,null,null,null,null,null,null,null,null,null,null,null,null,null,null,null,null,null,null,null,null,null,null,null,null,null,null,null,null,null,null,null,null,null,null,null,null,null,null,null,null,null,null,null,null,null,null,null,null,null,null,null,null,null,null,null,null,null,null,null,null,null,null,null,null,null,null,null,null,null,null,null,null,null,null,null,null,null,null,null,null,null,null,null,null,null,null,null,null,null,null,null,null,null,null,null,null,null,null,null,null,null,null,null,null,null,null,null,null,null,null,null,null,null,null,null,null,null,null,null,null,null,null,null,null,null,null,null,null,null,null,null,null,null,null,null,null,null,null,null,null,null,null,null,null,null,null,null,null,null,null,null,null,null,null,null,null,null,null,null,null,null,null,null,null,null,null,null,null,null,null,null,null,null,null,null,null,null,null,null,null,null,null,null,null,null,null,null,null,null,null,null,null,null,null,null,null,null,null,null,null,null,null,null,null,null,null,null,null,null,null,null,null,null,null,null,null,null,null,null,null,null,null,null,null,null,null,null,null,null,null,null,null,null,null,null,null,null,null,null,null,null,null,null,null,null,null,null,null,null,null,null,null,null,null,null,null,null,null,null,null,null,null,null,null,null,null,null,null,null,null,null,null,null,null,null,null,null,null,null,null,null,null,null,null,null,null,null,null,null,null,null,null,null,null,null,null,null,null,null,null,null,null,null,null,null,null,null,null,null,null,null,null,null,null,null,null,null,null,null,null,null,null,null,null,null,null,null,null,null,null,4.7,"ecash",4.7,"ecash",4.7,"ecash",4.7,"ecash",4.7,"ecash",4.7,"ecash",4.7,"ecash",4.7,"ecash",null,null,null,null,null,null,null,null,null,null,null,null,null,null,null,null,null,null,null,null,null,null,null,null,null,null,null,null,null,null,null,null,null,null,null,null,null,null,83.45,"28 day e-pass",83.45,"28 day e-pass",4.7,"ecash",4.7,"ecash"]
["2018-03-21","Wednesday",null,2,null,null,null,null,null,null,null,null,null,null,null,null,null,null,null,null,null,null,null,null,null,null,null,null,null,null,null,null,null,null,null,null,null,null,null,null,null,null,null,null,null,null,null,null,null,null,null,null,null,null,null,null,null,null,null,null,null,null,null,null,null,null,null,null,null,null,null,null,null,null,null,null,null,null,null,null,null,null,null,null,null,null,null,null,null,null,null,null,null,null,null,null,null,null,null,null,null,null,null,null,null,null,null,null,null,null,null,null,null,null,null,null,null,null,null,null,null,null,null,null,null,null,null,null,null,null,null,null,null,null,null,null,null,null,null,null,null,null,null,null,null,null,null,null,null,null,null,null,null,null,null,null,null,null,null,null,null,null,null,null,null,null,null,null,null,null,null,null,null,null,null,null,null,null,null,null,null,null,null,null,null,null,null,null,null,null,null,null,null,null,null,null,null,null,null,null,null,null,null,null,null,null,null,null,null,null,null,null,null,null,null,null,null,null,null,null,null,null,null,null,null,null,null,null,null,null,null,null,null,null,null,null,null,null,null,null,null,null,null,null,null,null,null,null,null,null,null,null,null,null,null,null,null,null,null,null,null,null,null,null,null,null,null,null,null,null,null,null,null,null,null,null,null,null,null,null,null,null,null,null,null,null,null,null,null,null,null,null,null,null,null,null,null,null,null,null,null,null,null,null,null,null,null,null,null,null,null,null,null,null,null,null,null,null,null,null,null,null,null,null,null,null,null,null,null,null,null,null,null,null,null,null,null,null,null,null,null,null,null,null,null,4.7,"ecash",4.7,"ecash",4.7,"ecash",4.7,"ecash",4.7,"ecash",4.7,"ecash",4.7,"ecash",null,null,null,null,null,null,null,null,null,null,null,null,null,null,null,null,null,null,null,null,null,null,null,null,null,null,null,null,null,null,null,null,null,null,null,null,null,null,null,null,null,null,4.7,"ecash",4.7,"ecash"]
["2018-03-22","Thursday",null,2,null,null,null,null,null,null,null,null,null,null,null,null,null,null,null,null,null,null,null,null,null,null,null,null,null,null,null,null,null,null,null,null,null,null,null,null,null,null,null,null,null,null,null,null,null,null,null,null,null,null,null,null,null,null,null,null,null,null,null,null,null,null,null,null,null,null,null,null,null,null,null,null,null,null,null,null,null,null,null,null,null,null,null,null,null,null,null,null,null,null,null,null,null,null,null,null,null,null,null,null,null,null,null,null,null,null,null,null,null,null,null,null,null,null,null,null,null,null,null,null,null,null,null,null,null,null,null,null,null,null,null,null,null,null,null,null,null,null,null,null,null,null,null,null,null,null,null,null,null,null,null,null,null,null,null,null,null,null,null,null,null,null,null,null,null,null,null,null,null,null,null,null,null,null,null,null,null,null,null,null,null,null,null,null,null,null,null,null,null,null,null,null,null,null,null,null,null,null,null,null,null,null,null,null,null,null,null,null,null,null,null,null,null,null,null,null,null,null,null,null,null,null,null,null,null,null,null,null,null,null,null,null,null,null,null,null,null,null,null,null,null,null,null,null,null,null,null,null,null,null,null,null,null,null,null,null,null,null,null,null,null,null,null,null,null,null,null,null,null,null,null,null,null,null,null,null,null,null,null,null,null,null,null,null,null,null,null,null,null,null,null,null,null,null,null,null,null,null,null,null,null,null,null,null,null,null,null,null,null,null,null,null,null,null,null,null,null,null,null,null,null,null,null,null,null,null,null,null,null,null,null,null,null,null,null,null,null,null,null,null,null,null,null,4.7,"ecash",4.7,"ecash",4.7,"ecash",4.7,"ecash",4.7,"ecash",4.7,"ecash",null,null,null,null,null,null,null,null,null,null,null,null,null,null,null,null,null,null,null,null,null,null,null,null,null,null,null,null,null,null,null,null,null,null,null,null,null,null,null,null,null,null,83.45,"28 day e-pass",83.45,"28 day e-pass"]
["2018-03-23","Friday",null,2,null,null,null,null,null,null,null,null,null,null,null,null,null,null,null,null,null,null,null,null,null,null,null,null,null,null,null,null,null,null,null,null,null,null,null,null,null,null,null,null,null,null,null,null,null,null,null,null,null,null,null,null,null,null,null,null,null,null,null,null,null,null,null,null,null,null,null,null,null,null,null,null,null,null,null,null,null,null,null,null,null,null,null,null,null,null,null,null,null,null,null,null,null,null,null,null,null,null,null,null,null,null,null,null,null,null,null,null,null,null,null,null,null,null,null,null,null,null,null,null,null,null,null,null,null,null,null,null,null,null,null,null,null,null,null,null,null,null,null,null,null,null,null,null,null,null,null,null,null,null,null,null,null,null,null,null,null,null,null,null,null,null,null,null,null,null,null,null,null,null,null,null,null,null,null,null,null,null,null,null,null,null,null,null,null,null,null,null,null,null,null,null,null,null,null,null,null,null,null,null,null,null,null,null,null,null,null,null,null,null,null,null,null,null,null,null,null,null,null,null,null,null,null,null,null,null,null,null,null,null,null,null,null,null,null,null,null,null,null,null,null,null,null,null,null,null,null,null,null,null,null,null,null,null,null,null,null,null,null,null,null,null,null,null,null,null,null,null,null,null,null,null,null,null,null,null,null,null,null,null,null,null,null,null,null,null,null,null,null,null,null,null,null,null,null,null,null,null,null,null,null,null,null,null,null,null,null,null,null,null,null,null,null,null,null,null,null,null,null,null,null,null,null,null,null,null,null,null,null,null,null,null,null,null,null,null,null,null,null,null,null,null,null,null,null,4.7,"ecash",4.7,"ecash",4.7,"ecash",4.7,"ecash",4.7,"ecash"]
["2018-03-24","Saturday",null,0,null,null,null,null,null,null,null,null,null,null,null,null,null,null,null,null,null,null,null,null,null,null,null,null,null,null,null,null,null,null,null,null,null,null,null,null,null,null,null,null,null,null,null,null,null,null,null,null,null,null,null,null,null,null,null,null,null,null,null,null,null,null,null,null,null,null,null,null,null,null,null,null,null,null,null,null,null,null,null,null,null,null,null,null,null,null,null,null,null,null,null,null,null,null,null,null,null,null,null,null,null,null,null,null,null,null,null,null,null,null,null,null,null,null,null,null,null,null,null,null,null,null,null,null,null,null,null,null,null,null,null,null,null,null,null,null,null,null,null,null,null,null,null,null,null,null,null,null,null,null,null,null,null,null,null,null,null,null,null,null,null,null,null,null,null,null,null,null,null,null,null,null,null,null,null,null,null,null,null,null,null,null,null,null,null,null,null,null,null,null,null,null,null,null,null,null,null,null,null,null,null,null,null,null,null,null,null,null,null,null,null,null,null,null,null,null,null,null,null,null,null,null,null,null,null,null,null,null,null,null,null,null,null,null,null,null,null,null,null,null,null,null,null,null,null,null,null,null,null,null,null,null,null,null,null,null,null,null,null,null,null,null,null,null,null,null,null,null,null,null,null,null,null,null,null,null,null,null,null,null,null,null,null,null,null,null,null,null,null,null,null,null,null,null,null,null,null,null,null,null,null,null,null,null,null,null,null,null,null,null,null,null,null,null,null,null,null,null,null,null,null,null,null,null,null,null,null,null,null,null,null,null,null,null,null,null,null,null,null,null,null,null,null,null,null,null,null,0,"ecash",0,"ecash",0,"ecash",0,"ecash"]
["2018-03-25","Sunday",null,0,null,null,null,null,null,null,null,null,null,null,null,null,null,null,null,null,null,null,null,null,null,null,null,null,null,null,null,null,null,null,null,null,null,null,null,null,null,null,null,null,null,null,null,null,null,null,null,null,null,null,null,null,null,null,null,null,null,null,null,null,null,null,null,null,null,null,null,null,null,null,null,null,null,null,null,null,null,null,null,null,null,null,null,null,null,null,null,null,null,null,null,null,null,null,null,null,null,null,null,null,null,null,null,null,null,null,null,null,null,null,null,null,null,null,null,null,null,null,null,null,null,null,null,null,null,null,null,null,null,null,null,null,null,null,null,null,null,null,null,null,null,null,null,null,null,null,null,null,null,null,null,null,null,null,null,null,null,null,null,null,null,null,null,null,null,null,null,null,null,null,null,null,null,null,null,null,null,null,null,null,null,null,null,null,null,null,null,null,null,null,null,null,null,null,null,null,null,null,null,null,null,null,null,null,null,null,null,null,null,null,null,null,null,null,null,null,null,null,null,null,null,null,null,null,null,null,null,null,null,null,null,null,null,null,null,null,null,null,null,null,null,null,null,null,null,null,null,null,null,null,null,null,null,null,null,null,null,null,null,null,null,null,null,null,null,null,null,null,null,null,null,null,null,null,null,null,null,null,null,null,null,null,null,null,null,null,null,null,null,null,null,null,null,null,null,null,null,null,null,null,null,null,null,null,null,null,null,null,null,null,null,null,null,null,null,null,null,null,null,null,null,null,null,null,null,null,null,null,null,null,null,null,null,null,null,null,null,null,null,null,null,null,null,null,null,null,null,null,null,0,"ecash",0,"ecash",0,"ecash"]
["2018-03-26","Monday",null,2,null,null,null,null,null,null,null,null,null,null,null,null,null,null,null,null,null,null,null,null,null,null,null,null,null,null,null,null,null,null,null,null,null,null,null,null,null,null,null,null,null,null,null,null,null,null,null,null,null,null,null,null,null,null,null,null,null,null,null,null,null,null,null,null,null,null,null,null,null,null,null,null,null,null,null,null,null,null,null,null,null,null,null,null,null,null,null,null,null,null,null,null,null,null,null,null,null,null,null,null,null,null,null,null,null,null,null,null,null,null,null,null,null,null,null,null,null,null,null,null,null,null,null,null,null,null,null,null,null,null,null,null,null,null,null,null,null,null,null,null,null,null,null,null,null,null,null,null,null,null,null,null,null,null,null,null,null,null,null,null,null,null,null,null,null,null,null,null,null,null,null,null,null,null,null,null,null,null,null,null,null,null,null,null,null,null,null,null,null,null,null,null,null,null,null,null,null,null,null,null,null,null,null,null,null,null,null,null,null,null,null,null,null,null,null,null,null,null,null,null,null,null,null,null,null,null,null,null,null,null,null,null,null,null,null,null,null,null,null,null,null,null,null,null,null,null,null,null,null,null,null,null,null,null,null,null,null,null,null,null,null,null,null,null,null,null,null,null,null,null,null,null,null,null,null,null,null,null,null,null,null,null,null,null,null,null,null,null,null,null,null,null,null,null,null,null,null,null,null,null,null,null,null,null,null,null,null,null,null,null,null,null,null,null,null,null,null,null,null,null,null,null,null,null,null,null,null,null,null,null,null,null,null,null,null,null,null,null,null,null,null,null,null,null,null,null,null,null,null,null,null,4.7,"ecash",4.7,"ecash"]
["2018-03-27","Tuesday",null,2,null,null,null,null,null,null,null,null,null,null,null,null,null,null,null,null,null,null,null,null,null,null,null,null,null,null,null,null,null,null,null,null,null,null,null,null,null,null,null,null,null,null,null,null,null,null,null,null,null,null,null,null,null,null,null,null,null,null,null,null,null,null,null,null,null,null,null,null,null,null,null,null,null,null,null,null,null,null,null,null,null,null,null,null,null,null,null,null,null,null,null,null,null,null,null,null,null,null,null,null,null,null,null,null,null,null,null,null,null,null,null,null,null,null,null,null,null,null,null,null,null,null,null,null,null,null,null,null,null,null,null,null,null,null,null,null,null,null,null,null,null,null,null,null,null,null,null,null,null,null,null,null,null,null,null,null,null,null,null,null,null,null,null,null,null,null,null,null,null,null,null,null,null,null,null,null,null,null,null,null,null,null,null,null,null,null,null,null,null,null,null,null,null,null,null,null,null,null,null,null,null,null,null,null,null,null,null,null,null,null,null,null,null,null,null,null,null,null,null,null,null,null,null,null,null,null,null,null,null,null,null,null,null,null,null,null,null,null,null,null,null,null,null,null,null,null,null,null,null,null,null,null,null,null,null,null,null,null,null,null,null,null,null,null,null,null,null,null,null,null,null,null,null,null,null,null,null,null,null,null,null,null,null,null,null,null,null,null,null,null,null,null,null,null,null,null,null,null,null,null,null,null,null,null,null,null,null,null,null,null,null,null,null,null,null,null,null,null,null,null,null,null,null,null,null,null,null,null,null,null,null,null,null,null,null,null,null,null,null,null,null,null,null,null,null,null,null,null,null,null,null,null,null,4.7,"ecash"]
["2018-03-28","Wednesday",null,2]
["2018-03-29","Thursday",null,2,null,null,null,null,null,null,null,null,null,null,null,null,null,null,null,null,null,null,null,null,null,null,null,null,null,null,null,null,null,null,null,null,null,null,null,null,null,null,null,null,null,null,null,null,null,null,null,null,null,null,null,null,null,null,null,null,null,null,null,null,null,null,null,null,null,null,null,null,null,null,null,null,null,null,null,null,null,null,null,null,null,null,null,null,null,null,null,null,null,null,null,null,null,null,null,null,null,null,null,null,null,null,null,null,null,null,null,null,null,null,null,null,null,null,null,null,null,null,null,null,null,null,null,null,null,null,null,null,null,null,null,null,null,null,null,null,null,null,null,null,null,null,null,null,null,null,null,null,null,null,null,null,null,null,null,null,null,null,null,null,null,null,null,null,null,null,null,null,null,null,null,null,null,null,null,null,null,null,null,null,null,null,null,null,null,null,null,null,null,null,null,null,null,null,null,null,null,null,null,null,null,null,null,null,null,null,null,null,null,null,null,null,null,null,null,null,null,null,null,null,null,null,null,null,null,null,null,null,null,null,null,null,null,null,null,null,null,null,null,null,null,null,null,null,null,null,null,null,null,null,null,null,null,null,null,null,null,null,null,null,null,null,null,null,null,null,null,null,null,null,null,null,null,null,null,null,null,null,null,null,null,null,null,null,null,null,null,null,null,null,null,null,null,null,null,null,null,null,null,null,null,null,null,null,null,null,null,null,null,null,null,null,null,null,null,null,null,null,null,null,null,null,null,null,null,null,null,null,null,null,null,null,null,null,null,null,null,null,null,null,null,null,null,null,null,null,null,null,null,null,null,null,null,null,null,null,null,4.7,"ecash",4.7,"ecash",4.7,"ecash",4.7,"ecash",4.7,"ecash",4.7,"ecash",4.7,"ecash",4.7,"ecash",4.7,"ecash",4.7,"ecash",4.7,"ecash",4.7,"ecash",4.7,"ecash",4.7,"ecash",4.7,"ecash",4.7,"ecash",4.7,"ecash",4.7,"ecash",null,null,null,null,null,null,null,null,4.7,"ecash",4.7,"ecash",4.7,"ecash",4.7,"ecash",4.7,"ecash",4.7,"ecash",4.7,"ecash",4.7,"ecash",4.7,"ecash",4.7,"ecash",4.7,"ecash"]
["2018-03-30","Friday","Good Friday",0,null,null,null,null,null,null,null,null,null,null,null,null,null,null,null,null,null,null,null,null,null,null,null,null,null,null,null,null,null,null,null,null,null,null,null,null,null,null,null,null,null,null,null,null,null,null,null,null,null,null,null,null,null,null,null,null,null,null,null,null,null,null,null,null,null,null,null,null,null,null,null,null,null,null,null,null,null,null,null,null,null,null,null,null,null,null,null,null,null,null,null,null,null,null,null,null,null,null,null,null,null,null,null,null,null,null,null,null,null,null,null,null,null,null,null,null,null,null,null,null,null,null,null,null,null,null,null,null,null,null,null,null,null,null,null,null,null,null,null,null,null,null,null,null,null,null,null,null,null,null,null,null,null,null,null,null,null,null,null,null,null,null,null,null,null,null,null,null,null,null,null,null,null,null,null,null,null,null,null,null,null,null,null,null,null,null,null,null,null,null,null,null,null,null,null,null,null,null,null,null,null,null,null,null,null,null,null,null,null,null,null,null,null,null,null,null,null,null,null,null,null,null,null,null,null,null,null,null,null,null,null,null,null,null,null,null,null,null,null,null,null,null,null,null,null,null,null,null,null,null,null,null,null,null,null,null,null,null,null,null,null,null,null,null,null,null,null,null,null,null,null,null,null,null,null,null,null,null,null,null,null,null,null,null,null,null,null,null,null,null,null,null,null,null,null,null,null,null,null,null,null,null,null,null,null,null,null,null,null,null,null,null,null,null,null,null,null,null,null,null,null,null,null,null,null,null,null,null,null,null,null,null,null,null,null,null,null,null,null,null,null,null,null,null,null,null,null,null,null,null,null,null,null,null,null,null,null,null,null,0,"ecash",0,"ecash",0,"ecash",0,"ecash",0,"ecash",0,"ecash",0,"ecash",0,"ecash",0,"ecash",0,"ecash",0,"ecash",0,"ecash",0,"ecash",0,"ecash",0,"ecash",0,"ecash",0,"ecash",null,null,null,null,null,null,null,null,0,"ecash",0,"ecash",0,"ecash",0,"ecash",0,"ecash",0,"ecash",0,"ecash",0,"ecash",0,"ecash",0,"ecash",0,"ecash"]
["2018-03-31","Saturday",null,0,null,null,null,null,null,null,null,null,null,null,null,null,null,null,null,null,null,null,null,null,null,null,null,null,null,null,null,null,null,null,null,null,null,null,null,null,null,null,null,null,null,null,null,null,null,null,null,null,null,null,null,null,null,null,null,null,null,null,null,null,null,null,null,null,null,null,null,null,null,null,null,null,null,null,null,null,null,null,null,null,null,null,null,null,null,null,null,null,null,null,null,null,null,null,null,null,null,null,null,null,null,null,null,null,null,null,null,null,null,null,null,null,null,null,null,null,null,null,null,null,null,null,null,null,null,null,null,null,null,null,null,null,null,null,null,null,null,null,null,null,null,null,null,null,null,null,null,null,null,null,null,null,null,null,null,null,null,null,null,null,null,null,null,null,null,null,null,null,null,null,null,null,null,null,null,null,null,null,null,null,null,null,null,null,null,null,null,null,null,null,null,null,null,null,null,null,null,null,null,null,null,null,null,null,null,null,null,null,null,null,null,null,null,null,null,null,null,null,null,null,null,null,null,null,null,null,null,null,null,null,null,null,null,null,null,null,null,null,null,null,null,null,null,null,null,null,null,null,null,null,null,null,null,null,null,null,null,null,null,null,null,null,null,null,null,null,null,null,null,null,null,null,null,null,null,null,null,null,null,null,null,null,null,null,null,null,null,null,null,null,null,null,null,null,null,null,null,null,null,null,null,null,null,null,null,null,null,null,null,null,null,null,null,null,null,null,null,null,null,null,null,null,null,null,null,null,null,null,null,null,null,null,null,null,null,null,null,null,null,null,null,null,null,null,null,null,null,null,null,null,null,null,null,null,null,null,null,null,null,null,null,0,"ecash",0,"ecash",0,"ecash",0,"ecash",0,"ecash",0,"ecash",0,"ecash",0,"ecash",0,"ecash",0,"ecash",0,"ecash",0,"ecash",0,"ecash",0,"ecash",0,"ecash",0,"ecash",null,null,null,null,null,null,null,null,0,"ecash",0,"ecash",0,"ecash",0,"ecash",0,"ecash",0,"ecash",0,"ecash",83.45,"28 day e-pass",83.45,"28 day e-pass",83.45,"28 day e-pass",83.45,"28 day e-pass"]
["2018-04-01","Sunday",null,0,null,null,null,null,null,null,null,null,null,null,null,null,null,null,null,null,null,null,null,null,null,null,null,null,null,null,null,null,null,null,null,null,null,null,null,null,null,null,null,null,null,null,null,null,null,null,null,null,null,null,null,null,null,null,null,null,null,null,null,null,null,null,null,null,null,null,null,null,null,null,null,null,null,null,null,null,null,null,null,null,null,null,null,null,null,null,null,null,null,null,null,null,null,null,null,null,null,null,null,null,null,null,null,null,null,null,null,null,null,null,null,null,null,null,null,null,null,null,null,null,null,null,null,null,null,null,null,null,null,null,null,null,null,null,null,null,null,null,null,null,null,null,null,null,null,null,null,null,null,null,null,null,null,null,null,null,null,null,null,null,null,null,null,null,null,null,null,null,null,null,null,null,null,null,null,null,null,null,null,null,null,null,null,null,null,null,null,null,null,null,null,null,null,null,null,null,null,null,null,null,null,null,null,null,null,null,null,null,null,null,null,null,null,null,null,null,null,null,null,null,null,null,null,null,null,null,null,null,null,null,null,null,null,null,null,null,null,null,null,null,null,null,null,null,null,null,null,null,null,null,null,null,null,null,null,null,null,null,null,null,null,null,null,null,null,null,null,null,null,null,null,null,null,null,null,null,null,null,null,null,null,null,null,null,null,null,null,null,null,null,null,null,null,null,null,null,null,null,null,null,null,null,null,null,null,null,null,null,null,null,null,null,null,null,null,null,null,null,null,null,null,null,null,null,null,null,null,null,null,null,null,null,null,null,null,null,null,null,null,null,null,null,null,null,null,null,null,null,null,null,null,null,null,null,null,null,null,null,null,null,null,null,null,0,"ecash",0,"ecash",0,"ecash",0,"ecash",0,"ecash",0,"ecash",0,"ecash",0,"ecash",0,"ecash",0,"ecash",0,"ecash",0,"ecash",0,"ecash",0,"ecash",0,"ecash",null,null,null,null,null,null,null,null,0,"ecash",0,"ecash",0,"ecash",0,"ecash",0,"ecash",0,"ecash",0,"ecash"]
["2018-04-02","Monday",null,2,null,null,null,null,null,null,null,null,null,null,null,null,null,null,null,null,null,null,null,null,null,null,null,null,null,null,null,null,null,null,null,null,null,null,null,null,null,null,null,null,null,null,null,null,null,null,null,null,null,null,null,null,null,null,null,null,null,null,null,null,null,null,null,null,null,null,null,null,null,null,null,null,null,null,null,null,null,null,null,null,null,null,null,null,null,null,null,null,null,null,null,null,null,null,null,null,null,null,null,null,null,null,null,null,null,null,null,null,null,null,null,null,null,null,null,null,null,null,null,null,null,null,null,null,null,null,null,null,null,null,null,null,null,null,null,null,null,null,null,null,null,null,null,null,null,null,null,null,null,null,null,null,null,null,null,null,null,null,null,null,null,null,null,null,null,null,null,null,null,null,null,null,null,null,null,null,null,null,null,null,null,null,null,null,null,null,null,null,null,null,null,null,null,null,null,null,null,null,null,null,null,null,null,null,null,null,null,null,null,null,null,null,null,null,null,null,null,null,null,null,null,null,null,null,null,null,null,null,null,null,null,null,null,null,null,null,null,null,null,null,null,null,null,null,null,null,null,null,null,null,null,null,null,null,null,null,null,null,null,null,null,null,null,null,null,null,null,null,null,null,null,null,null,null,null,null,null,null,null,null,null,null,null,null,null,null,null,null,null,null,null,null,null,null,null,null,null,null,null,null,null,null,null,null,null,null,null,null,null,null,null,null,null,null,null,null,null,null,null,null,null,null,null,null,null,null,null,null,null,null,null,null,null,null,null,null,null,null,null,null,null,null,null,null,null,null,null,null,null,null,null,null,null,null,null,null,null,null,null,null,null,null,null,null,null,4.7,"ecash",4.7,"ecash",4.7,"ecash",4.7,"ecash",21.15,"5 day e-pass",21.15,"5 day e-pass",21.15,"5 day e-pass",21.15,"5 day e-pass",21.15,"5 day e-pass",21.15,"5 day e-pass",21.15,"5 day e-pass",21.15,"5 day e-pass",21.15,"5 day e-pass",21.15,"5 day e-pass",null,null,null,null,null,null,null,null,21.15,"5 day e-pass",21.15,"5 day e-pass",21.15,"5 day e-pass",21.15,"5 day e-pass",21.15,"5 day e-pass",21.15,"5 day e-pass",21.15,"5 day e-pass"]
["2018-04-03","Tuesday",null,2,null,null,null,null,null,null,null,null,null,null,null,null,null,null,null,null,null,null,null,null,null,null,null,null,null,null,null,null,null,null,null,null,null,null,null,null,null,null,null,null,null,null,null,null,null,null,null,null,null,null,null,null,null,null,null,null,null,null,null,null,null,null,null,null,null,null,null,null,null,null,null,null,null,null,null,null,null,null,null,null,null,null,null,null,null,null,null,null,null,null,null,null,null,null,null,null,null,null,null,null,null,null,null,null,null,null,null,null,null,null,null,null,null,null,null,null,null,null,null,null,null,null,null,null,null,null,null,null,null,null,null,null,null,null,null,null,null,null,null,null,null,null,null,null,null,null,null,null,null,null,null,null,null,null,null,null,null,null,null,null,null,null,null,null,null,null,null,null,null,null,null,null,null,null,null,null,null,null,null,null,null,null,null,null,null,null,null,null,null,null,null,null,null,null,null,null,null,null,null,null,null,null,null,null,null,null,null,null,null,null,null,null,null,null,null,null,null,null,null,null,null,null,null,null,null,null,null,null,null,null,null,null,null,null,null,null,null,null,null,null,null,null,null,null,null,null,null,null,null,null,null,null,null,null,null,null,null,null,null,null,null,null,null,null,null,null,null,null,null,null,null,null,null,null,null,null,null,null,null,null,null,null,null,null,null,null,null,null,null,null,null,null,null,null,null,null,null,null,null,null,null,null,null,null,null,null,null,null,null,null,null,null,null,null,null,null,null,null,null,null,null,null,null,null,null,null,null,null,null,null,null,null,null,null,null,null,null,null,null,null,null,null,null,null,null,null,null,null,null,null,null,null,null,null,null,null,null,null,null,null,null,null,null,null,null,null,null,4.7,"ecash",4.7,"ecash",4.7,"ecash"]
["2018-04-04","Wednesday",null,2,null,null,null,null,null,null,null,null,null,null,null,null,null,null,null,null,null,null,null,null,null,null,null,null,null,null,null,null,null,null,null,null,null,null,null,null,null,null,null,null,null,null,null,null,null,null,null,null,null,null,null,null,null,null,null,null,null,null,null,null,null,null,null,null,null,null,null,null,null,null,null,null,null,null,null,null,null,null,null,null,null,null,null,null,null,null,null,null,null,null,null,null,null,null,null,null,null,null,null,null,null,null,null,null,null,null,null,null,null,null,null,null,null,null,null,null,null,null,null,null,null,null,null,null,null,null,null,null,null,null,null,null,null,null,null,null,null,null,null,null,null,null,null,null,null,null,null,null,null,null,null,null,null,null,null,null,null,null,null,null,null,null,null,null,null,null,null,null,null,null,null,null,null,null,null,null,null,null,null,null,null,null,null,null,null,null,null,null,null,null,null,null,null,null,null,null,null,null,null,null,null,null,null,null,null,null,null,null,null,null,null,null,null,null,null,null,null,null,null,null,null,null,null,null,null,null,null,null,null,null,null,null,null,null,null,null,null,null,null,null,null,null,null,null,null,null,null,null,null,null,null,null,null,null,null,null,null,null,null,null,null,null,null,null,null,null,null,null,null,null,null,null,null,null,null,null,null,null,null,null,null,null,null,null,null,null,null,null,null,null,null,null,null,null,null,null,null,null,null,null,null,null,null,null,null,null,null,null,null,null,null,null,null,null,null,null,null,null,null,null,null,null,null,null,null,null,null,null,null,null,null,null,null,null,null,null,null,null,null,null,null,null,null,null,null,null,null,null,null,null,null,null,null,null,null,null,null,null,null,null,null,null,null,null,null,null,null,null,null,4.7,"ecash",4.7,"ecash"]
["2018-04-05","Thursday",null,2,null,null,null,null,null,null,null,null,null,null,null,null,null,null,null,null,null,null,null,null,null,null,null,null,null,null,null,null,null,null,null,null,null,null,null,null,null,null,null,null,null,null,null,null,null,null,null,null,null,null,null,null,null,null,null,null,null,null,null,null,null,null,null,null,null,null,null,null,null,null,null,null,null,null,null,null,null,null,null,null,null,null,null,null,null,null,null,null,null,null,null,null,null,null,null,null,null,null,null,null,null,null,null,null,null,null,null,null,null,null,null,null,null,null,null,null,null,null,null,null,null,null,null,null,null,null,null,null,null,null,null,null,null,null,null,null,null,null,null,null,null,null,null,null,null,null,null,null,null,null,null,null,null,null,null,null,null,null,null,null,null,null,null,null,null,null,null,null,null,null,null,null,null,null,null,null,null,null,null,null,null,null,null,null,null,null,null,null,null,null,null,null,null,null,null,null,null,null,null,null,null,null,null,null,null,null,null,null,null,null,null,null,null,null,null,null,null,null,null,null,null,null,null,null,null,null,null,null,null,null,null,null,null,null,null,null,null,null,null,null,null,null,null,null,null,null,null,null,null,null,null,null,null,null,null,null,null,null,null,null,null,null,null,null,null,null,null,null,null,null,null,null,null,null,null,null,null,null,null,null,null,null,null,null,null,null,null,null,null,null,null,null,null,null,null,null,null,null,null,null,null,null,null,null,null,null,null,null,null,null,null,null,null,null,null,null,null,null,null,null,null,null,null,null,null,null,null,null,null,null,null,null,null,null,null,null,null,null,null,null,null,null,null,null,null,null,null,null,null,null,null,null,null,null,null,null,null,null,null,null,null,null,null,null,null,null,null,null,null,null,null,4.7,"ecash"]
["2018-04-06","Friday",null,2]
["2018-04-07","Saturday",null,0,null,null,null,null,null,null,null,null,null,null,null,null,null,null,null,null,null,null,null,null,null,null,null,null,null,null,null,null,null,null,null,null,null,null,null,null,null,null,null,null,null,null,null,null,null,null,null,null,null,null,null,null,null,null,null,null,null,null,null,null,null,null,null,null,null,null,null,null,null,null,null,null,null,null,null,null,null,null,null,null,null,null,null,null,null,null,null,null,null,null,null,null,null,null,null,null,null,null,null,null,null,null,null,null,null,null,null,null,null,null,null,null,null,null,null,null,null,null,null,null,null,null,null,null,null,null,null,null,null,null,null,null,null,null,null,null,null,null,null,null,null,null,null,null,null,null,null,null,null,null,null,null,null,null,null,null,null,null,null,null,null,null,null,null,null,null,null,null,null,null,null,null,null,null,null,null,null,null,null,null,null,null,null,null,null,null,null,null,null,null,null,null,null,null,null,null,null,null,null,null,null,null,null,null,null,null,null,null,null,null,null,null,null,null,null,null,null,null,null,null,null,null,null,null,null,null,null,null,null,null,null,null,null,null,null,null,null,null,null,null,null,null,null,null,null,null,null,null,null,null,null,null,null,null,null,null,null,null,null,null,null,null,null,null,null,null,null,null,null,null,null,null,null,null,null,null,null,null,null,null,null,null,null,null,null,null,null,null,null,null,null,null,null,null,null,null,null,null,null,null,null,null,null,null,null,null,null,null,null,null,null,null,null,null,null,null,null,null,null,null,null,null,null,null,null,null,null,null,null,null,null,null,null,null,null,null,null,null,null,null,null,null,null,null,null,null,null,null,null,null,null,null,null,null,null,null,null,null,null,null,null,null,null,null,null,null,null,null,null,null,null,null,null,null,null,0,"ecash",0,"ecash",0,"ecash",0,"ecash",0,"ecash",0,"ecash",0,"ecash",0,"ecash",0,"ecash",null,null,null,null,null,null,null,null,0,"ecash",0,"ecash",0,"ecash",0,"ecash",0,"ecash",0,"ecash",0,"ecash"]
["2018-04-08","Sunday",null,0,null,null,null,null,null,null,null,null,null,null,null,null,null,null,null,null,null,null,null,null,null,null,null,null,null,null,null,null,null,null,null,null,null,null,null,null,null,null,null,null,null,null,null,null,null,null,null,null,null,null,null,null,null,null,null,null,null,null,null,null,null,null,null,null,null,null,null,null,null,null,null,null,null,null,null,null,null,null,null,null,null,null,null,null,null,null,null,null,null,null,null,null,null,null,null,null,null,null,null,null,null,null,null,null,null,null,null,null,null,null,null,null,null,null,null,null,null,null,null,null,null,null,null,null,null,null,null,null,null,null,null,null,null,null,null,null,null,null,null,null,null,null,null,null,null,null,null,null,null,null,null,null,null,null,null,null,null,null,null,null,null,null,null,null,null,null,null,null,null,null,null,null,null,null,null,null,null,null,null,null,null,null,null,null,null,null,null,null,null,null,null,null,null,null,null,null,null,null,null,null,null,null,null,null,null,null,null,null,null,null,null,null,null,null,null,null,null,null,null,null,null,null,null,null,null,null,null,null,null,null,null,null,null,null,null,null,null,null,null,null,null,null,null,null,null,null,null,null,null,null,null,null,null,null,null,null,null,null,null,null,null,null,null,null,null,null,null,null,null,null,null,null,null,null,null,null,null,null,null,null,null,null,null,null,null,null,null,null,null,null,null,null,null,null,null,null,null,null,null,null,null,null,null,null,null,null,null,null,null,null,null,null,null,null,null,null,null,null,null,null,null,null,null,null,null,null,null,null,null,null,null,null,null,null,null,null,null,null,null,null,null,null,null,null,null,null,null,null,null,null,null,null,null,null,null,null,null,null,null,null,null,null,null,null,null,null,null,null,null,null,null,null,null,null,null,null,null,0,"ecash",0,"ecash",0,"ecash",0,"ecash",0,"ecash",0,"ecash",0,"ecash",0,"ecash",null,null,null,null,null,null,null,null,0,"ecash",0,"ecash",0,"ecash",0,"ecash",0,"ecash",0,"ecash",0,"ecash"]
["2018-04-09","Monday",null,2,null,null,null,null,null,null,null,null,null,null,null,null,null,null,null,null,null,null,null,null,null,null,null,null,null,null,null,null,null,null,null,null,null,null,null,null,null,null,null,null,null,null,null,null,null,null,null,null,null,null,null,null,null,null,null,null,null,null,null,null,null,null,null,null,null,null,null,null,null,null,null,null,null,null,null,null,null,null,null,null,null,null,null,null,null,null,null,null,null,null,null,null,null,null,null,null,null,null,null,null,null,null,null,null,null,null,null,null,null,null,null,null,null,null,null,null,null,null,null,null,null,null,null,null,null,null,null,null,null,null,null,null,null,null,null,null,null,null,null,null,null,null,null,null,null,null,null,null,null,null,null,null,null,null,null,null,null,null,null,null,null,null,null,null,null,null,null,null,null,null,null,null,null,null,null,null,null,null,null,null,null,null,null,null,null,null,null,null,null,null,null,null,null,null,null,null,null,null,null,null,null,null,null,null,null,null,null,null,null,null,null,null,null,null,null,null,null,null,null,null,null,null,null,null,null,null,null,null,null,null,null,null,null,null,null,null,null,null,null,null,null,null,null,null,null,null,null,null,null,null,null,null,null,null,null,null,null,null,null,null,null,null,null,null,null,null,null,null,null,null,null,null,null,null,null,null,null,null,null,null,null,null,null,null,null,null,null,null,null,null,null,null,null,null,null,null,null,null,null,null,null,null,null,null,null,null,null,null,null,null,null,null,null,null,null,null,null,null,null,null,null,null,null,null,null,null,null,null,null,null,null,null,null,null,null,null,null,null,null,null,null,null,null,null,null,null,null,null,null,null,null,null,null,null,null,null,null,null,null,null,null,null,null,null,null,null,null,null,null,null,null,null,null,null,null,null,null,null,null,4.7,"ecash",4.7,"ecash",4.7,"ecash",4.7,"ecash",21.15,"5 day e-pass",21.15,"5 day e-pass",21.15,"5 day e-pass",null,null,null,null,null,null,null,null,21.15,"5 day e-pass",21.15,"5 day e-pass",21.15,"5 day e-pass",21.15,"5 day e-pass",21.15,"5 day e-pass",21.15,"5 day e-pass",21.15,"5 day e-pass"]
["2018-04-10","Tuesday",null,2,null,null,null,null,null,null,null,null,null,null,null,null,null,null,null,null,null,null,null,null,null,null,null,null,null,null,null,null,null,null,null,null,null,null,null,null,null,null,null,null,null,null,null,null,null,null,null,null,null,null,null,null,null,null,null,null,null,null,null,null,null,null,null,null,null,null,null,null,null,null,null,null,null,null,null,null,null,null,null,null,null,null,null,null,null,null,null,null,null,null,null,null,null,null,null,null,null,null,null,null,null,null,null,null,null,null,null,null,null,null,null,null,null,null,null,null,null,null,null,null,null,null,null,null,null,null,null,null,null,null,null,null,null,null,null,null,null,null,null,null,null,null,null,null,null,null,null,null,null,null,null,null,null,null,null,null,null,null,null,null,null,null,null,null,null,null,null,null,null,null,null,null,null,null,null,null,null,null,null,null,null,null,null,null,null,null,null,null,null,null,null,null,null,null,null,null,null,null,null,null,null,null,null,null,null,null,null,null,null,null,null,null,null,null,null,null,null,null,null,null,null,null,null,null,null,null,null,null,null,null,null,null,null,null,null,null,null,null,null,null,null,null,null,null,null,null,null,null,null,null,null,null,null,null,null,null,null,null,null,null,null,null,null,null,null,null,null,null,null,null,null,null,null,null,null,null,null,null,null,null,null,null,null,null,null,null,null,null,null,null,null,null,null,null,null,null,null,null,null,null,null,null,null,null,null,null,null,null,null,null,null,null,null,null,null,null,null,null,null,null,null,null,null,null,null,null,null,null,null,null,null,null,null,null,null,null,null,null,null,null,null,null,null,null,null,null,null,null,null,null,null,null,null,null,null,null,null,null,null,null,null,null,null,null,null,null,null,null,null,null,null,null,null,null,null,null,null,null,null,null,null,4.7,"ecash",4.7,"ecash",4.7,"ecash"]
["2018-04-11","Wednesday",null,2,null,null,null,null,null,null,null,null,null,null,null,null,null,null,null,null,null,null,null,null,null,null,null,null,null,null,null,null,null,null,null,null,null,null,null,null,null,null,null,null,null,null,null,null,null,null,null,null,null,null,null,null,null,null,null,null,null,null,null,null,null,null,null,null,null,null,null,null,null,null,null,null,null,null,null,null,null,null,null,null,null,null,null,null,null,null,null,null,null,null,null,null,null,null,null,null,null,null,null,null,null,null,null,null,null,null,null,null,null,null,null,null,null,null,null,null,null,null,null,null,null,null,null,null,null,null,null,null,null,null,null,null,null,null,null,null,null,null,null,null,null,null,null,null,null,null,null,null,null,null,null,null,null,null,null,null,null,null,null,null,null,null,null,null,null,null,null,null,null,null,null,null,null,null,null,null,null,null,null,null,null,null,null,null,null,null,null,null,null,null,null,null,null,null,null,null,null,null,null,null,null,null,null,null,null,null,null,null,null,null,null,null,null,null,null,null,null,null,null,null,null,null,null,null,null,null,null,null,null,null,null,null,null,null,null,null,null,null,null,null,null,null,null,null,null,null,null,null,null,null,null,null,null,null,null,null,null,null,null,null,null,null,null,null,null,null,null,null,null,null,null,null,null,null,null,null,null,null,null,null,null,null,null,null,null,null,null,null,null,null,null,null,null,null,null,null,null,null,null,null,null,null,null,null,null,null,null,null,null,null,null,null,null,null,null,null,null,null,null,null,null,null,null,null,null,null,null,null,null,null,null,null,null,null,null,null,null,null,null,null,null,null,null,null,null,null,null,null,null,null,null,null,null,null,null,null,null,null,null,null,null,null,null,null,null,null,null,null,null,null,null,null,null,null,null,null,null,null,null,null,null,null,null,4.7,"ecash",4.7,"ecash"]
["2018-04-12","Thursday",null,2,null,null,null,null,null,null,null,null,null,null,null,null,null,null,null,null,null,null,null,null,null,null,null,null,null,null,null,null,null,null,null,null,null,null,null,null,null,null,null,null,null,null,null,null,null,null,null,null,null,null,null,null,null,null,null,null,null,null,null,null,null,null,null,null,null,null,null,null,null,null,null,null,null,null,null,null,null,null,null,null,null,null,null,null,null,null,null,null,null,null,null,null,null,null,null,null,null,null,null,null,null,null,null,null,null,null,null,null,null,null,null,null,null,null,null,null,null,null,null,null,null,null,null,null,null,null,null,null,null,null,null,null,null,null,null,null,null,null,null,null,null,null,null,null,null,null,null,null,null,null,null,null,null,null,null,null,null,null,null,null,null,null,null,null,null,null,null,null,null,null,null,null,null,null,null,null,null,null,null,null,null,null,null,null,null,null,null,null,null,null,null,null,null,null,null,null,null,null,null,null,null,null,null,null,null,null,null,null,null,null,null,null,null,null,null,null,null,null,null,null,null,null,null,null,null,null,null,null,null,null,null,null,null,null,null,null,null,null,null,null,null,null,null,null,null,null,null,null,null,null,null,null,null,null,null,null,null,null,null,null,null,null,null,null,null,null,null,null,null,null,null,null,null,null,null,null,null,null,null,null,null,null,null,null,null,null,null,null,null,null,null,null,null,null,null,null,null,null,null,null,null,null,null,null,null,null,null,null,null,null,null,null,null,null,null,null,null,null,null,null,null,null,null,null,null,null,null,null,null,null,null,null,null,null,null,null,null,null,null,null,null,null,null,null,null,null,null,null,null,null,null,null,null,null,null,null,null,null,null,null,null,null,null,null,null,null,null,null,null,null,null,null,null,null,null,null,null,null,null,null,null,null,null,null,null,4.7,"ecash"]
["2018-04-13",{"$f":"TEXT(A198,\"dddd\")","v":"Friday"},null,2]
["2018-04-14","Saturday",null,0,null,null,null,null,null,null,null,null,null,null,null,null,null,null,null,null,null,null,null,null,null,null,null,null,null,null,null,null,null,null,null,null,null,null,null,null,null,null,null,null,null,null,null,null,null,null,null,null,null,null,null,null,null,null,null,null,null,null,null,null,null,null,null,null,null,null,null,null,null,null,null,null,null,null,null,null,null,null,null,null,null,null,null,null,null,null,null,null,null,null,null,null,null,null,null,null,null,null,null,null,null,null,null,null,null,null,null,null,null,null,null,null,null,null,null,null,null,null,null,null,null,null,null,null,null,null,null,null,null,null,null,null,null,null,null,null,null,null,null,null,null,null,null,null,null,null,null,null,null,null,null,null,null,null,null,null,null,null,null,null,null,null,null,null,null,null,null,null,null,null,null,null,null,null,null,null,null,null,null,null,null,null,null,null,null,null,null,null,null,null,null,null,null,null,null,null,null,null,null,null,null,null,null,null,null,null,null,null,null,null,null,null,null,null,null,null,null,null,null,null,null,null,null,null,null,null,null,null,null,null,null,null,null,null,null,null,null,null,null,null,null,null,null,null,null,null,null,null,null,null,null,null,null,null,null,null,null,null,null,null,null,null,null,null,null,null,null,null,null,null,null,null,null,null,null,null,null,null,null,null,null,null,null,null,null,null,null,null,null,null,null,null,null,null,null,null,null,null,null,null,null,null,null,null,null,null,null,null,null,null,null,null,null,null,null,null,null,null,null,null,null,null,null,null,null,null,null,null,null,null,null,null,null,null,null,null,null,null,null,null,null,null,null,null,null,null,null,null,null,null,null,null,null,null,null,null,null,null,null,null,null,null,null,null,null,null,null,null,null,null,null,null,null,null,null,null,null,null,null,null,null,null,null,null,null,null,null,null,null,0,"ecash",0,"ecash",null,null,null,null,null,null,null,null,0,"ecash",0,"ecash",0,"ecash",0,"ecash",0,"ecash",0,"ecash",0,"ecash"]
["2018-04-15","Sunday",null,0,null,null,null,null,null,null,null,null,null,null,null,null,null,null,null,null,null,null,null,null,null,null,null,null,null,null,null,null,null,null,null,null,null,null,null,null,null,null,null,null,null,null,null,null,null,null,null,null,null,null,null,null,null,null,null,null,null,null,null,null,null,null,null,null,null,null,null,null,null,null,null,null,null,null,null,null,null,null,null,null,null,null,null,null,null,null,null,null,null,null,null,null,null,null,null,null,null,null,null,null,null,null,null,null,null,null,null,null,null,null,null,null,null,null,null,null,null,null,null,null,null,null,null,null,null,null,null,null,null,null,null,null,null,null,null,null,null,null,null,null,null,null,null,null,null,null,null,null,null,null,null,null,null,null,null,null,null,null,null,null,null,null,null,null,null,null,null,null,null,null,null,null,null,null,null,null,null,null,null,null,null,null,null,null,null,null,null,null,null,null,null,null,null,null,null,null,null,null,null,null,null,null,null,null,null,null,null,null,null,null,null,null,null,null,null,null,null,null,null,null,null,null,null,null,null,null,null,null,null,null,null,null,null,null,null,null,null,null,null,null,null,null,null,null,null,null,null,null,null,null,null,null,null,null,null,null,null,null,null,null,null,null,null,null,null,null,null,null,null,null,null,null,null,null,null,null,null,null,null,null,null,null,null,null,null,null,null,null,null,null,null,null,null,null,null,null,null,null,null,null,null,null,null,null,null,null,null,null,null,null,null,null,null,null,null,null,null,null,null,null,null,null,null,null,null,null,null,null,null,null,null,null,null,null,null,null,null,null,null,null,null,null,null,null,null,null,null,null,null,null,null,null,null,null,null,null,null,null,null,null,null,null,null,null,null,null,null,null,null,null,null,null,null,null,null,null,null,null,null,null,null,null,null,null,null,null,null,null,null,null,null,0,"ecash",null,null,null,null,null,null,null,null,0,"ecash",0,"ecash",0,"ecash",0,"ecash",0,"ecash",0,"ecash",0,"ecash"]
["2018-04-16","Monday",null,2,null,null,null,null,null,null,null,null,null,null,null,null,null,null,null,null,null,null,null,null,null,null,null,null,null,null,null,null,null,null,null,null,null,null,null,null,null,null,null,null,null,null,null,null,null,null,null,null,null,null,null,null,null,null,null,null,null,null,null,null,null,null,null,null,null,null,null,null,null,null,null,null,null,null,null,null,null,null,null,null,null,null,null,null,null,null,null,null,null,null,null,null,null,null,null,null,null,null,null,null,null,null,null,null,null,null,null,null,null,null,null,null,null,null,null,null,null,null,null,null,null,null,null,null,null,null,null,null,null,null,null,null,null,null,null,null,null,null,null,null,null,null,null,null,null,null,null,null,null,null,null,null,null,null,null,null,null,null,null,null,null,null,null,null,null,null,null,null,null,null,null,null,null,null,null,null,null,null,null,null,null,null,null,null,null,null,null,null,null,null,null,null,null,null,null,null,null,null,null,null,null,null,null,null,null,null,null,null,null,null,null,null,null,null,null,null,null,null,null,null,null,null,null,null,null,null,null,null,null,null,null,null,null,null,null,null,null,null,null,null,null,null,null,null,null,null,null,null,null,null,null,null,null,null,null,null,null,null,null,null,null,null,null,null,null,null,null,null,null,null,null,null,null,null,null,null,null,null,null,null,null,null,null,null,null,null,null,null,null,null,null,null,null,null,null,null,null,null,null,null,null,null,null,null,null,null,null,null,null,null,null,null,null,null,null,null,null,null,null,null,null,null,null,null,null,null,null,null,null,null,null,null,null,null,null,null,null,null,null,null,null,null,null,null,null,null,null,null,null,null,null,null,null,null,null,null,null,null,null,null,null,null,null,null,null,null,null,null,null,null,null,null,null,null,null,null,null,null,null,null,null,null,null,null,null,null,null,null,null,null,null,null,null,null,null,null,null,null,null,null,null,21.15,"5 day e-pass",21.15,"5 day e-pass",21.15,"5 day e-pass",21.15,"5 day e-pass",21.15,"5 day e-pass",21.15,"5 day e-pass",21.15,"5 day e-pass"]
["2018-04-17","Tuesday",null,2,null,null,null,null,null,null,null,null,null,null,null,null,null,null,null,null,null,null,null,null,null,null,null,null,null,null,null,null,null,null,null,null,null,null,null,null,null,null,null,null,null,null,null,null,null,null,null,null,null,null,null,null,null,null,null,null,null,null,null,null,null,null,null,null,null,null,null,null,null,null,null,null,null,null,null,null,null,null,null,null,null,null,null,null,null,null,null,null,null,null,null,null,null,null,null,null,null,null,null,null,null,null,null,null,null,null,null,null,null,null,null,null,null,null,null,null,null,null,null,null,null,null,null,null,null,null,null,null,null,null,null,null,null,null,null,null,null,null,null,null,null,null,null,null,null,null,null,null,null,null,null,null,null,null,null,null,null,null,null,null,null,null,null,null,null,null,null,null,null,null,null,null,null,null,null,null,null,null,null,null,null,null,null,null,null,null,null,null,null,null,null,null,null,null,null,null,null,null,null,null,null,null,null,null,null,null,null,null,null,null,null,null,null,null,null,null,null,null,null,null,null,null,null,null,null,null,null,null,null,null,null,null,null,null,null,null,null,null,null,null,null,null,null,null,null,null,null,null,null,null,null,null,null,null,null,null,null,null,null,null,null,null,null,null,null,null,null,null,null,null,null,null,null,null,null,null,null,null,null,null,null,null,null,null,null,null,null,null,null,null,null,null,null,null,null,null,null,null,null,null,null,null,null,null,null,null,null,null,null,null,null,null,null,null,null,null,null,null,null,null,null,null,null,null,null,null,null,null,null,null,null,null,null,null,null,null,null,null,null,null,null,null,null,null,null,null,null,null,null,null,null,null,null,null,null,null,null,null,null,null,null,null,null,null,null,null,null,null,null,null,null,null,null,null,null,null,null,null,null,null,null,null,null,null,null,null,null,null,null,null,null,null,null,null,null,4.7,"ecash"]
["2018-04-18","Wednesday",null,2]
["2018-04-19","Thursday",null,2,null,null,null,null,null,null,null,null,null,null,null,null,null,null,null,null,null,null,null,null,null,null,null,null,null,null,null,null,null,null,null,null,null,null,null,null,null,null,null,null,null,null,null,null,null,null,null,null,null,null,null,null,null,null,null,null,null,null,null,null,null,null,null,null,null,null,null,null,null,null,null,null,null,null,null,null,null,null,null,null,null,null,null,null,null,null,null,null,null,null,null,null,null,null,null,null,null,null,null,null,null,null,null,null,null,null,null,null,null,null,null,null,null,null,null,null,null,null,null,null,null,null,null,null,null,null,null,null,null,null,null,null,null,null,null,null,null,null,null,null,null,null,null,null,null,null,null,null,null,null,null,null,null,null,null,null,null,null,null,null,null,null,null,null,null,null,null,null,null,null,null,null,null,null,null,null,null,null,null,null,null,null,null,null,null,null,null,null,null,null,null,null,null,null,null,null,null,null,null,null,null,null,null,null,null,null,null,null,null,null,null,null,null,null,null,null,null,null,null,null,null,null,null,null,null,null,null,null,null,null,null,null,null,null,null,null,null,null,null,null,null,null,null,null,null,null,null,null,null,null,null,null,null,null,null,null,null,null,null,null,null,null,null,null,null,null,null,null,null,null,null,null,null,null,null,null,null,null,null,null,null,null,null,null,null,null,null,null,null,null,null,null,null,null,null,null,null,null,null,null,null,null,null,null,null,null,null,null,null,null,null,null,null,null,null,null,null,null,null,null,null,null,null,null,null,null,null,null,null,null,null,null,null,null,null,null,null,null,null,null,null,null,null,null,null,null,null,null,null,null,null,null,null,null,null,null,null,null,null,null,null,null,null,null,null,null,null,null,null,null,null,null,null,null,null,null,null,null,null,null,null,null,null,null,null,null,null,null,null,null,null,null,null,null,null,null,null,null,null,4.7,"ecash"]
["2018-04-20","Friday",null,2]
["2018-04-21","Saturday",null,0,null,null,null,null,null,null,null,null,null,null,null,null,null,null,null,null,null,null,null,null,null,null,null,null,null,null,null,null,null,null,null,null,null,null,null,null,null,null,null,null,null,null,null,null,null,null,null,null,null,null,null,null,null,null,null,null,null,null,null,null,null,null,null,null,null,null,null,null,null,null,null,null,null,null,null,null,null,null,null,null,null,null,null,null,null,null,null,null,null,null,null,null,null,null,null,null,null,null,null,null,null,null,null,null,null,null,null,null,null,null,null,null,null,null,null,null,null,null,null,null,null,null,null,null,null,null,null,null,null,null,null,null,null,null,null,null,null,null,null,null,null,null,null,null,null,null,null,null,null,null,null,null,null,null,null,null,null,null,null,null,null,null,null,null,null,null,null,null,null,null,null,null,null,null,null,null,null,null,null,null,null,null,null,null,null,null,null,null,null,null,null,null,null,null,null,null,null,null,null,null,null,null,null,null,null,null,null,null,null,null,null,null,null,null,null,null,null,null,null,null,null,null,null,null,null,null,null,null,null,null,null,null,null,null,null,null,null,null,null,null,null,null,null,null,null,null,null,null,null,null,null,null,null,null,null,null,null,null,null,null,null,null,null,null,null,null,null,null,null,null,null,null,null,null,null,null,null,null,null,null,null,null,null,null,null,null,null,null,null,null,null,null,null,null,null,null,null,null,null,null,null,null,null,null,null,null,null,null,null,null,null,null,null,null,null,null,null,null,null,null,null,null,null,null,null,null,null,null,null,null,null,null,null,null,null,null,null,null,null,null,null,null,null,null,null,null,null,null,null,null,null,null,null,null,null,null,null,null,null,null,null,null,null,null,null,null,null,null,null,null,null,null,null,null,null,null,null,null,null,null,null,null,null,null,null,null,null,null,null,null,null,null,null,null,null,null,null,null,null,null,null,null,null,0,"ecash",0,"ecash",0,"ecash",0,"ecash",0,"ecash",0,"ecash"]
["2018-04-22","Sunday",null,0,null,null,null,null,null,null,null,null,null,null,null,null,null,null,null,null,null,null,null,null,null,null,null,null,null,null,null,null,null,null,null,null,null,null,null,null,null,null,null,null,null,null,null,null,null,null,null,null,null,null,null,null,null,null,null,null,null,null,null,null,null,null,null,null,null,null,null,null,null,null,null,null,null,null,null,null,null,null,null,null,null,null,null,null,null,null,null,null,null,null,null,null,null,null,null,null,null,null,null,null,null,null,null,null,null,null,null,null,null,null,null,null,null,null,null,null,null,null,null,null,null,null,null,null,null,null,null,null,null,null,null,null,null,null,null,null,null,null,null,null,null,null,null,null,null,null,null,null,null,null,null,null,null,null,null,null,null,null,null,null,null,null,null,null,null,null,null,null,null,null,null,null,null,null,null,null,null,null,null,null,null,null,null,null,null,null,null,null,null,null,null,null,null,null,null,null,null,null,null,null,null,null,null,null,null,null,null,null,null,null,null,null,null,null,null,null,null,null,null,null,null,null,null,null,null,null,null,null,null,null,null,null,null,null,null,null,null,null,null,null,null,null,null,null,null,null,null,null,null,null,null,null,null,null,null,null,null,null,null,null,null,null,null,null,null,null,null,null,null,null,null,null,null,null,null,null,null,null,null,null,null,null,null,null,null,null,null,null,null,null,null,null,null,null,null,null,null,null,null,null,null,null,null,null,null,null,null,null,null,null,null,null,null,null,null,null,null,null,null,null,null,null,null,null,null,null,null,null,null,null,null,null,null,null,null,null,null,null,null,null,null,null,null,null,null,null,null,null,null,null,null,null,null,null,null,null,null,null,null,null,null,null,null,null,null,null,null,null,null,null,null,null,null,null,null,null,null,null,null,null,null,null,null,null,null,null,null,null,null,null,null,null,null,null,null,null,null,null,null,null,null,null,null,null,null,0,"ecash",0,"ecash",0,"ecash",0,"ecash",0,"ecash"]
["2018-04-23","Monday",null,2,null,null,null,null,null,null,null,null,null,null,null,null,null,null,null,null,null,null,null,null,null,null,null,null,null,null,null,null,null,null,null,null,null,null,null,null,null,null,null,null,null,null,null,null,null,null,null,null,null,null,null,null,null,null,null,null,null,null,null,null,null,null,null,null,null,null,null,null,null,null,null,null,null,null,null,null,null,null,null,null,null,null,null,null,null,null,null,null,null,null,null,null,null,null,null,null,null,null,null,null,null,null,null,null,null,null,null,null,null,null,null,null,null,null,null,null,null,null,null,null,null,null,null,null,null,null,null,null,null,null,null,null,null,null,null,null,null,null,null,null,null,null,null,null,null,null,null,null,null,null,null,null,null,null,null,null,null,null,null,null,null,null,null,null,null,null,null,null,null,null,null,null,null,null,null,null,null,null,null,null,null,null,null,null,null,null,null,null,null,null,null,null,null,null,null,null,null,null,null,null,null,null,null,null,null,null,null,null,null,null,null,null,null,null,null,null,null,null,null,null,null,null,null,null,null,null,null,null,null,null,null,null,null,null,null,null,null,null,null,null,null,null,null,null,null,null,null,null,null,null,null,null,null,null,null,null,null,null,null,null,null,null,null,null,null,null,null,null,null,null,null,null,null,null,null,null,null,null,null,null,null,null,null,null,null,null,null,null,null,null,null,null,null,null,null,null,null,null,null,null,null,null,null,null,null,null,null,null,null,null,null,null,null,null,null,null,null,null,null,null,null,null,null,null,null,null,null,null,null,null,null,null,null,null,null,null,null,null,null,null,null,null,null,null,null,null,null,null,null,null,null,null,null,null,null,null,null,null,null,null,null,null,null,null,null,null,null,null,null,null,null,null,null,null,null,null,null,null,null,null,null,null,null,null,null,null,null,null,null,null,null,null,null,null,null,null,null,null,null,null,null,null,null,null,null,null,null,4.7,"ecash",4.7,"ecash",4.7,"ecash",4.7,"ecash"]
["2018-04-24","Tuesday",null,2,null,null,null,null,null,null,null,null,null,null,null,null,null,null,null,null,null,null,null,null,null,null,null,null,null,null,null,null,null,null,null,null,null,null,null,null,null,null,null,null,null,null,null,null,null,null,null,null,null,null,null,null,null,null,null,null,null,null,null,null,null,null,null,null,null,null,null,null,null,null,null,null,null,null,null,null,null,null,null,null,null,null,null,null,null,null,null,null,null,null,null,null,null,null,null,null,null,null,null,null,null,null,null,null,null,null,null,null,null,null,null,null,null,null,null,null,null,null,null,null,null,null,null,null,null,null,null,null,null,null,null,null,null,null,null,null,null,null,null,null,null,null,null,null,null,null,null,null,null,null,null,null,null,null,null,null,null,null,null,null,null,null,null,null,null,null,null,null,null,null,null,null,null,null,null,null,null,null,null,null,null,null,null,null,null,null,null,null,null,null,null,null,null,null,null,null,null,null,null,null,null,null,null,null,null,null,null,null,null,null,null,null,null,null,null,null,null,null,null,null,null,null,null,null,null,null,null,null,null,null,null,null,null,null,null,null,null,null,null,null,null,null,null,null,null,null,null,null,null,null,null,null,null,null,null,null,null,null,null,null,null,null,null,null,null,null,null,null,null,null,null,null,null,null,null,null,null,null,null,null,null,null,null,null,null,null,null,null,null,null,null,null,null,null,null,null,null,null,null,null,null,null,null,null,null,null,null,null,null,null,null,null,null,null,null,null,null,null,null,null,null,null,null,null,null,null,null,null,null,null,null,null,null,null,null,null,null,null,null,null,null,null,null,null,null,null,null,null,null,null,null,null,null,null,null,null,null,null,null,null,null,null,null,null,null,null,null,null,null,null,null,null,null,null,null,null,null,null,null,null,null,null,null,null,null,null,null,null,null,null,null,null,null,null,null,null,null,null,null,null,null,null,null,null,null,null,null,null,null,4.7,"ecash",4.7,"ecash",4.7,"ecash"]
["2018-04-25","Wednesday",null,2,null,null,null,null,null,null,null,null,null,null,null,null,null,null,null,null,null,null,null,null,null,null,null,null,null,null,null,null,null,null,null,null,null,null,null,null,null,null,null,null,null,null,null,null,null,null,null,null,null,null,null,null,null,null,null,null,null,null,null,null,null,null,null,null,null,null,null,null,null,null,null,null,null,null,null,null,null,null,null,null,null,null,null,null,null,null,null,null,null,null,null,null,null,null,null,null,null,null,null,null,null,null,null,null,null,null,null,null,null,null,null,null,null,null,null,null,null,null,null,null,null,null,null,null,null,null,null,null,null,null,null,null,null,null,null,null,null,null,null,null,null,null,null,null,null,null,null,null,null,null,null,null,null,null,null,null,null,null,null,null,null,null,null,null,null,null,null,null,null,null,null,null,null,null,null,null,null,null,null,null,null,null,null,null,null,null,null,null,null,null,null,null,null,null,null,null,null,null,null,null,null,null,null,null,null,null,null,null,null,null,null,null,null,null,null,null,null,null,null,null,null,null,null,null,null,null,null,null,null,null,null,null,null,null,null,null,null,null,null,null,null,null,null,null,null,null,null,null,null,null,null,null,null,null,null,null,null,null,null,null,null,null,null,null,null,null,null,null,null,null,null,null,null,null,null,null,null,null,null,null,null,null,null,null,null,null,null,null,null,null,null,null,null,null,null,null,null,null,null,null,null,null,null,null,null,null,null,null,null,null,null,null,null,null,null,null,null,null,null,null,null,null,null,null,null,null,null,null,null,null,null,null,null,null,null,null,null,null,null,null,null,null,null,null,null,null,null,null,null,null,null,null,null,null,null,null,null,null,null,null,null,null,null,null,null,null,null,null,null,null,null,null,null,null,null,null,null,null,null,null,null,null,null,null,null,null,null,null,null,null,null,null,null,null,null,null,null,null,null,null,null,null,null,null,null,null,null,null,null,null,null,4.7,"ecash",4.7,"ecash"]
["2018-04-26","Thursday",null,2,null,null,null,null,null,null,null,null,null,null,null,null,null,null,null,null,null,null,null,null,null,null,null,null,null,null,null,null,null,null,null,null,null,null,null,null,null,null,null,null,null,null,null,null,null,null,null,null,null,null,null,null,null,null,null,null,null,null,null,null,null,null,null,null,null,null,null,null,null,null,null,null,null,null,null,null,null,null,null,null,null,null,null,null,null,null,null,null,null,null,null,null,null,null,null,null,null,null,null,null,null,null,null,null,null,null,null,null,null,null,null,null,null,null,null,null,null,null,null,null,null,null,null,null,null,null,null,null,null,null,null,null,null,null,null,null,null,null,null,null,null,null,null,null,null,null,null,null,null,null,null,null,null,null,null,null,null,null,null,null,null,null,null,null,null,null,null,null,null,null,null,null,null,null,null,null,null,null,null,null,null,null,null,null,null,null,null,null,null,null,null,null,null,null,null,null,null,null,null,null,null,null,null,null,null,null,null,null,null,null,null,null,null,null,null,null,null,null,null,null,null,null,null,null,null,null,null,null,null,null,null,null,null,null,null,null,null,null,null,null,null,null,null,null,null,null,null,null,null,null,null,null,null,null,null,null,null,null,null,null,null,null,null,null,null,null,null,null,null,null,null,null,null,null,null,null,null,null,null,null,null,null,null,null,null,null,null,null,null,null,null,null,null,null,null,null,null,null,null,null,null,null,null,null,null,null,null,null,null,null,null,null,null,null,null,null,null,null,null,null,null,null,null,null,null,null,null,null,null,null,null,null,null,null,null,null,null,null,null,null,null,null,null,null,null,null,null,null,null,null,null,null,null,null,null,null,null,null,null,null,null,null,null,null,null,null,null,null,null,null,null,null,null,null,null,null,null,null,null,null,null,null,null,null,null,null,null,null,null,null,null,null,null,null,null,null,null,null,null,null,null,null,null,null,null,null,null,null,null,null,null,null,null,4.7,"ecash"]
["2018-04-27","Friday",null,2]
["2018-04-28","Saturday",null,0,null,null,null,null,null,null,null,null,null,null,null,null,null,null,null,null,null,null,null,null,null,null,null,null,null,null,null,null,null,null,null,null,null,null,null,null,null,null,null,null,null,null,null,null,null,null,null,null,null,null,null,null,null,null,null,null,null,null,null,null,null,null,null,null,null,null,null,null,null,null,null,null,null,null,null,null,null,null,null,null,null,null,null,null,null,null,null,null,null,null,null,null,null,null,null,null,null,null,null,null,null,null,null,null,null,null,null,null,null,null,null,null,null,null,null,null,null,null,null,null,null,null,null,null,null,null,null,null,null,null,null,null,null,null,null,null,null,null,null,null,null,null,null,null,null,null,null,null,null,null,null,null,null,null,null,null,null,null,null,null,null,null,null,null,null,null,null,null,null,null,null,null,null,null,null,null,null,null,null,null,null,null,null,null,null,null,null,null,null,null,null,null,null,null,null,null,null,null,null,null,null,null,null,null,null,null,null,null,null,null,null,null,null,null,null,null,null,null,null,null,null,null,null,null,null,null,null,null,null,null,null,null,null,null,null,null,null,null,null,null,null,null,null,null,null,null,null,null,null,null,null,null,null,null,null,null,null,null,null,null,null,null,null,null,null,null,null,null,null,null,null,null,null,null,null,null,null,null,null,null,null,null,null,null,null,null,null,null,null,null,null,null,null,null,null,null,null,null,null,null,null,null,null,null,null,null,null,null,null,null,null,null,null,null,null,null,null,null,null,null,null,null,null,null,null,null,null,null,null,null,null,null,null,null,null,null,null,null,null,null,null,null,null,null,null,null,null,null,null,null,null,null,null,null,null,null,null,null,null,null,null,null,null,null,null,null,null,null,null,null,null,null,null,null,null,null,null,null,null,null,null,null,null,null,null,null,null,null,null,null,null,null,null,null,null,null,null,null,null,null,null,null,null,null,null,null,null,null,null,null,null,null,null,null,null,null,null,0,"ecash",0,"ecash",0,"ecash"]
["2018-04-29","Sunday",null,0,null,null,null,null,null,null,null,null,null,null,null,null,null,null,null,null,null,null,null,null,null,null,null,null,null,null,null,null,null,null,null,null,null,null,null,null,null,null,null,null,null,null,null,null,null,null,null,null,null,null,null,null,null,null,null,null,null,null,null,null,null,null,null,null,null,null,null,null,null,null,null,null,null,null,null,null,null,null,null,null,null,null,null,null,null,null,null,null,null,null,null,null,null,null,null,null,null,null,null,null,null,null,null,null,null,null,null,null,null,null,null,null,null,null,null,null,null,null,null,null,null,null,null,null,null,null,null,null,null,null,null,null,null,null,null,null,null,null,null,null,null,null,null,null,null,null,null,null,null,null,null,null,null,null,null,null,null,null,null,null,null,null,null,null,null,null,null,null,null,null,null,null,null,null,null,null,null,null,null,null,null,null,null,null,null,null,null,null,null,null,null,null,null,null,null,null,null,null,null,null,null,null,null,null,null,null,null,null,null,null,null,null,null,null,null,null,null,null,null,null,null,null,null,null,null,null,null,null,null,null,null,null,null,null,null,null,null,null,null,null,null,null,null,null,null,null,null,null,null,null,null,null,null,null,null,null,null,null,null,null,null,null,null,null,null,null,null,null,null,null,null,null,null,null,null,null,null,null,null,null,null,null,null,null,null,null,null,null,null,null,null,null,null,null,null,null,null,null,null,null,null,null,null,null,null,null,null,null,null,null,null,null,null,null,null,null,null,null,null,null,null,null,null,null,null,null,null,null,null,null,null,null,null,null,null,null,null,null,null,null,null,null,null,null,null,null,null,null,null,null,null,null,null,null,null,null,null,null,null,null,null,null,null,null,null,null,null,null,null,null,null,null,null,null,null,null,null,null,null,null,null,null,null,null,null,null,null,null,null,null,null,null,null,null,null,null,null,null,null,null,null,null,null,null,null,null,null,null,null,null,null,null,null,null,null,null,null,null,null,0,"ecash",0,"ecash"]
["2018-04-30","Monday",null,2,null,null,null,null,null,null,null,null,null,null,null,null,null,null,null,null,null,null,null,null,null,null,null,null,null,null,null,null,null,null,null,null,null,null,null,null,null,null,null,null,null,null,null,null,null,null,null,null,null,null,null,null,null,null,null,null,null,null,null,null,null,null,null,null,null,null,null,null,null,null,null,null,null,null,null,null,null,null,null,null,null,null,null,null,null,null,null,null,null,null,null,null,null,null,null,null,null,null,null,null,null,null,null,null,null,null,null,null,null,null,null,null,null,null,null,null,null,null,null,null,null,null,null,null,null,null,null,null,null,null,null,null,null,null,null,null,null,null,null,null,null,null,null,null,null,null,null,null,null,null,null,null,null,null,null,null,null,null,null,null,null,null,null,null,null,null,null,null,null,null,null,null,null,null,null,null,null,null,null,null,null,null,null,null,null,null,null,null,null,null,null,null,null,null,null,null,null,null,null,null,null,null,null,null,null,null,null,null,null,null,null,null,null,null,null,null,null,null,null,null,null,null,null,null,null,null,null,null,null,null,null,null,null,null,null,null,null,null,null,null,null,null,null,null,null,null,null,null,null,null,null,null,null,null,null,null,null,null,null,null,null,null,null,null,null,null,null,null,null,null,null,null,null,null,null,null,null,null,null,null,null,null,null,null,null,null,null,null,null,null,null,null,null,null,null,null,null,null,null,null,null,null,null,null,null,null,null,null,null,null,null,null,null,null,null,null,null,null,null,null,null,null,null,null,null,null,null,null,null,null,null,null,null,null,null,null,null,null,null,null,null,null,null,null,null,null,null,null,null,null,null,null,null,null,null,null,null,null,null,null,null,null,null,null,null,null,null,null,null,null,null,null,null,null,null,null,null,null,null,null,null,null,null,null,null,null,null,null,null,null,null,null,null,null,null,null,null,null,null,null,null,null,null,null,null,null,null,null,null,null,null,null,null,null,null,null,null,null,null,null,null,4.7,"ecash"]